Workbook

Sheet Cover
C2: United Energy
C3: Regulatory proposal 2026-31
C5: Wood pole condition forecast
C6: Model number: | D6: 4.06
C8: 2025-01-31
A40: =_xlfn.SHEETS() -> 5

Sheet Summary
A1: United Energy
A2: Wood pole condition forecsat
A4: FORECAST
B7: Future pole condition
B8: Serviceable | C8: =COUNTIF(Model!$U:$U,Summary!$B8) -> 84988
B9: Limited Life | C9: =COUNTIF(Model!$U:$U,Summary!$B9) -> 26157
B10: Unserviceable | C10: =COUNTIF(Model!$U:$U,Summary!$B10) -> 709
B11: Total | C11: =SUM(C8:C10) -> 111854
B14: Forecast output
B15: Wood rot driven interventions | C15: =SUMPRODUCT(C8:C10,Data!C11:C13)/(Data!C5-Data!C6) -> 2704.325 | D15: Annual sound wood driven interventions
B16: Observed defects | C16: 54 | D16: Observed defects, such as splits and cracks
B17: External impact | C17: 40 | D17: Interventions such as car-hit-pole
B18: Maximum test holes | C18: 142 | D18: Pole intervened due to too many test holes
B19: Forecast annual intervention volumes | C19: =SUM(C15:C18) -> 2940.325
B23: Future pole condition | C23: Serviceable | D23: =Data!B12 -> Limited Life | E23: =Data!B13 -> Unserviceable
B24: LV | C24: =COUNTIFS(Model!$V:$V,Summary!$B24,Model!$U:$U,Summary!C$23) -> 44136 | D24: =COUNTIFS(Model!$V:$V,Summary!$B24,Model!$U:$U,Summary!D$23) -> 16456 | E24: =COUNTIFS(Model!$V:$V,Summary!$B24,Model!$U:$U,Summary!E$23) -> 438
B25: HV | C25: =COUNTIFS(Model!$V:$V,Summary!$B25,Model!$U:$U,Summary!C$23) -> 35392 | D25: =COUNTIFS(Model!$V:$V,Summary!$B25,Model!$U:$U,Summary!D$23) -> 8662 | E25: =COUNTIFS(Model!$V:$V,Summary!$B25,Model!$U:$U,Summary!E$23) -> 230
B26: Sub-T | C26: =COUNTIFS(Model!$V:$V,Summary!$B26,Model!$U:$U,Summary!C$23) -> 5460 | D26: =COUNTIFS(Model!$V:$V,Summary!$B26,Model!$U:$U,Summary!D$23) -> 1039 | E26: =COUNTIFS(Model!$V:$V,Summary!$B26,Model!$U:$U,Summary!E$23) -> 41
B31: Intervention volumes | C31: Serviceable | D31: =D23 -> Limited Life | E31: =E23 -> Unserviceable
B32: LV | C32: =C24*Data!$C$11 -> 0 | D32: =D24*Data!$C$12 -> 13164.8 | E32: =E24*Data!$C$13 -> 438
B33: HV | C33: =C25*Data!$C$11 -> 0 | D33: =D25*Data!$C$12 -> 6929.6 | E33: =E25*Data!$C$13 -> 230
B34: Sub-T | C34: =C26*Data!$C$11 -> 0 | D34: =D26*Data!$C$12 -> 831.2 | E34: =E26*Data!$C$13 -> 41
B38: Replace/stake volumes | C38: =D31 -> Limited Life | D38: =E31 -> Unserviceable | E38: Staking | F38: Replacements | G38: %
B39: =B32 -> LV | C39: =D32/(Data!$C$5-Data!$C$6) -> 1645.6 | D39: =E32/(Data!$C$5-Data!$C$6) -> 54.75 | E39: =SUM(C39:D39)*Data!$C17 -> 831.7825792 | F39: =SUM(C39:D39)-E39 -> 868.5674208 | G39: =SUM(E39:F39)/SUM($E$42:$F$42) -> 0.6287520916
B40: =B33 -> HV | C40: =D33/(Data!$C$5-Data!$C$6) -> 866.2 | D40: =E33/(Data!$C$5-Data!$C$6) -> 28.75 | E40: =SUM(C40:D40)*Data!$C18 -> 437.7944654 | F40: =SUM(C40:D40)-E40 -> 457.1555346 | G40: =SUM(E40:F40)/SUM($E$42:$F$42) -> 0.3309328576
B41: =B34 -> Sub-T | C41: =D34/(Data!$C$5-Data!$C$6) -> 103.9 | D41: =E34/(Data!$C$5-Data!$C$6) -> 5.125 | E41: =SUM(C41:D41)*Data!$C19 -> 53.33319357 | F41: =SUM(C41:D41)-E41 -> 55.69180643 | G41: =SUM(E41:F41)/SUM($E$42:$F$42) -> 0.04031505089
B42: Total | C42: =SUM(C39:C41) -> 2615.7 | D42: =SUM(D39:D41) -> 88.625 | E42: =SUM(E39:E41) -> 1322.910238 | F42: =SUM(F39:F41) -> 1381.414762 | G42: =SUM(E42:F42)/SUM($E$42:$F$42) -> 1
A48: TOTAL
B52: Current pole condition | C52: Future Pole Condition | F52: Total
C53: Serviceable | D53: Limited Life | E53: Unserviceable
B54: Serviceable | C54: =COUNTIFS(Model!$E:$E,Summary!$B54,Model!$U:$U,Summary!C$53) -> 84988 | D54: =COUNTIFS(Model!$E:$E,Summary!$B54,Model!$U:$U,Summary!D$53) -> 24165 | E54: =COUNTIFS(Model!$E:$E,Summary!$B54,Model!$U:$U,Summary!E$53) -> 408 | F54: =SUM(C54:E54) -> 109561
B55: Limited Life | C55: =COUNTIFS(Model!$E:$E,Summary!$B55,Model!$U:$U,Summary!C$53) -> 0 | D55: =COUNTIFS(Model!$E:$E,Summary!$B55,Model!$U:$U,Summary!D$53) -> 1992 | E55: =COUNTIFS(Model!$E:$E,Summary!$B55,Model!$U:$U,Summary!E$53) -> 0 | F55: =SUM(C55:E55) -> 1992
B56: Unserviceable | C56: =COUNTIFS(Model!$E:$E,Summary!$B56,Model!$U:$U,Summary!C$53) -> 0 | D56: =COUNTIFS(Model!$E:$E,Summary!$B56,Model!$U:$U,Summary!D$53) -> 0 | E56: =COUNTIFS(Model!$E:$E,Summary!$B56,Model!$U:$U,Summary!E$53) -> 301 | F56: =SUM(C56:E56) -> 301
B57: Total | C57: =SUM(C54:C56) -> 84988 | D57: =SUM(D54:D56) -> 26157 | E57: =SUM(E54:E56) -> 709 | F57: =SUM(F54:F56) -> 111854

Sheet Model
A1: United Energy
A2: Pole condition data
B4: Forecast end year: | D4: =Data!$C$5 -> 2031
B6: Data extract | M6: Intervention criteria
B7: ID | C7: Start Date | D7: Pole Type | E7: Pole Condition | F7: Class | G7: Date Staked | H7: GIS Classification | I7: Girth | J7: Last inspection | K7: SWT (mm) | L7: Fire area | M7: Staking status | N7: Decay period (yrs) | O7: Pole Age group | P7: Diameter | Q7: External decay rate | R7: Internal decay rate | S7: Future SWT (mm) | T7: Condition by SWT | U7: Final pole condition | V7: Voltage
B8: 2 | C8: 1993 | D8: Wood Untreated Dressed | E8: Serviceable | F8: Class 1 | G8: 0 | H8: lv/hv/sub-transmission | I8: 1200 | J8: 2020 | K8: 150 | L8: No | M8: =IF(G8=0,FALSE,TRUE) -> FALSE | N8: =IF(L8="No",ROUND((End_year-J8)/5,0)*5,ROUND((End_year-J8)/3,0)*3) -> 10 | O8: =INDEX(Lists!$B$32:$B$40, MATCH(YEAR(TODAY())-C8, Lists!$C$32:$C$40,1)) -> 31-40 | P8: =I8/PI() -> 381.9718634 | Q8: =INDEX(Data!$E$24:$E$47, MATCH(F8&D8, Data!$B$24:$B$47,0)) -> 0.001996456114 | R8: =SUMPRODUCT((Data!$B$58:$B$60=Model!$F8)*(Data!$C$57:$K$57=Model!$O8)*(Data!$C$58:$K$60)) -> 3.003845297 | S8: =IF(IF(K8>=700,999,(K8-R8*N8))<0,0,IF(K8>=700,999,(K8-R8*N8))) -> 119.961547 | T8: =IF(S8<30,3,IF(AND(F8="Class 1",S8<50),2,IF(AND(F8="Class 1",S8>=50),1,IF(S8<70,2,1)))) -> 1 | U8: =IF(E8<>"Serviceable",E8,INDEX(Lists!$D$6:$D$8, MATCH(T8,Lists!$C$6:$C$8,0))) -> Serviceable | V8: =INDEX(Lists!$C$12:$C$26, MATCH(H8, Lists!$B$12:$B$26,0)) -> Sub-T
B9: 3 | C9: 1965 | D9: Wood Creos Impregnated | E9: Serviceable | F9: Class 3 | G9: 0 | H9: lv/hv/sub-transmission | I9: 1200 | J9: 2021 | K9: 100 | L9: No | M9: =IF(G9=0,FALSE,TRUE) -> FALSE | N9: 10 | O9: =INDEX(Lists!$B$32:$B$40, MATCH(YEAR(TODAY())-C9, Lists!$C$32:$C$40,1)) -> 51-60 | P9: =I9/PI() -> 381.9718634 | Q9: =INDEX(Data!$E$24:$E$47, MATCH(F9&D9, Data!$B$24:$B$47,0)) -> 0.001068433916 | R9: =SUMPRODUCT((Data!$B$58:$B$60=Model!$F9)*(Data!$C$57:$K$57=Model!$O9)*(Data!$C$58:$K$60)) -> 2.656485925 | S9: 73.43514075 | T9: 1 | U9: =IF(E9<>"Serviceable",E9,INDEX(Lists!$D$6:$D$8, MATCH(T9,Lists!$C$6:$C$8,0))) -> Serviceable | V9: =INDEX(Lists!$C$12:$C$26, MATCH(H9, Lists!$B$12:$B$26,0)) -> Sub-T
B10: 4 | C10: 1965 | D10: Wood Creos Impregnated | E10: Serviceable | F10: Class 3 | G10: 0 | H10: lv/hv/sub-transmission | I10: 942 | J10: 2020 | K10: 80 | L10: No | M10: FALSE | N10: 10 | O10: =INDEX(Lists!$B$32:$B$40, MATCH(YEAR(TODAY())-C10, Lists!$C$32:$C$40,1)) -> 51-60 | P10: 299.8479128 | Q10: =INDEX(Data!$E$24:$E$47, MATCH(F10&D10, Data!$B$24:$B$47,0)) -> 0.001068433916 | R10: =SUMPRODUCT((Data!$B$58:$B$60=Model!$F10)*(Data!$C$57:$K$57=Model!$O10)*(Data!$C$58:$K$60)) -> 2.656485925 | S10: 53.43514075 | T10: 2 | U10: =IF(E10<>"Serviceable",E10,INDEX(Lists!$D$6:$D$8, MATCH(T10,Lists!$C$6:$C$8,0))) -> Limited Life | V10: =INDEX(Lists!$C$12:$C$26, MATCH(H10, Lists!$B$12:$B$26,0)) -> Sub-T
B11: 5 | C11: 1992 | D11: Wood Untreated Dressed | E11: Serviceable | F11: Class 1 | G11: 0 | H11: lv/hv/sub-transmission | I11: 1250 | J11: 2021 | K11: 150 | L11: No | M11: FALSE | N11: 10 | O11: =INDEX(Lists!$B$32:$B$40, MATCH(YEAR(TODAY())-C11, Lists!$C$32:$C$40,1)) -> 31-40 | P11: 397.8873577 | Q11: =INDEX(Data!$E$24:$E$47, MATCH(F11&D11, Data!$B$24:$B$47,0)) -> 0.001996456114 | R11: =SUMPRODUCT((Data!$B$58:$B$60=Model!$F11)*(Data!$C$57:$K$57=Model!$O11)*(Data!$C$58:$K$60)) -> 3.003845297 | S11: 119.961547 | T11: 1 | U11: =IF(E11<>"Serviceable",E11,INDEX(Lists!$D$6:$D$8, MATCH(T11,Lists!$C$6:$C$8,0))) -> Serviceable | V11: =INDEX(Lists!$C$12:$C$26, MATCH(H11, Lists!$B$12:$B$26,0)) -> Sub-T
B12: 6 | C12: 1985 | D12: Wood Other | E12: Serviceable | F12: Class 1 | G12: 0 | H12: lv/hv/sub-transmission | I12: 1068 | J12: 2019 | K12: 120 | L12: No | M12: FALSE | N12: 10 | O12: =INDEX(Lists!$B$32:$B$40, MATCH(YEAR(TODAY())-C12, Lists!$C$32:$C$40,1)) -> 31-40 | P12: 339.9549584 | Q12: =INDEX(Data!$E$24:$E$47, MATCH(F12&D12, Data!$B$24:$B$47,0)) -> 0.001996456114 | R12: =SUMPRODUCT((Data!$B$58:$B$60=Model!$F12)*(Data!$C$57:$K$57=Model!$O12)*(Data!$C$58:$K$60)) -> 3.003845297 | S12: 89.96154703 | T12: 1 | U12: =IF(E12<>"Serviceable",E12,INDEX(Lists!$D$6:$D$8, MATCH(T12,Lists!$C$6:$C$8,0))) -> Serviceable | V12: =INDEX(Lists!$C$12:$C$26, MATCH(H12, Lists!$B$12:$B$26,0)) -> Sub-T
B13: 7 | C13: 1965 | D13: Wood Creos Impregnated | E13: Serviceable | F13: Class 1 | G13: 0 | H13: lv/hv/sub-transmission | I13: 1005 | J13: 2022 | K13: 80 | L13: No | M13: FALSE | N13: 10 | O13: =INDEX(Lists!$B$32:$B$40, MATCH(YEAR(TODAY())-C13, Lists!$C$32:$C$40,1)) -> 51-60 | P13: 319.9014356 | Q13: =INDEX(Data!$E$24:$E$47, MATCH(F13&D13, Data!$B$24:$B$47,0)) -> 0.0009947499309 | R13: =SUMPRODUCT((Data!$B$58:$B$60=Model!$F13)*(Data!$C$57:$K$57=Model!$O13)*(Data!$C$58:$K$60)) -> 1.355721009 | S13: 66.44278991 | T13: 1 | U13: =IF(E13<>"Serviceable",E13,INDEX(Lists!$D$6:$D$8, MATCH(T13,Lists!$C$6:$C$8,0))) -> Serviceable | V13: =INDEX(Lists!$C$12:$C$26, MATCH(H13, Lists!$B$12:$B$26,0)) -> Sub-T
B14: 8 | C14: 1965 | D14: Wood Creos Impregnated | E14: Serviceable | F14: Class 3 | G14: 0 | H14: lv/hv/sub-transmission | I14: 1005 | J14: 2021 | K14: 100 | L14: No | M14: FALSE | N14: 10 | O14: =INDEX(Lists!$B$32:$B$40, MATCH(YEAR(TODAY())-C14, Lists!$C$32:$C$40,1)) -> 51-60 | P14: 319.9014356 | Q14: =INDEX(Data!$E$24:$E$47, MATCH(F14&D14, Data!$B$24:$B$47,0)) -> 0.001068433916 | R14: =SUMPRODUCT((Data!$B$58:$B$60=Model!$F14)*(Data!$C$57:$K$57=Model!$O14)*(Data!$C$58:$K$60)) -> 2.656485925 | S14: 73.43514075 | T14: 1 | U14: =IF(E14<>"Serviceable",E14,INDEX(Lists!$D$6:$D$8, MATCH(T14,Lists!$C$6:$C$8,0))) -> Serviceable | V14: =INDEX(Lists!$C$12:$C$26, MATCH(H14, Lists!$B$12:$B$26,0)) -> Sub-T
B15: 14 | C15: 1993 | D15: Wood Untreated Dressed | E15: Serviceable | F15: Class 1 | G15: 0 | H15: lv/hv | I15: 940 | J15: 2020 | K15: 140 | L15: No | M15: FALSE | N15: 10 | O15: =INDEX(Lists!$B$32:$B$40, MATCH(YEAR(TODAY())-C15, Lists!$C$32:$C$40,1)) -> 31-40 | P15: 299.211293 | Q15: =INDEX(Data!$E$24:$E$47, MATCH(F15&D15, Data!$B$24:$B$47,0)) -> 0.001996456114 | R15: =SUMPRODUCT((Data!$B$58:$B$60=Model!$F15)*(Data!$C$57:$K$57=Model!$O15)*(Data!$C$58:$K$60)) -> 3.003845297 | S15: 109.961547 | T15: 1 | U15: =IF(E15<>"Serviceable",E15,INDEX(Lists!$D$6:$D$8, MATCH(T15,Lists!$C$6:$C$8,0))) -> Serviceable | V15: =INDEX(Lists!$C$12:$C$26, MATCH(H15, Lists!$B$12:$B$26,0)) -> HV
B16: 24 | C16: 1981 | D16: Wood Untreated Dressed | E16: Serviceable | F16: Class 1 | G16: 0 | H16: lv/sub-transmission | I16: 1131 | J16: 2020 | K16: 140 | L16: No | M16: FALSE | N16: 10 | O16: =INDEX(Lists!$B$32:$B$40, MATCH(YEAR(TODAY())-C16, Lists!$C$32:$C$40,1)) -> 41-50 | P16: 360.0084813 | Q16: =INDEX(Data!$E$24:$E$47, MATCH(F16&D16, Data!$B$24:$B$47,0)) -> 0.001996456114 | R16: =SUMPRODUCT((Data!$B$58:$B$60=Model!$F16)*(Data!$C$57:$K$57=Model!$O16)*(Data!$C$58:$K$60)) -> 1.797757842 | S16: 122.0224216 | T16: 1 | U16: =IF(E16<>"Serviceable",E16,INDEX(Lists!$D$6:$D$8, MATCH(T16,Lists!$C$6:$C$8,0))) -> Serviceable | V16: =INDEX(Lists!$C$12:$C$26, MATCH(H16, Lists!$B$12:$B$26,0)) -> Sub-T
B17: 25 | C17: 1982 | D17: Wood Untreated Dressed | E17: Serviceable | F17: Class 1 | G17: 0 | H17: lv/sub-transmission | I17: 1040 | J17: 2020 | K17: 140 | L17: No | M17: FALSE | N17: 10 | O17: =INDEX(Lists!$B$32:$B$40, MATCH(YEAR(TODAY())-C17, Lists!$C$32:$C$40,1)) -> 41-50 | P17: 331.0422816 | Q17: =INDEX(Data!$E$24:$E$47, MATCH(F17&D17, Data!$B$24:$B$47,0)) -> 0.001996456114 | R17: =SUMPRODUCT((Data!$B$58:$B$60=Model!$F17)*(Data!$C$57:$K$57=Model!$O17)*(Data!$C$58:$K$60)) -> 1.797757842 | S17: 122.0224216 | T17: 1 | U17: =IF(E17<>"Serviceable",E17,INDEX(Lists!$D$6:$D$8, MATCH(T17,Lists!$C$6:$C$8,0))) -> Serviceable | V17: =INDEX(Lists!$C$12:$C$26, MATCH(H17, Lists!$B$12:$B$26,0)) -> Sub-T
B18: 26 | C18: 1982 | D18: Wood Other | E18: Serviceable | F18: Class 1 | G18: 0 | H18: lv/sub-transmission | I18: 970 | J18: 2020 | K18: 90 | L18: No | M18: FALSE | N18: 10 | O18: =INDEX(Lists!$B$32:$B$40, MATCH(YEAR(TODAY())-C18, Lists!$C$32:$C$40,1)) -> 41-50 | P18: 308.7605896 | Q18: =INDEX(Data!$E$24:$E$47, MATCH(F18&D18, Data!$B$24:$B$47,0)) -> 0.001996456114 | R18: =SUMPRODUCT((Data!$B$58:$B$60=Model!$F18)*(Data!$C$57:$K$57=Model!$O18)*(Data!$C$58:$K$60)) -> 1.797757842 | S18: 72.02242158 | T18: 1 | U18: =IF(E18<>"Serviceable",E18,INDEX(Lists!$D$6:$D$8, MATCH(T18,Lists!$C$6:$C$8,0))) -> Serviceable | V18: =INDEX(Lists!$C$12:$C$26, MATCH(H18, Lists!$B$12:$B$26,0)) -> Sub-T
B19: 27 | C19: 1982 | D19: Wood Untreated Dressed | E19: Serviceable | F19: Class 1 | G19: 0 | H19: lv/hv/sub-transmission | I19: 910 | J19: 2020 | K19: 120 | L19: No | M19: FALSE | N19: 10 | O19: =INDEX(Lists!$B$32:$B$40, MATCH(YEAR(TODAY())-C19, Lists!$C$32:$C$40,1)) -> 41-50 | P19: 289.6619964 | Q19: =INDEX(Data!$E$24:$E$47, MATCH(F19&D19, Data!$B$24:$B$47,0)) -> 0.001996456114 | R19: =SUMPRODUCT((Data!$B$58:$B$60=Model!$F19)*(Data!$C$57:$K$57=Model!$O19)*(Data!$C$58:$K$60)) -> 1.797757842 | S19: 102.0224216 | T19: 1 | U19: =IF(E19<>"Serviceable",E19,INDEX(Lists!$D$6:$D$8, MATCH(T19,Lists!$C$6:$C$8,0))) -> Serviceable | V19: =INDEX(Lists!$C$12:$C$26, MATCH(H19, Lists!$B$12:$B$26,0)) -> Sub-T
B20: 28 | C20: 1981 | D20: Wood Untreated Dressed | E20: Serviceable | F20: Class 1 | G20: 0 | H20: lv/hv/sub-transmission | I20: 960 | J20: 2020 | K20: 140 | L20: No | M20: FALSE | N20: 10 | O20: =INDEX(Lists!$B$32:$B$40, MATCH(YEAR(TODAY())-C20, Lists!$C$32:$C$40,1)) -> 41-50 | P20: 305.5774907 | Q20: =INDEX(Data!$E$24:$E$47, MATCH(F20&D20, Data!$B$24:$B$47,0)) -> 0.001996456114 | R20: =SUMPRODUCT((Data!$B$58:$B$60=Model!$F20)*(Data!$C$57:$K$57=Model!$O20)*(Data!$C$58:$K$60)) -> 1.797757842 | S20: 122.0224216 | T20: 1 | U20: =IF(E20<>"Serviceable",E20,INDEX(Lists!$D$6:$D$8, MATCH(T20,Lists!$C$6:$C$8,0))) -> Serviceable | V20: =INDEX(Lists!$C$12:$C$26, MATCH(H20, Lists!$B$12:$B$26,0)) -> Sub-T
B21: 29 | C21: 1983 | D21: Wood Untreated Dressed | E21: Serviceable | F21: Class 1 | G21: 0 | H21: lv/hv/sub-transmission | I21: 1210 | J21: 2020 | K21: 140 | L21: No | M21: FALSE | N21: 10 | O21: =INDEX(Lists!$B$32:$B$40, MATCH(YEAR(TODAY())-C21, Lists!$C$32:$C$40,1)) -> 41-50 | P21: 385.1549623 | Q21: =INDEX(Data!$E$24:$E$47, MATCH(F21&D21, Data!$B$24:$B$47,0)) -> 0.001996456114 | R21: =SUMPRODUCT((Data!$B$58:$B$60=Model!$F21)*(Data!$C$57:$K$57=Model!$O21)*(Data!$C$58:$K$60)) -> 1.797757842 | S21: 122.0224216 | T21: 1 | U21: =IF(E21<>"Serviceable",E21,INDEX(Lists!$D$6:$D$8, MATCH(T21,Lists!$C$6:$C$8,0))) -> Serviceable | V21: =INDEX(Lists!$C$12:$C$26, MATCH(H21, Lists!$B$12:$B$26,0)) -> Sub-T
B22: 30 | C22: 1982 | D22: Wood Untreated Dressed | E22: Serviceable | F22: Class 1 | G22: 0 | H22: lv/sub-transmission | I22: 1100 | J22: 2020 | K22: 130 | L22: No | M22: FALSE | N22: 10 | O22: =INDEX(Lists!$B$32:$B$40, MATCH(YEAR(TODAY())-C22, Lists!$C$32:$C$40,1)) -> 41-50 | P22: 350.1408748 | Q22: =INDEX(Data!$E$24:$E$47, MATCH(F22&D22, Data!$B$24:$B$47,0)) -> 0.001996456114 | R22: =SUMPRODUCT((Data!$B$58:$B$60=Model!$F22)*(Data!$C$57:$K$57=Model!$O22)*(Data!$C$58:$K$60)) -> 1.797757842 | S22: 112.0224216 | T22: 1 | U22: =IF(E22<>"Serviceable",E22,INDEX(Lists!$D$6:$D$8, MATCH(T22,Lists!$C$6:$C$8,0))) -> Serviceable | V22: =INDEX(Lists!$C$12:$C$26, MATCH(H22, Lists!$B$12:$B$26,0)) -> Sub-T
B23: 31 | C23: 1982 | D23: Wood Untreated Dressed | E23: Serviceable | F23: Class 1 | G23: 0 | H23: lv/sub-transmission | I23: 942 | J23: 2020 | K23: 100 | L23: No | M23: FALSE | N23: 10 | O23: =INDEX(Lists!$B$32:$B$40, MATCH(YEAR(TODAY())-C23, Lists!$C$32:$C$40,1)) -> 41-50 | P23: 299.8479128 | Q23: =INDEX(Data!$E$24:$E$47, MATCH(F23&D23, Data!$B$24:$B$47,0)) -> 0.001996456114 | R23: =SUMPRODUCT((Data!$B$58:$B$60=Model!$F23)*(Data!$C$57:$K$57=Model!$O23)*(Data!$C$58:$K$60)) -> 1.797757842 | S23: 82.02242158 | T23: 1 | U23: =IF(E23<>"Serviceable",E23,INDEX(Lists!$D$6:$D$8, MATCH(T23,Lists!$C$6:$C$8,0))) -> Serviceable | V23: =INDEX(Lists!$C$12:$C$26, MATCH(H23, Lists!$B$12:$B$26,0)) -> Sub-T
B24: 32 | C24: 1982 | D24: Wood Untreated Dressed | E24: Serviceable | F24: Class 1 | G24: 0 | H24: lv/hv/sub-transmission | I24: 1230 | J24: 2020 | K24: 140 | L24: No | M24: FALSE | N24: 10 | O24: =INDEX(Lists!$B$32:$B$40, MATCH(YEAR(TODAY())-C24, Lists!$C$32:$C$40,1)) -> 41-50 | P24: 391.52116 | Q24: =INDEX(Data!$E$24:$E$47, MATCH(F24&D24, Data!$B$24:$B$47,0)) -> 0.001996456114 | R24: =SUMPRODUCT((Data!$B$58:$B$60=Model!$F24)*(Data!$C$57:$K$57=Model!$O24)*(Data!$C$58:$K$60)) -> 1.797757842 | S24: 122.0224216 | T24: 1 | U24: =IF(E24<>"Serviceable",E24,INDEX(Lists!$D$6:$D$8, MATCH(T24,Lists!$C$6:$C$8,0))) -> Serviceable | V24: =INDEX(Lists!$C$12:$C$26, MATCH(H24, Lists!$B$12:$B$26,0)) -> Sub-T
B25: 33 | C25: 1982 | D25: Wood Untreated Dressed | E25: Serviceable | F25: Class 1 | G25: 0 | H25: lv/hv/sub-transmission | I25: 1150 | J25: 2020 | K25: 150 | L25: No | M25: FALSE | N25: 10 | O25: =INDEX(Lists!$B$32:$B$40, MATCH(YEAR(TODAY())-C25, Lists!$C$32:$C$40,1)) -> 41-50 | P25: 366.0563691 | Q25: =INDEX(Data!$E$24:$E$47, MATCH(F25&D25, Data!$B$24:$B$47,0)) -> 0.001996456114 | R25: =SUMPRODUCT((Data!$B$58:$B$60=Model!$F25)*(Data!$C$57:$K$57=Model!$O25)*(Data!$C$58:$K$60)) -> 1.797757842 | S25: 132.0224216 | T25: 1 | U25: =IF(E25<>"Serviceable",E25,INDEX(Lists!$D$6:$D$8, MATCH(T25,Lists!$C$6:$C$8,0))) -> Serviceable | V25: =INDEX(Lists!$C$12:$C$26, MATCH(H25, Lists!$B$12:$B$26,0)) -> Sub-T
B26: 34 | C26: 1982 | D26: Wood Untreated Dressed | E26: Serviceable | F26: Class 1 | G26: 0 | H26: lv/hv/sub-transmission | I26: 1037 | J26: 2020 | K26: 140 | L26: No | M26: FALSE | N26: 10 | O26: =INDEX(Lists!$B$32:$B$40, MATCH(YEAR(TODAY())-C26, Lists!$C$32:$C$40,1)) -> 41-50 | P26: 330.087352 | Q26: =INDEX(Data!$E$24:$E$47, MATCH(F26&D26, Data!$B$24:$B$47,0)) -> 0.001996456114 | R26: =SUMPRODUCT((Data!$B$58:$B$60=Model!$F26)*(Data!$C$57:$K$57=Model!$O26)*(Data!$C$58:$K$60)) -> 1.797757842 | S26: 122.0224216 | T26: 1 | U26: =IF(E26<>"Serviceable",E26,INDEX(Lists!$D$6:$D$8, MATCH(T26,Lists!$C$6:$C$8,0))) -> Serviceable | V26: =INDEX(Lists!$C$12:$C$26, MATCH(H26, Lists!$B$12:$B$26,0)) -> Sub-T
B27: 35 | C27: 1982 | D27: Wood Untreated Dressed | E27: Serviceable | F27: Class 1 | G27: 0 | H27: sub-transmission | I27: 950 | J27: 2020 | K27: 120 | L27: No | M27: FALSE | N27: 10 | O27: =INDEX(Lists!$B$32:$B$40, MATCH(YEAR(TODAY())-C27, Lists!$C$32:$C$40,1)) -> 41-50 | P27: 302.3943919 | Q27: =INDEX(Data!$E$24:$E$47, MATCH(F27&D27, Data!$B$24:$B$47,0)) -> 0.001996456114 | R27: =SUMPRODUCT((Data!$B$58:$B$60=Model!$F27)*(Data!$C$57:$K$57=Model!$O27)*(Data!$C$58:$K$60)) -> 1.797757842 | S27: 102.0224216 | T27: 1 | U27: =IF(E27<>"Serviceable",E27,INDEX(Lists!$D$6:$D$8, MATCH(T27,Lists!$C$6:$C$8,0))) -> Serviceable | V27: =INDEX(Lists!$C$12:$C$26, MATCH(H27, Lists!$B$12:$B$26,0)) -> Sub-T
B28: 36 | C28: 1982 | D28: Wood Untreated Dressed | E28: Serviceable | F28: Class 1 | G28: 0 | H28: lv/hv/sub-transmission | I28: 1100 | J28: 2020 | K28: 140 | L28: No | M28: FALSE | N28: 10 | O28: =INDEX(Lists!$B$32:$B$40, MATCH(YEAR(TODAY())-C28, Lists!$C$32:$C$40,1)) -> 41-50 | P28: 350.1408748 | Q28: =INDEX(Data!$E$24:$E$47, MATCH(F28&D28, Data!$B$24:$B$47,0)) -> 0.001996456114 | R28: =SUMPRODUCT((Data!$B$58:$B$60=Model!$F28)*(Data!$C$57:$K$57=Model!$O28)*(Data!$C$58:$K$60)) -> 1.797757842 | S28: 122.0224216 | T28: 1 | U28: =IF(E28<>"Serviceable",E28,INDEX(Lists!$D$6:$D$8, MATCH(T28,Lists!$C$6:$C$8,0))) -> Serviceable | V28: =INDEX(Lists!$C$12:$C$26, MATCH(H28, Lists!$B$12:$B$26,0)) -> Sub-T
B29: 37 | C29: 1982 | D29: Wood Untreated Dressed | E29: Serviceable | F29: Class 1 | G29: 0 | H29: lv/future hv/sub-transmission | I29: 1220 | J29: 2020 | K29: 150 | L29: No | M29: FALSE | N29: 10 | O29: =INDEX(Lists!$B$32:$B$40, MATCH(YEAR(TODAY())-C29, Lists!$C$32:$C$40,1)) -> 41-50 | P29: 388.3380611 | Q29: =INDEX(Data!$E$24:$E$47, MATCH(F29&D29, Data!$B$24:$B$47,0)) -> 0.001996456114 | R29: =SUMPRODUCT((Data!$B$58:$B$60=Model!$F29)*(Data!$C$57:$K$57=Model!$O29)*(Data!$C$58:$K$60)) -> 1.797757842 | S29: 132.0224216 | T29: 1 | U29: =IF(E29<>"Serviceable",E29,INDEX(Lists!$D$6:$D$8, MATCH(T29,Lists!$C$6:$C$8,0))) -> Serviceable | V29: =INDEX(Lists!$C$12:$C$26, MATCH(H29, Lists!$B$12:$B$26,0)) -> Sub-T
B30: 38 | C30: 1982 | D30: Wood Untreated Dressed | E30: Serviceable | F30: Class 1 | G30: 0 | H30: lv/sub-transmission | I30: 1020 | J30: 2020 | K30: 120 | L30: No | M30: FALSE | N30: 10 | O30: =INDEX(Lists!$B$32:$B$40, MATCH(YEAR(TODAY())-C30, Lists!$C$32:$C$40,1)) -> 41-50 | P30: 324.6760839 | Q30: =INDEX(Data!$E$24:$E$47, MATCH(F30&D30, Data!$B$24:$B$47,0)) -> 0.001996456114 | R30: =SUMPRODUCT((Data!$B$58:$B$60=Model!$F30)*(Data!$C$57:$K$57=Model!$O30)*(Data!$C$58:$K$60)) -> 1.797757842 | S30: 102.0224216 | T30: 1 | U30: =IF(E30<>"Serviceable",E30,INDEX(Lists!$D$6:$D$8, MATCH(T30,Lists!$C$6:$C$8,0))) -> Serviceable | V30: =INDEX(Lists!$C$12:$C$26, MATCH(H30, Lists!$B$12:$B$26,0)) -> Sub-T
B31: 39 | C31: 1982 | D31: Wood Untreated Dressed | E31: Serviceable | F31: Class 1 | G31: 0 | H31: lv/sub-transmission | I31: 1020 | J31: 2020 | K31: 130 | L31: No | M31: FALSE | N31: 10 | O31: =INDEX(Lists!$B$32:$B$40, MATCH(YEAR(TODAY())-C31, Lists!$C$32:$C$40,1)) -> 41-50 | P31: 324.6760839 | Q31: =INDEX(Data!$E$24:$E$47, MATCH(F31&D31, Data!$B$24:$B$47,0)) -> 0.001996456114 | R31: =SUMPRODUCT((Data!$B$58:$B$60=Model!$F31)*(Data!$C$57:$K$57=Model!$O31)*(Data!$C$58:$K$60)) -> 1.797757842 | S31: 112.0224216 | T31: 1 | U31: =IF(E31<>"Serviceable",E31,INDEX(Lists!$D$6:$D$8, MATCH(T31,Lists!$C$6:$C$8,0))) -> Serviceable | V31: =INDEX(Lists!$C$12:$C$26, MATCH(H31, Lists!$B$12:$B$26,0)) -> Sub-T
B32: 40 | C32: 1982 | D32: Wood Untreated Dressed | E32: Serviceable | F32: Class 1 | G32: 0 | H32: sub-transmission | I32: 950 | J32: 2020 | K32: 140 | L32: No | M32: FALSE | N32: 10 | O32: =INDEX(Lists!$B$32:$B$40, MATCH(YEAR(TODAY())-C32, Lists!$C$32:$C$40,1)) -> 41-50 | P32: 302.3943919 | Q32: =INDEX(Data!$E$24:$E$47, MATCH(F32&D32, Data!$B$24:$B$47,0)) -> 0.001996456114 | R32: =SUMPRODUCT((Data!$B$58:$B$60=Model!$F32)*(Data!$C$57:$K$57=Model!$O32)*(Data!$C$58:$K$60)) -> 1.797757842 | S32: 122.0224216 | T32: 1 | U32: =IF(E32<>"Serviceable",E32,INDEX(Lists!$D$6:$D$8, MATCH(T32,Lists!$C$6:$C$8,0))) -> Serviceable | V32: =INDEX(Lists!$C$12:$C$26, MATCH(H32, Lists!$B$12:$B$26,0)) -> Sub-T
B33: 42 | C33: 1983 | D33: Wood Untreated Dressed | E33: Serviceable | F33: Class 1 | G33: 0 | H33: lv/sub-transmission | I33: 1270 | J33: 2020 | K33: 130 | L33: No | M33: FALSE | N33: 10 | O33: =INDEX(Lists!$B$32:$B$40, MATCH(YEAR(TODAY())-C33, Lists!$C$32:$C$40,1)) -> 41-50 | P33: 404.2535555 | Q33: =INDEX(Data!$E$24:$E$47, MATCH(F33&D33, Data!$B$24:$B$47,0)) -> 0.001996456114 | R33: =SUMPRODUCT((Data!$B$58:$B$60=Model!$F33)*(Data!$C$57:$K$57=Model!$O33)*(Data!$C$58:$K$60)) -> 1.797757842 | S33: 112.0224216 | T33: 1 | U33: =IF(E33<>"Serviceable",E33,INDEX(Lists!$D$6:$D$8, MATCH(T33,Lists!$C$6:$C$8,0))) -> Serviceable | V33: =INDEX(Lists!$C$12:$C$26, MATCH(H33, Lists!$B$12:$B$26,0)) -> Sub-T
B34: 43 | C34: 1982 | D34: Wood Untreated Dressed | E34: Serviceable | F34: Class 1 | G34: 0 | H34: lv/sub-transmission | I34: 940 | J34: 2020 | K34: 120 | L34: No | M34: FALSE | N34: 10 | O34: =INDEX(Lists!$B$32:$B$40, MATCH(YEAR(TODAY())-C34, Lists!$C$32:$C$40,1)) -> 41-50 | P34: 299.211293 | Q34: =INDEX(Data!$E$24:$E$47, MATCH(F34&D34, Data!$B$24:$B$47,0)) -> 0.001996456114 | R34: =SUMPRODUCT((Data!$B$58:$B$60=Model!$F34)*(Data!$C$57:$K$57=Model!$O34)*(Data!$C$58:$K$60)) -> 1.797757842 | S34: 102.0224216 | T34: 1 | U34: =IF(E34<>"Serviceable",E34,INDEX(Lists!$D$6:$D$8, MATCH(T34,Lists!$C$6:$C$8,0))) -> Serviceable | V34: =INDEX(Lists!$C$12:$C$26, MATCH(H34, Lists!$B$12:$B$26,0)) -> Sub-T
B35: 44 | C35: 1982 | D35: Wood Untreated Dressed | E35: Serviceable | F35: Class 1 | G35: 0 | H35: lv/future hv/sub-transmission | I35: 1160 | J35: 2020 | K35: 130 | L35: No | M35: FALSE | N35: 10 | O35: =INDEX(Lists!$B$32:$B$40, MATCH(YEAR(TODAY())-C35, Lists!$C$32:$C$40,1)) -> 41-50 | P35: 369.239468 | Q35: =INDEX(Data!$E$24:$E$47, MATCH(F35&D35, Data!$B$24:$B$47,0)) -> 0.001996456114 | R35: =SUMPRODUCT((Data!$B$58:$B$60=Model!$F35)*(Data!$C$57:$K$57=Model!$O35)*(Data!$C$58:$K$60)) -> 1.797757842 | S35: 112.0224216 | T35: 1 | U35: =IF(E35<>"Serviceable",E35,INDEX(Lists!$D$6:$D$8, MATCH(T35,Lists!$C$6:$C$8,0))) -> Serviceable | V35: =INDEX(Lists!$C$12:$C$26, MATCH(H35, Lists!$B$12:$B$26,0)) -> Sub-T
B36: 45 | C36: 1982 | D36: Wood Untreated Dressed | E36: Serviceable | F36: Class 1 | G36: 0 | H36: lv/future hv/sub-transmission | I36: 1290 | J36: 2020 | K36: 140 | L36: No | M36: FALSE | N36: 10 | O36: =INDEX(Lists!$B$32:$B$40, MATCH(YEAR(TODAY())-C36, Lists!$C$32:$C$40,1)) -> 41-50 | P36: 410.6197532 | Q36: =INDEX(Data!$E$24:$E$47, MATCH(F36&D36, Data!$B$24:$B$47,0)) -> 0.001996456114 | R36: =SUMPRODUCT((Data!$B$58:$B$60=Model!$F36)*(Data!$C$57:$K$57=Model!$O36)*(Data!$C$58:$K$60)) -> 1.797757842 | S36: 122.0224216 | T36: 1 | U36: =IF(E36<>"Serviceable",E36,INDEX(Lists!$D$6:$D$8, MATCH(T36,Lists!$C$6:$C$8,0))) -> Serviceable | V36: =INDEX(Lists!$C$12:$C$26, MATCH(H36, Lists!$B$12:$B$26,0)) -> Sub-T
B37: 46 | C37: 1985 | D37: Wood Untreated Dressed | E37: Serviceable | F37: Class 1 | G37: 0 | H37: lv/hv/sub-transmission | I37: 1170 | J37: 2020 | K37: 130 | L37: No | M37: FALSE | N37: 10 | O37: =INDEX(Lists!$B$32:$B$40, MATCH(YEAR(TODAY())-C37, Lists!$C$32:$C$40,1)) -> 31-40 | P37: 372.4225668 | Q37: =INDEX(Data!$E$24:$E$47, MATCH(F37&D37, Data!$B$24:$B$47,0)) -> 0.001996456114 | R37: =SUMPRODUCT((Data!$B$58:$B$60=Model!$F37)*(Data!$C$57:$K$57=Model!$O37)*(Data!$C$58:$K$60)) -> 3.003845297 | S37: 99.96154703 | T37: 1 | U37: =IF(E37<>"Serviceable",E37,INDEX(Lists!$D$6:$D$8, MATCH(T37,Lists!$C$6:$C$8,0))) -> Serviceable | V37: =INDEX(Lists!$C$12:$C$26, MATCH(H37, Lists!$B$12:$B$26,0)) -> Sub-T
B38: 47 | C38: 1982 | D38: Wood Untreated Dressed | E38: Serviceable | F38: Class 1 | G38: 0 | H38: lv/sub-transmission | I38: 930 | J38: 2020 | K38: 130 | L38: No | M38: FALSE | N38: 10 | O38: =INDEX(Lists!$B$32:$B$40, MATCH(YEAR(TODAY())-C38, Lists!$C$32:$C$40,1)) -> 41-50 | P38: 296.0281942 | Q38: =INDEX(Data!$E$24:$E$47, MATCH(F38&D38, Data!$B$24:$B$47,0)) -> 0.001996456114 | R38: =SUMPRODUCT((Data!$B$58:$B$60=Model!$F38)*(Data!$C$57:$K$57=Model!$O38)*(Data!$C$58:$K$60)) -> 1.797757842 | S38: 112.0224216 | T38: 1 | U38: =IF(E38<>"Serviceable",E38,INDEX(Lists!$D$6:$D$8, MATCH(T38,Lists!$C$6:$C$8,0))) -> Serviceable | V38: =INDEX(Lists!$C$12:$C$26, MATCH(H38, Lists!$B$12:$B$26,0)) -> Sub-T
B39: 48 | C39: 1982 | D39: Wood Untreated Dressed | E39: Serviceable | F39: Class 1 | G39: 0 | H39: lv/sub-transmission | I39: 1200 | J39: 2020 | K39: 110 | L39: No | M39: FALSE | N39: 10 | O39: =INDEX(Lists!$B$32:$B$40, MATCH(YEAR(TODAY())-C39, Lists!$C$32:$C$40,1)) -> 41-50 | P39: 381.9718634 | Q39: =INDEX(Data!$E$24:$E$47, MATCH(F39&D39, Data!$B$24:$B$47,0)) -> 0.001996456114 | R39: =SUMPRODUCT((Data!$B$58:$B$60=Model!$F39)*(Data!$C$57:$K$57=Model!$O39)*(Data!$C$58:$K$60)) -> 1.797757842 | S39: 92.02242158 | T39: 1 | U39: =IF(E39<>"Serviceable",E39,INDEX(Lists!$D$6:$D$8, MATCH(T39,Lists!$C$6:$C$8,0))) -> Serviceable | V39: =INDEX(Lists!$C$12:$C$26, MATCH(H39, Lists!$B$12:$B$26,0)) -> Sub-T
B40: 49 | C40: 1982 | D40: Wood Untreated Dressed | E40: Serviceable | F40: Class 1 | G40: 0 | H40: lv/sub-transmission | I40: 1100 | J40: 2020 | K40: 120 | L40: No | M40: FALSE | N40: 10 | O40: =INDEX(Lists!$B$32:$B$40, MATCH(YEAR(TODAY())-C40, Lists!$C$32:$C$40,1)) -> 41-50 | P40: 350.1408748 | Q40: =INDEX(Data!$E$24:$E$47, MATCH(F40&D40, Data!$B$24:$B$47,0)) -> 0.001996456114 | R40: =SUMPRODUCT((Data!$B$58:$B$60=Model!$F40)*(Data!$C$57:$K$57=Model!$O40)*(Data!$C$58:$K$60)) -> 1.797757842 | S40: 102.0224216 | T40: 1 | U40: =IF(E40<>"Serviceable",E40,INDEX(Lists!$D$6:$D$8, MATCH(T40,Lists!$C$6:$C$8,0))) -> Serviceable | V40: =INDEX(Lists!$C$12:$C$26, MATCH(H40, Lists!$B$12:$B$26,0)) -> Sub-T
B41: 50 | C41: 1982 | D41: Wood Untreated Dressed | E41: Serviceable | F41: Class 1 | G41: 0 | H41: lv/sub-transmission | I41: 890 | J41: 2020 | K41: 110 | L41: No | M41: FALSE | N41: 10 | O41: =INDEX(Lists!$B$32:$B$40, MATCH(YEAR(TODAY())-C41, Lists!$C$32:$C$40,1)) -> 41-50 | P41: 283.2957987 | Q41: =INDEX(Data!$E$24:$E$47, MATCH(F41&D41, Data!$B$24:$B$47,0)) -> 0.001996456114 | R41: =SUMPRODUCT((Data!$B$58:$B$60=Model!$F41)*(Data!$C$57:$K$57=Model!$O41)*(Data!$C$58:$K$60)) -> 1.797757842 | S41: 92.02242158 | T41: 1 | U41: =IF(E41<>"Serviceable",E41,INDEX(Lists!$D$6:$D$8, MATCH(T41,Lists!$C$6:$C$8,0))) -> Serviceable | V41: =INDEX(Lists!$C$12:$C$26, MATCH(H41, Lists!$B$12:$B$26,0)) -> Sub-T
B42: 51 | C42: 1982 | D42: Wood Untreated Dressed | E42: Serviceable | F42: Class 1 | G42: 0 | H42: lv/sub-transmission | I42: 1040 | J42: 2020 | K42: 130 | L42: No | M42: FALSE | N42: 10 | O42: =INDEX(Lists!$B$32:$B$40, MATCH(YEAR(TODAY())-C42, Lists!$C$32:$C$40,1)) -> 41-50 | P42: 331.0422816 | Q42: =INDEX(Data!$E$24:$E$47, MATCH(F42&D42, Data!$B$24:$B$47,0)) -> 0.001996456114 | R42: =SUMPRODUCT((Data!$B$58:$B$60=Model!$F42)*(Data!$C$57:$K$57=Model!$O42)*(Data!$C$58:$K$60)) -> 1.797757842 | S42: 112.0224216 | T42: 1 | U42: =IF(E42<>"Serviceable",E42,INDEX(Lists!$D$6:$D$8, MATCH(T42,Lists!$C$6:$C$8,0))) -> Serviceable | V42: =INDEX(Lists!$C$12:$C$26, MATCH(H42, Lists!$B$12:$B$26,0)) -> Sub-T
B43: 52 | C43: 1982 | D43: Wood Untreated Dressed | E43: Serviceable | F43: Class 1 | G43: 0 | H43: lv/sub-transmission | I43: 920 | J43: 2020 | K43: 120 | L43: No | M43: FALSE | N43: 10 | O43: =INDEX(Lists!$B$32:$B$40, MATCH(YEAR(TODAY())-C43, Lists!$C$32:$C$40,1)) -> 41-50 | P43: 292.8450953 | Q43: =INDEX(Data!$E$24:$E$47, MATCH(F43&D43, Data!$B$24:$B$47,0)) -> 0.001996456114 | R43: =SUMPRODUCT((Data!$B$58:$B$60=Model!$F43)*(Data!$C$57:$K$57=Model!$O43)*(Data!$C$58:$K$60)) -> 1.797757842 | S43: 102.0224216 | T43: 1 | U43: =IF(E43<>"Serviceable",E43,INDEX(Lists!$D$6:$D$8, MATCH(T43,Lists!$C$6:$C$8,0))) -> Serviceable | V43: =INDEX(Lists!$C$12:$C$26, MATCH(H43, Lists!$B$12:$B$26,0)) -> Sub-T
B44: 53 | C44: 1982 | D44: Wood Untreated Dressed | E44: Serviceable | F44: Class 1 | G44: 0 | H44: lv/sub-transmission | I44: 1320 | J44: 2020 | K44: 120 | L44: No | M44: FALSE | N44: 10 | O44: =INDEX(Lists!$B$32:$B$40, MATCH(YEAR(TODAY())-C44, Lists!$C$32:$C$40,1)) -> 41-50 | P44: 420.1690498 | Q44: =INDEX(Data!$E$24:$E$47, MATCH(F44&D44, Data!$B$24:$B$47,0)) -> 0.001996456114 | R44: =SUMPRODUCT((Data!$B$58:$B$60=Model!$F44)*(Data!$C$57:$K$57=Model!$O44)*(Data!$C$58:$K$60)) -> 1.797757842 | S44: 102.0224216 | T44: 1 | U44: =IF(E44<>"Serviceable",E44,INDEX(Lists!$D$6:$D$8, MATCH(T44,Lists!$C$6:$C$8,0))) -> Serviceable | V44: =INDEX(Lists!$C$12:$C$26, MATCH(H44, Lists!$B$12:$B$26,0)) -> Sub-T
B45: 54 | C45: 1982 | D45: Wood Untreated Dressed | E45: Serviceable | F45: Class 1 | G45: 0 | H45: lv/sub-transmission | I45: 1200 | J45: 2020 | K45: 150 | L45: No | M45: FALSE | N45: 10 | O45: =INDEX(Lists!$B$32:$B$40, MATCH(YEAR(TODAY())-C45, Lists!$C$32:$C$40,1)) -> 41-50 | P45: 381.9718634 | Q45: =INDEX(Data!$E$24:$E$47, MATCH(F45&D45, Data!$B$24:$B$47,0)) -> 0.001996456114 | R45: =SUMPRODUCT((Data!$B$58:$B$60=Model!$F45)*(Data!$C$57:$K$57=Model!$O45)*(Data!$C$58:$K$60)) -> 1.797757842 | S45: 132.0224216 | T45: 1 | U45: =IF(E45<>"Serviceable",E45,INDEX(Lists!$D$6:$D$8, MATCH(T45,Lists!$C$6:$C$8,0))) -> Serviceable | V45: =INDEX(Lists!$C$12:$C$26, MATCH(H45, Lists!$B$12:$B$26,0)) -> Sub-T
B46: 55 | C46: 1982 | D46: Wood Untreated Dressed | E46: Serviceable | F46: Class 1 | G46: 0 | H46: lv/sub-transmission | I46: 911 | J46: 2020 | K46: 110 | L46: No | M46: FALSE | N46: 10 | O46: =INDEX(Lists!$B$32:$B$40, MATCH(YEAR(TODAY())-C46, Lists!$C$32:$C$40,1)) -> 41-50 | P46: 289.9803063 | Q46: =INDEX(Data!$E$24:$E$47, MATCH(F46&D46, Data!$B$24:$B$47,0)) -> 0.001996456114 | R46: =SUMPRODUCT((Data!$B$58:$B$60=Model!$F46)*(Data!$C$57:$K$57=Model!$O46)*(Data!$C$58:$K$60)) -> 1.797757842 | S46: 92.02242158 | T46: 1 | U46: =IF(E46<>"Serviceable",E46,INDEX(Lists!$D$6:$D$8, MATCH(T46,Lists!$C$6:$C$8,0))) -> Serviceable | V46: =INDEX(Lists!$C$12:$C$26, MATCH(H46, Lists!$B$12:$B$26,0)) -> Sub-T
B47: 56 | C47: 1981 | D47: Wood Untreated Dressed | E47: Serviceable | F47: Class 1 | G47: 0 | H47: lv/sub-transmission | I47: 1080 | J47: 2020 | K47: 130 | L47: No | M47: FALSE | N47: 10 | O47: =INDEX(Lists!$B$32:$B$40, MATCH(YEAR(TODAY())-C47, Lists!$C$32:$C$40,1)) -> 41-50 | P47: 343.7746771 | Q47: =INDEX(Data!$E$24:$E$47, MATCH(F47&D47, Data!$B$24:$B$47,0)) -> 0.001996456114 | R47: =SUMPRODUCT((Data!$B$58:$B$60=Model!$F47)*(Data!$C$57:$K$57=Model!$O47)*(Data!$C$58:$K$60)) -> 1.797757842 | S47: 112.0224216 | T47: 1 | U47: =IF(E47<>"Serviceable",E47,INDEX(Lists!$D$6:$D$8, MATCH(T47,Lists!$C$6:$C$8,0))) -> Serviceable | V47: =INDEX(Lists!$C$12:$C$26, MATCH(H47, Lists!$B$12:$B$26,0)) -> Sub-T
B48: 57 | C48: 1982 | D48: Wood Untreated Dressed | E48: Serviceable | F48: Class 1 | G48: 0 | H48: lv/sub-transmission | I48: 970 | J48: 2020 | K48: 120 | L48: No | M48: FALSE | N48: 10 | O48: =INDEX(Lists!$B$32:$B$40, MATCH(YEAR(TODAY())-C48, Lists!$C$32:$C$40,1)) -> 41-50 | P48: 308.7605896 | Q48: =INDEX(Data!$E$24:$E$47, MATCH(F48&D48, Data!$B$24:$B$47,0)) -> 0.001996456114 | R48: =SUMPRODUCT((Data!$B$58:$B$60=Model!$F48)*(Data!$C$57:$K$57=Model!$O48)*(Data!$C$58:$K$60)) -> 1.797757842 | S48: 102.0224216 | T48: 1 | U48: =IF(E48<>"Serviceable",E48,INDEX(Lists!$D$6:$D$8, MATCH(T48,Lists!$C$6:$C$8,0))) -> Serviceable | V48: =INDEX(Lists!$C$12:$C$26, MATCH(H48, Lists!$B$12:$B$26,0)) -> Sub-T
B49: 58 | C49: 1981 | D49: Wood Untreated Dressed | E49: Serviceable | F49: Class 1 | G49: 0 | H49: lv/sub-transmission | I49: 1040 | J49: 2020 | K49: 130 | L49: No | M49: FALSE | N49: 10 | O49: =INDEX(Lists!$B$32:$B$40, MATCH(YEAR(TODAY())-C49, Lists!$C$32:$C$40,1)) -> 41-50 | P49: 331.0422816 | Q49: =INDEX(Data!$E$24:$E$47, MATCH(F49&D49, Data!$B$24:$B$47,0)) -> 0.001996456114 | R49: =SUMPRODUCT((Data!$B$58:$B$60=Model!$F49)*(Data!$C$57:$K$57=Model!$O49)*(Data!$C$58:$K$60)) -> 1.797757842 | S49: 112.0224216 | T49: 1 | U49: =IF(E49<>"Serviceable",E49,INDEX(Lists!$D$6:$D$8, MATCH(T49,Lists!$C$6:$C$8,0))) -> Serviceable | V49: =INDEX(Lists!$C$12:$C$26, MATCH(H49, Lists!$B$12:$B$26,0)) -> Sub-T
B50: 59 | C50: 1982 | D50: Wood Untreated Dressed | E50: Serviceable | F50: Class 1 | G50: 0 | H50: lv/hv/sub-transmission | I50: 880 | J50: 2020 | K50: 140 | L50: No | M50: FALSE | N50: 10 | O50: =INDEX(Lists!$B$32:$B$40, MATCH(YEAR(TODAY())-C50, Lists!$C$32:$C$40,1)) -> 41-50 | P50: 280.1126998 | Q50: =INDEX(Data!$E$24:$E$47, MATCH(F50&D50, Data!$B$24:$B$47,0)) -> 0.001996456114 | R50: =SUMPRODUCT((Data!$B$58:$B$60=Model!$F50)*(Data!$C$57:$K$57=Model!$O50)*(Data!$C$58:$K$60)) -> 1.797757842 | S50: 122.0224216 | T50: 1 | U50: =IF(E50<>"Serviceable",E50,INDEX(Lists!$D$6:$D$8, MATCH(T50,Lists!$C$6:$C$8,0))) -> Serviceable | V50: =INDEX(Lists!$C$12:$C$26, MATCH(H50, Lists!$B$12:$B$26,0)) -> Sub-T
B51: 60 | C51: 1982 | D51: Wood Untreated Dressed | E51: Serviceable | F51: Class 1 | G51: 0 | H51: lv/hv/sub-transmission | I51: 880 | J51: 2020 | K51: 140 | L51: No | M51: FALSE | N51: 10 | O51: =INDEX(Lists!$B$32:$B$40, MATCH(YEAR(TODAY())-C51, Lists!$C$32:$C$40,1)) -> 41-50 | P51: 280.1126998 | Q51: =INDEX(Data!$E$24:$E$47, MATCH(F51&D51, Data!$B$24:$B$47,0)) -> 0.001996456114 | R51: =SUMPRODUCT((Data!$B$58:$B$60=Model!$F51)*(Data!$C$57:$K$57=Model!$O51)*(Data!$C$58:$K$60)) -> 1.797757842 | S51: 122.0224216 | T51: 1 | U51: =IF(E51<>"Serviceable",E51,INDEX(Lists!$D$6:$D$8, MATCH(T51,Lists!$C$6:$C$8,0))) -> Serviceable | V51: =INDEX(Lists!$C$12:$C$26, MATCH(H51, Lists!$B$12:$B$26,0)) -> Sub-T
B52: 61 | C52: 1997 | D52: Wood Untreated Dressed | E52: Serviceable | F52: Class 1 | G52: 0 | H52: lv/hv/sub-transmission | I52: 1100 | J52: 2020 | K52: 150 | L52: No | M52: FALSE | N52: 10 | O52: =INDEX(Lists!$B$32:$B$40, MATCH(YEAR(TODAY())-C52, Lists!$C$32:$C$40,1)) -> 21-30 | P52: 350.1408748 | Q52: =INDEX(Data!$E$24:$E$47, MATCH(F52&D52, Data!$B$24:$B$47,0)) -> 0.001996456114 | R52: =SUMPRODUCT((Data!$B$58:$B$60=Model!$F52)*(Data!$C$57:$K$57=Model!$O52)*(Data!$C$58:$K$60)) -> 2.165165223 | S52: 128.3483478 | T52: 1 | U52: =IF(E52<>"Serviceable",E52,INDEX(Lists!$D$6:$D$8, MATCH(T52,Lists!$C$6:$C$8,0))) -> Serviceable | V52: =INDEX(Lists!$C$12:$C$26, MATCH(H52, Lists!$B$12:$B$26,0)) -> Sub-T
B53: 62 | C53: 1982 | D53: Wood Untreated Dressed | E53: Serviceable | F53: Class 1 | G53: 0 | H53: lv/hv/sub-transmission | I53: 1090 | J53: 2020 | K53: 150 | L53: No | M53: FALSE | N53: 10 | O53: =INDEX(Lists!$B$32:$B$40, MATCH(YEAR(TODAY())-C53, Lists!$C$32:$C$40,1)) -> 41-50 | P53: 346.9577759 | Q53: =INDEX(Data!$E$24:$E$47, MATCH(F53&D53, Data!$B$24:$B$47,0)) -> 0.001996456114 | R53: =SUMPRODUCT((Data!$B$58:$B$60=Model!$F53)*(Data!$C$57:$K$57=Model!$O53)*(Data!$C$58:$K$60)) -> 1.797757842 | S53: 132.0224216 | T53: 1 | U53: =IF(E53<>"Serviceable",E53,INDEX(Lists!$D$6:$D$8, MATCH(T53,Lists!$C$6:$C$8,0))) -> Serviceable | V53: =INDEX(Lists!$C$12:$C$26, MATCH(H53, Lists!$B$12:$B$26,0)) -> Sub-T
B54: 63 | C54: 1982 | D54: Wood Untreated Dressed | E54: Serviceable | F54: Class 1 | G54: 0 | H54: lv/hv/sub-transmission | I54: 940 | J54: 2020 | K54: 130 | L54: No | M54: FALSE | N54: 10 | O54: =INDEX(Lists!$B$32:$B$40, MATCH(YEAR(TODAY())-C54, Lists!$C$32:$C$40,1)) -> 41-50 | P54: 299.211293 | Q54: =INDEX(Data!$E$24:$E$47, MATCH(F54&D54, Data!$B$24:$B$47,0)) -> 0.001996456114 | R54: =SUMPRODUCT((Data!$B$58:$B$60=Model!$F54)*(Data!$C$57:$K$57=Model!$O54)*(Data!$C$58:$K$60)) -> 1.797757842 | S54: 112.0224216 | T54: 1 | U54: =IF(E54<>"Serviceable",E54,INDEX(Lists!$D$6:$D$8, MATCH(T54,Lists!$C$6:$C$8,0))) -> Serviceable | V54: =INDEX(Lists!$C$12:$C$26, MATCH(H54, Lists!$B$12:$B$26,0)) -> Sub-T
B55: 65 | C55: 1982 | D55: Wood Untreated Dressed | E55: Serviceable | F55: Class 1 | G55: 0 | H55: lv/hv/sub-transmission | I55: 1160 | J55: 2020 | K55: 130 | L55: No | M55: FALSE | N55: 10 | O55: =INDEX(Lists!$B$32:$B$40, MATCH(YEAR(TODAY())-C55, Lists!$C$32:$C$40,1)) -> 41-50 | P55: 369.239468 | Q55: =INDEX(Data!$E$24:$E$47, MATCH(F55&D55, Data!$B$24:$B$47,0)) -> 0.001996456114 | R55: =SUMPRODUCT((Data!$B$58:$B$60=Model!$F55)*(Data!$C$57:$K$57=Model!$O55)*(Data!$C$58:$K$60)) -> 1.797757842 | S55: 112.0224216 | T55: 1 | U55: =IF(E55<>"Serviceable",E55,INDEX(Lists!$D$6:$D$8, MATCH(T55,Lists!$C$6:$C$8,0))) -> Serviceable | V55: =INDEX(Lists!$C$12:$C$26, MATCH(H55, Lists!$B$12:$B$26,0)) -> Sub-T
B56: 66 | C56: 1981 | D56: Wood Untreated Dressed | E56: Serviceable | F56: Class 1 | G56: 0 | H56: lv/hv/sub-transmission | I56: 1000 | J56: 2020 | K56: 120 | L56: No | M56: FALSE | N56: 10 | O56: =INDEX(Lists!$B$32:$B$40, MATCH(YEAR(TODAY())-C56, Lists!$C$32:$C$40,1)) -> 41-50 | P56: 318.3098862 | Q56: =INDEX(Data!$E$24:$E$47, MATCH(F56&D56, Data!$B$24:$B$47,0)) -> 0.001996456114 | R56: =SUMPRODUCT((Data!$B$58:$B$60=Model!$F56)*(Data!$C$57:$K$57=Model!$O56)*(Data!$C$58:$K$60)) -> 1.797757842 | S56: 102.0224216 | T56: 1 | U56: =IF(E56<>"Serviceable",E56,INDEX(Lists!$D$6:$D$8, MATCH(T56,Lists!$C$6:$C$8,0))) -> Serviceable | V56: =INDEX(Lists!$C$12:$C$26, MATCH(H56, Lists!$B$12:$B$26,0)) -> Sub-T
B57: 67 | C57: 1982 | D57: Wood Untreated Dressed | E57: Serviceable | F57: Class 1 | G57: 0 | H57: hv/sub-transmission | I57: 1170 | J57: 2020 | K57: 130 | L57: No | M57: FALSE | N57: 10 | O57: =INDEX(Lists!$B$32:$B$40, MATCH(YEAR(TODAY())-C57, Lists!$C$32:$C$40,1)) -> 41-50 | P57: 372.4225668 | Q57: =INDEX(Data!$E$24:$E$47, MATCH(F57&D57, Data!$B$24:$B$47,0)) -> 0.001996456114 | R57: =SUMPRODUCT((Data!$B$58:$B$60=Model!$F57)*(Data!$C$57:$K$57=Model!$O57)*(Data!$C$58:$K$60)) -> 1.797757842 | S57: 112.0224216 | T57: 1 | U57: =IF(E57<>"Serviceable",E57,INDEX(Lists!$D$6:$D$8, MATCH(T57,Lists!$C$6:$C$8,0))) -> Serviceable | V57: =INDEX(Lists!$C$12:$C$26, MATCH(H57, Lists!$B$12:$B$26,0)) -> Sub-T
B58: 68 | C58: 1981 | D58: Wood Untreated Dressed | E58: Serviceable | F58: Class 1 | G58: 0 | H58: sub-transmission | I58: 942 | J58: 2020 | K58: 120 | L58: No | M58: FALSE | N58: 10 | O58: =INDEX(Lists!$B$32:$B$40, MATCH(YEAR(TODAY())-C58, Lists!$C$32:$C$40,1)) -> 41-50 | P58: 299.8479128 | Q58: =INDEX(Data!$E$24:$E$47, MATCH(F58&D58, Data!$B$24:$B$47,0)) -> 0.001996456114 | R58: =SUMPRODUCT((Data!$B$58:$B$60=Model!$F58)*(Data!$C$57:$K$57=Model!$O58)*(Data!$C$58:$K$60)) -> 1.797757842 | S58: 102.0224216 | T58: 1 | U58: =IF(E58<>"Serviceable",E58,INDEX(Lists!$D$6:$D$8, MATCH(T58,Lists!$C$6:$C$8,0))) -> Serviceable | V58: =INDEX(Lists!$C$12:$C$26, MATCH(H58, Lists!$B$12:$B$26,0)) -> Sub-T
B59: 69 | C59: 1981 | D59: Wood Untreated Dressed | E59: Serviceable | F59: Class 1 | G59: 0 | H59: lv/sub-transmission | I59: 900 | J59: 2020 | K59: 120 | L59: No | M59: FALSE | N59: 10 | O59: =INDEX(Lists!$B$32:$B$40, MATCH(YEAR(TODAY())-C59, Lists!$C$32:$C$40,1)) -> 41-50 | P59: 286.4788976 | Q59: =INDEX(Data!$E$24:$E$47, MATCH(F59&D59, Data!$B$24:$B$47,0)) -> 0.001996456114 | R59: =SUMPRODUCT((Data!$B$58:$B$60=Model!$F59)*(Data!$C$57:$K$57=Model!$O59)*(Data!$C$58:$K$60)) -> 1.797757842 | S59: 102.0224216 | T59: 1 | U59: =IF(E59<>"Serviceable",E59,INDEX(Lists!$D$6:$D$8, MATCH(T59,Lists!$C$6:$C$8,0))) -> Serviceable | V59: =INDEX(Lists!$C$12:$C$26, MATCH(H59, Lists!$B$12:$B$26,0)) -> Sub-T
B60: 70 | C60: 1983 | D60: Wood Untreated Dressed | E60: Serviceable | F60: Class 1 | G60: 0 | H60: lv/sub-transmission | I60: 1060 | J60: 2020 | K60: 120 | L60: No | M60: FALSE | N60: 10 | O60: =INDEX(Lists!$B$32:$B$40, MATCH(YEAR(TODAY())-C60, Lists!$C$32:$C$40,1)) -> 41-50 | P60: 337.4084794 | Q60: =INDEX(Data!$E$24:$E$47, MATCH(F60&D60, Data!$B$24:$B$47,0)) -> 0.001996456114 | R60: =SUMPRODUCT((Data!$B$58:$B$60=Model!$F60)*(Data!$C$57:$K$57=Model!$O60)*(Data!$C$58:$K$60)) -> 1.797757842 | S60: 102.0224216 | T60: 1 | U60: =IF(E60<>"Serviceable",E60,INDEX(Lists!$D$6:$D$8, MATCH(T60,Lists!$C$6:$C$8,0))) -> Serviceable | V60: =INDEX(Lists!$C$12:$C$26, MATCH(H60, Lists!$B$12:$B$26,0)) -> Sub-T
B61: 72 | C61: 1982 | D61: Wood Untreated Dressed | E61: Serviceable | F61: Class 1 | G61: 0 | H61: lv/sub-transmission | I61: 1350 | J61: 2020 | K61: 140 | L61: No | M61: FALSE | N61: 10 | O61: =INDEX(Lists!$B$32:$B$40, MATCH(YEAR(TODAY())-C61, Lists!$C$32:$C$40,1)) -> 41-50 | P61: 429.7183463 | Q61: =INDEX(Data!$E$24:$E$47, MATCH(F61&D61, Data!$B$24:$B$47,0)) -> 0.001996456114 | R61: =SUMPRODUCT((Data!$B$58:$B$60=Model!$F61)*(Data!$C$57:$K$57=Model!$O61)*(Data!$C$58:$K$60)) -> 1.797757842 | S61: 122.0224216 | T61: 1 | U61: =IF(E61<>"Serviceable",E61,INDEX(Lists!$D$6:$D$8, MATCH(T61,Lists!$C$6:$C$8,0))) -> Serviceable | V61: =INDEX(Lists!$C$12:$C$26, MATCH(H61, Lists!$B$12:$B$26,0)) -> Sub-T
B62: 73 | C62: 1983 | D62: Wood Untreated Dressed | E62: Serviceable | F62: Class 1 | G62: 0 | H62: lv/sub-transmission | I62: 1090 | J62: 2020 | K62: 120 | L62: No | M62: FALSE | N62: 10 | O62: =INDEX(Lists!$B$32:$B$40, MATCH(YEAR(TODAY())-C62, Lists!$C$32:$C$40,1)) -> 41-50 | P62: 346.9577759 | Q62: =INDEX(Data!$E$24:$E$47, MATCH(F62&D62, Data!$B$24:$B$47,0)) -> 0.001996456114 | R62: =SUMPRODUCT((Data!$B$58:$B$60=Model!$F62)*(Data!$C$57:$K$57=Model!$O62)*(Data!$C$58:$K$60)) -> 1.797757842 | S62: 102.0224216 | T62: 1 | U62: =IF(E62<>"Serviceable",E62,INDEX(Lists!$D$6:$D$8, MATCH(T62,Lists!$C$6:$C$8,0))) -> Serviceable | V62: =INDEX(Lists!$C$12:$C$26, MATCH(H62, Lists!$B$12:$B$26,0)) -> Sub-T
B63: 74 | C63: 1981 | D63: Wood Untreated Dressed | E63: Serviceable | F63: Class 1 | G63: 0 | H63: lv/sub-transmission | I63: 1020 | J63: 2020 | K63: 100 | L63: No | M63: FALSE | N63: 10 | O63: =INDEX(Lists!$B$32:$B$40, MATCH(YEAR(TODAY())-C63, Lists!$C$32:$C$40,1)) -> 41-50 | P63: 324.6760839 | Q63: =INDEX(Data!$E$24:$E$47, MATCH(F63&D63, Data!$B$24:$B$47,0)) -> 0.001996456114 | R63: =SUMPRODUCT((Data!$B$58:$B$60=Model!$F63)*(Data!$C$57:$K$57=Model!$O63)*(Data!$C$58:$K$60)) -> 1.797757842 | S63: 82.02242158 | T63: 1 | U63: =IF(E63<>"Serviceable",E63,INDEX(Lists!$D$6:$D$8, MATCH(T63,Lists!$C$6:$C$8,0))) -> Serviceable | V63: =INDEX(Lists!$C$12:$C$26, MATCH(H63, Lists!$B$12:$B$26,0)) -> Sub-T
B64: 75 | C64: 1981 | D64: Wood Untreated Dressed | E64: Serviceable | F64: Class 1 | G64: 0 | H64: sub-transmission | I64: 1050 | J64: 2020 | K64: 130 | L64: No | M64: FALSE | N64: 10 | O64: =INDEX(Lists!$B$32:$B$40, MATCH(YEAR(TODAY())-C64, Lists!$C$32:$C$40,1)) -> 41-50 | P64: 334.2253805 | Q64: =INDEX(Data!$E$24:$E$47, MATCH(F64&D64, Data!$B$24:$B$47,0)) -> 0.001996456114 | R64: =SUMPRODUCT((Data!$B$58:$B$60=Model!$F64)*(Data!$C$57:$K$57=Model!$O64)*(Data!$C$58:$K$60)) -> 1.797757842 | S64: 112.0224216 | T64: 1 | U64: =IF(E64<>"Serviceable",E64,INDEX(Lists!$D$6:$D$8, MATCH(T64,Lists!$C$6:$C$8,0))) -> Serviceable | V64: =INDEX(Lists!$C$12:$C$26, MATCH(H64, Lists!$B$12:$B$26,0)) -> Sub-T
B65: 76 | C65: 1983 | D65: Wood Untreated Dressed | E65: Serviceable | F65: Class 1 | G65: 0 | H65: lv/hv/sub-transmission | I65: 1340 | J65: 2021 | K65: 150 | L65: No | M65: FALSE | N65: 10 | O65: =INDEX(Lists!$B$32:$B$40, MATCH(YEAR(TODAY())-C65, Lists!$C$32:$C$40,1)) -> 41-50 | P65: 426.5352475 | Q65: =INDEX(Data!$E$24:$E$47, MATCH(F65&D65, Data!$B$24:$B$47,0)) -> 0.001996456114 | R65: =SUMPRODUCT((Data!$B$58:$B$60=Model!$F65)*(Data!$C$57:$K$57=Model!$O65)*(Data!$C$58:$K$60)) -> 1.797757842 | S65: 132.0224216 | T65: 1 | U65: =IF(E65<>"Serviceable",E65,INDEX(Lists!$D$6:$D$8, MATCH(T65,Lists!$C$6:$C$8,0))) -> Serviceable | V65: =INDEX(Lists!$C$12:$C$26, MATCH(H65, Lists!$B$12:$B$26,0)) -> Sub-T
B66: 77 | C66: 1981 | D66: Wood Untreated Dressed | E66: Serviceable | F66: Class 1 | G66: 0 | H66: lv/hv/sub-transmission | I66: 1020 | J66: 2021 | K66: 120 | L66: No | M66: FALSE | N66: 10 | O66: =INDEX(Lists!$B$32:$B$40, MATCH(YEAR(TODAY())-C66, Lists!$C$32:$C$40,1)) -> 41-50 | P66: 324.6760839 | Q66: =INDEX(Data!$E$24:$E$47, MATCH(F66&D66, Data!$B$24:$B$47,0)) -> 0.001996456114 | R66: =SUMPRODUCT((Data!$B$58:$B$60=Model!$F66)*(Data!$C$57:$K$57=Model!$O66)*(Data!$C$58:$K$60)) -> 1.797757842 | S66: 102.0224216 | T66: 1 | U66: =IF(E66<>"Serviceable",E66,INDEX(Lists!$D$6:$D$8, MATCH(T66,Lists!$C$6:$C$8,0))) -> Serviceable | V66: =INDEX(Lists!$C$12:$C$26, MATCH(H66, Lists!$B$12:$B$26,0)) -> Sub-T
B67: 78 | C67: 1983 | D67: Wood Untreated Dressed | E67: Serviceable | F67: Class 1 | G67: 0 | H67: lv/hv/sub-transmission | I67: 1360 | J67: 2021 | K67: 150 | L67: No | M67: FALSE | N67: 10 | O67: =INDEX(Lists!$B$32:$B$40, MATCH(YEAR(TODAY())-C67, Lists!$C$32:$C$40,1)) -> 41-50 | P67: 432.9014452 | Q67: =INDEX(Data!$E$24:$E$47, MATCH(F67&D67, Data!$B$24:$B$47,0)) -> 0.001996456114 | R67: =SUMPRODUCT((Data!$B$58:$B$60=Model!$F67)*(Data!$C$57:$K$57=Model!$O67)*(Data!$C$58:$K$60)) -> 1.797757842 | S67: 132.0224216 | T67: 1 | U67: =IF(E67<>"Serviceable",E67,INDEX(Lists!$D$6:$D$8, MATCH(T67,Lists!$C$6:$C$8,0))) -> Serviceable | V67: =INDEX(Lists!$C$12:$C$26, MATCH(H67, Lists!$B$12:$B$26,0)) -> Sub-T
B68: 80 | C68: 1983 | D68: Wood Untreated Dressed | E68: Serviceable | F68: Class 1 | G68: 0 | H68: lv/hv/sub-transmission | I68: 1230 | J68: 2021 | K68: 140 | L68: No | M68: FALSE | N68: 10 | O68: =INDEX(Lists!$B$32:$B$40, MATCH(YEAR(TODAY())-C68, Lists!$C$32:$C$40,1)) -> 41-50 | P68: 391.52116 | Q68: =INDEX(Data!$E$24:$E$47, MATCH(F68&D68, Data!$B$24:$B$47,0)) -> 0.001996456114 | R68: =SUMPRODUCT((Data!$B$58:$B$60=Model!$F68)*(Data!$C$57:$K$57=Model!$O68)*(Data!$C$58:$K$60)) -> 1.797757842 | S68: 122.0224216 | T68: 1 | U68: =IF(E68<>"Serviceable",E68,INDEX(Lists!$D$6:$D$8, MATCH(T68,Lists!$C$6:$C$8,0))) -> Serviceable | V68: =INDEX(Lists!$C$12:$C$26, MATCH(H68, Lists!$B$12:$B$26,0)) -> Sub-T
B69: 81 | C69: 1983 | D69: Wood Untreated Dressed | E69: Serviceable | F69: Class 1 | G69: 0 | H69: lv/hv/sub-transmission | I69: 1380 | J69: 2021 | K69: 140 | L69: No | M69: FALSE | N69: 10 | O69: =INDEX(Lists!$B$32:$B$40, MATCH(YEAR(TODAY())-C69, Lists!$C$32:$C$40,1)) -> 41-50 | P69: 439.2676429 | Q69: =INDEX(Data!$E$24:$E$47, MATCH(F69&D69, Data!$B$24:$B$47,0)) -> 0.001996456114 | R69: =SUMPRODUCT((Data!$B$58:$B$60=Model!$F69)*(Data!$C$57:$K$57=Model!$O69)*(Data!$C$58:$K$60)) -> 1.797757842 | S69: 122.0224216 | T69: 1 | U69: =IF(E69<>"Serviceable",E69,INDEX(Lists!$D$6:$D$8, MATCH(T69,Lists!$C$6:$C$8,0))) -> Serviceable | V69: =INDEX(Lists!$C$12:$C$26, MATCH(H69, Lists!$B$12:$B$26,0)) -> Sub-T
B70: 82 | C70: 1985 | D70: Wood Untreated Dressed | E70: Serviceable | F70: Class 1 | G70: 0 | H70: lv/hv/sub-transmission | I70: 1200 | J70: 2021 | K70: 140 | L70: No | M70: FALSE | N70: 10 | O70: =INDEX(Lists!$B$32:$B$40, MATCH(YEAR(TODAY())-C70, Lists!$C$32:$C$40,1)) -> 31-40 | P70: 381.9718634 | Q70: =INDEX(Data!$E$24:$E$47, MATCH(F70&D70, Data!$B$24:$B$47,0)) -> 0.001996456114 | R70: =SUMPRODUCT((Data!$B$58:$B$60=Model!$F70)*(Data!$C$57:$K$57=Model!$O70)*(Data!$C$58:$K$60)) -> 3.003845297 | S70: 109.961547 | T70: 1 | U70: =IF(E70<>"Serviceable",E70,INDEX(Lists!$D$6:$D$8, MATCH(T70,Lists!$C$6:$C$8,0))) -> Serviceable | V70: =INDEX(Lists!$C$12:$C$26, MATCH(H70, Lists!$B$12:$B$26,0)) -> Sub-T
B71: 83 | C71: 1983 | D71: Wood Untreated Dressed | E71: Serviceable | F71: Class 1 | G71: 0 | H71: lv/hv/sub-transmission | I71: 942 | J71: 2021 | K71: 120 | L71: No | M71: FALSE | N71: 10 | O71: =INDEX(Lists!$B$32:$B$40, MATCH(YEAR(TODAY())-C71, Lists!$C$32:$C$40,1)) -> 41-50 | P71: 299.8479128 | Q71: =INDEX(Data!$E$24:$E$47, MATCH(F71&D71, Data!$B$24:$B$47,0)) -> 0.001996456114 | R71: =SUMPRODUCT((Data!$B$58:$B$60=Model!$F71)*(Data!$C$57:$K$57=Model!$O71)*(Data!$C$58:$K$60)) -> 1.797757842 | S71: 102.0224216 | T71: 1 | U71: =IF(E71<>"Serviceable",E71,INDEX(Lists!$D$6:$D$8, MATCH(T71,Lists!$C$6:$C$8,0))) -> Serviceable | V71: =INDEX(Lists!$C$12:$C$26, MATCH(H71, Lists!$B$12:$B$26,0)) -> Sub-T
B72: 84 | C72: 1983 | D72: Wood Untreated Dressed | E72: Serviceable | F72: Class 1 | G72: 0 | H72: lv/hv/sub-transmission | I72: 1340 | J72: 2021 | K72: 130 | L72: No | M72: FALSE | N72: =IF(L72="No",ROUND((End_year-J72)/5,0)*5,ROUND((End_year-J72)/3,0)*3) -> 10 | O72: =INDEX(Lists!$B$32:$B$40, MATCH(YEAR(TODAY())-C72, Lists!$C$32:$C$40,1)) -> 41-50 | P72: 426.5352475 | Q72: =INDEX(Data!$E$24:$E$47, MATCH(F72&D72, Data!$B$24:$B$47,0)) -> 0.001996456114 | R72: =SUMPRODUCT((Data!$B$58:$B$60=Model!$F72)*(Data!$C$57:$K$57=Model!$O72)*(Data!$C$58:$K$60)) -> 1.797757842 | S72: =IF(IF(K72>=700,999,(K72-R72*N72))<0,0,IF(K72>=700,999,(K72-R72*N72))) -> 112.0224216 | T72: =IF(S72<30,3,IF(AND(F72="Class 1",S72<50),2,IF(AND(F72="Class 1",S72>=50),1,IF(S72<70,2,1)))) -> 1 | U72: =IF(E72<>"Serviceable",E72,INDEX(Lists!$D$6:$D$8, MATCH(T72,Lists!$C$6:$C$8,0))) -> Serviceable | V72: =INDEX(Lists!$C$12:$C$26, MATCH(H72, Lists!$B$12:$B$26,0)) -> Sub-T
B73: 85 | C73: 1983 | D73: Wood Untreated Dressed | E73: Serviceable | F73: Class 1 | G73: 0 | H73: lv/hv/sub-transmission | I73: 1250 | J73: 2021 | K73: 130 | L73: No | M73: =IF(G73=0,FALSE,TRUE) -> FALSE | N73: 10 | O73: =INDEX(Lists!$B$32:$B$40, MATCH(YEAR(TODAY())-C73, Lists!$C$32:$C$40,1)) -> 41-50 | P73: =I73/PI() -> 397.8873577 | Q73: =INDEX(Data!$E$24:$E$47, MATCH(F73&D73, Data!$B$24:$B$47,0)) -> 0.001996456114 | R73: =SUMPRODUCT((Data!$B$58:$B$60=Model!$F73)*(Data!$C$57:$K$57=Model!$O73)*(Data!$C$58:$K$60)) -> 1.797757842 | S73: 112.0224216 | T73: 1 | U73: =IF(E73<>"Serviceable",E73,INDEX(Lists!$D$6:$D$8, MATCH(T73,Lists!$C$6:$C$8,0))) -> Serviceable | V73: =INDEX(Lists!$C$12:$C$26, MATCH(H73, Lists!$B$12:$B$26,0)) -> Sub-T
B74: 87 | C74: 1973 | D74: Wood Creos Impregnated | E74: Serviceable | F74: Class 3 | G74: 0 | H74: lv/sub-transmission | I74: 1550 | J74: 2021 | K74: 100 | L74: No | M74: FALSE | N74: 10 | O74: =INDEX(Lists!$B$32:$B$40, MATCH(YEAR(TODAY())-C74, Lists!$C$32:$C$40,1)) -> 51-60 | P74: 493.3803236 | Q74: =INDEX(Data!$E$24:$E$47, MATCH(F74&D74, Data!$B$24:$B$47,0)) -> 0.001068433916 | R74: =SUMPRODUCT((Data!$B$58:$B$60=Model!$F74)*(Data!$C$57:$K$57=Model!$O74)*(Data!$C$58:$K$60)) -> 2.656485925 | S74: 73.43514075 | T74: 1 | U74: =IF(E74<>"Serviceable",E74,INDEX(Lists!$D$6:$D$8, MATCH(T74,Lists!$C$6:$C$8,0))) -> Serviceable | V74: =INDEX(Lists!$C$12:$C$26, MATCH(H74, Lists!$B$12:$B$26,0)) -> Sub-T
B75: 88 | C75: 1992 | D75: Wood Untreated Dressed | E75: Serviceable | F75: Class 1 | G75: 0 | H75: lv/hv/sub-transmission | I75: 1310 | J75: 2021 | K75: 140 | L75: No | M75: FALSE | N75: 10 | O75: =INDEX(Lists!$B$32:$B$40, MATCH(YEAR(TODAY())-C75, Lists!$C$32:$C$40,1)) -> 31-40 | P75: 416.9859509 | Q75: =INDEX(Data!$E$24:$E$47, MATCH(F75&D75, Data!$B$24:$B$47,0)) -> 0.001996456114 | R75: =SUMPRODUCT((Data!$B$58:$B$60=Model!$F75)*(Data!$C$57:$K$57=Model!$O75)*(Data!$C$58:$K$60)) -> 3.003845297 | S75: 109.961547 | T75: 1 | U75: =IF(E75<>"Serviceable",E75,INDEX(Lists!$D$6:$D$8, MATCH(T75,Lists!$C$6:$C$8,0))) -> Serviceable | V75: =INDEX(Lists!$C$12:$C$26, MATCH(H75, Lists!$B$12:$B$26,0)) -> Sub-T
B76: 89 | C76: 1981 | D76: Wood Untreated Dressed | E76: Serviceable | F76: Class 1 | G76: 0 | H76: lv/sub-transmission | I76: 1130 | J76: 2021 | K76: 120 | L76: No | M76: FALSE | N76: 10 | O76: =INDEX(Lists!$B$32:$B$40, MATCH(YEAR(TODAY())-C76, Lists!$C$32:$C$40,1)) -> 41-50 | P76: 359.6901714 | Q76: =INDEX(Data!$E$24:$E$47, MATCH(F76&D76, Data!$B$24:$B$47,0)) -> 0.001996456114 | R76: =SUMPRODUCT((Data!$B$58:$B$60=Model!$F76)*(Data!$C$57:$K$57=Model!$O76)*(Data!$C$58:$K$60)) -> 1.797757842 | S76: 102.0224216 | T76: 1 | U76: =IF(E76<>"Serviceable",E76,INDEX(Lists!$D$6:$D$8, MATCH(T76,Lists!$C$6:$C$8,0))) -> Serviceable | V76: =INDEX(Lists!$C$12:$C$26, MATCH(H76, Lists!$B$12:$B$26,0)) -> Sub-T
B77: 90 | C77: 1981 | D77: Wood Untreated Dressed | E77: Serviceable | F77: Class 1 | G77: 0 | H77: lv/hv/sub-transmission | I77: 990 | J77: 2020 | K77: 110 | L77: No | M77: FALSE | N77: 10 | O77: =INDEX(Lists!$B$32:$B$40, MATCH(YEAR(TODAY())-C77, Lists!$C$32:$C$40,1)) -> 41-50 | P77: 315.1267873 | Q77: =INDEX(Data!$E$24:$E$47, MATCH(F77&D77, Data!$B$24:$B$47,0)) -> 0.001996456114 | R77: =SUMPRODUCT((Data!$B$58:$B$60=Model!$F77)*(Data!$C$57:$K$57=Model!$O77)*(Data!$C$58:$K$60)) -> 1.797757842 | S77: 92.02242158 | T77: 1 | U77: =IF(E77<>"Serviceable",E77,INDEX(Lists!$D$6:$D$8, MATCH(T77,Lists!$C$6:$C$8,0))) -> Serviceable | V77: =INDEX(Lists!$C$12:$C$26, MATCH(H77, Lists!$B$12:$B$26,0)) -> Sub-T
B78: 91 | C78: 1982 | D78: Wood Untreated Dressed | E78: Serviceable | F78: Class 1 | G78: 0 | H78: lv/hv/sub-transmission | I78: 980 | J78: 2020 | K78: 110 | L78: No | M78: FALSE | N78: 10 | O78: =INDEX(Lists!$B$32:$B$40, MATCH(YEAR(TODAY())-C78, Lists!$C$32:$C$40,1)) -> 41-50 | P78: 311.9436885 | Q78: =INDEX(Data!$E$24:$E$47, MATCH(F78&D78, Data!$B$24:$B$47,0)) -> 0.001996456114 | R78: =SUMPRODUCT((Data!$B$58:$B$60=Model!$F78)*(Data!$C$57:$K$57=Model!$O78)*(Data!$C$58:$K$60)) -> 1.797757842 | S78: 92.02242158 | T78: 1 | U78: =IF(E78<>"Serviceable",E78,INDEX(Lists!$D$6:$D$8, MATCH(T78,Lists!$C$6:$C$8,0))) -> Serviceable | V78: =INDEX(Lists!$C$12:$C$26, MATCH(H78, Lists!$B$12:$B$26,0)) -> Sub-T
B79: 92 | C79: 1982 | D79: Wood Untreated Dressed | E79: Serviceable | F79: Class 1 | G79: 0 | H79: lv/hv/sub-transmission | I79: 1070 | J79: 2021 | K79: 120 | L79: No | M79: FALSE | N79: 10 | O79: =INDEX(Lists!$B$32:$B$40, MATCH(YEAR(TODAY())-C79, Lists!$C$32:$C$40,1)) -> 41-50 | P79: 340.5915782 | Q79: =INDEX(Data!$E$24:$E$47, MATCH(F79&D79, Data!$B$24:$B$47,0)) -> 0.001996456114 | R79: =SUMPRODUCT((Data!$B$58:$B$60=Model!$F79)*(Data!$C$57:$K$57=Model!$O79)*(Data!$C$58:$K$60)) -> 1.797757842 | S79: 102.0224216 | T79: 1 | U79: =IF(E79<>"Serviceable",E79,INDEX(Lists!$D$6:$D$8, MATCH(T79,Lists!$C$6:$C$8,0))) -> Serviceable | V79: =INDEX(Lists!$C$12:$C$26, MATCH(H79, Lists!$B$12:$B$26,0)) -> Sub-T
B80: 94 | C80: 1982 | D80: Wood Untreated Dressed | E80: Serviceable | F80: Class 1 | G80: 0 | H80: lv/hv/sub-transmission | I80: 980 | J80: 2020 | K80: 140 | L80: No | M80: FALSE | N80: 10 | O80: =INDEX(Lists!$B$32:$B$40, MATCH(YEAR(TODAY())-C80, Lists!$C$32:$C$40,1)) -> 41-50 | P80: 311.9436885 | Q80: =INDEX(Data!$E$24:$E$47, MATCH(F80&D80, Data!$B$24:$B$47,0)) -> 0.001996456114 | R80: =SUMPRODUCT((Data!$B$58:$B$60=Model!$F80)*(Data!$C$57:$K$57=Model!$O80)*(Data!$C$58:$K$60)) -> 1.797757842 | S80: 122.0224216 | T80: 1 | U80: =IF(E80<>"Serviceable",E80,INDEX(Lists!$D$6:$D$8, MATCH(T80,Lists!$C$6:$C$8,0))) -> Serviceable | V80: =INDEX(Lists!$C$12:$C$26, MATCH(H80, Lists!$B$12:$B$26,0)) -> Sub-T
B81: 96 | C81: 1982 | D81: Wood Untreated Dressed | E81: Serviceable | F81: Class 1 | G81: 0 | H81: lv/hv/sub-transmission | I81: 975 | J81: 2021 | K81: 150 | L81: No | M81: FALSE | N81: 10 | O81: =INDEX(Lists!$B$32:$B$40, MATCH(YEAR(TODAY())-C81, Lists!$C$32:$C$40,1)) -> 41-50 | P81: 310.352139 | Q81: =INDEX(Data!$E$24:$E$47, MATCH(F81&D81, Data!$B$24:$B$47,0)) -> 0.001996456114 | R81: =SUMPRODUCT((Data!$B$58:$B$60=Model!$F81)*(Data!$C$57:$K$57=Model!$O81)*(Data!$C$58:$K$60)) -> 1.797757842 | S81: 132.0224216 | T81: 1 | U81: =IF(E81<>"Serviceable",E81,INDEX(Lists!$D$6:$D$8, MATCH(T81,Lists!$C$6:$C$8,0))) -> Serviceable | V81: =INDEX(Lists!$C$12:$C$26, MATCH(H81, Lists!$B$12:$B$26,0)) -> Sub-T
B82: 98 | C82: 1982 | D82: Wood Untreated Dressed | E82: Serviceable | F82: Class 1 | G82: 0 | H82: lv/hv/sub-transmission | I82: 1130 | J82: 2021 | K82: 150 | L82: No | M82: FALSE | N82: 10 | O82: =INDEX(Lists!$B$32:$B$40, MATCH(YEAR(TODAY())-C82, Lists!$C$32:$C$40,1)) -> 41-50 | P82: 359.6901714 | Q82: =INDEX(Data!$E$24:$E$47, MATCH(F82&D82, Data!$B$24:$B$47,0)) -> 0.001996456114 | R82: =SUMPRODUCT((Data!$B$58:$B$60=Model!$F82)*(Data!$C$57:$K$57=Model!$O82)*(Data!$C$58:$K$60)) -> 1.797757842 | S82: 132.0224216 | T82: 1 | U82: =IF(E82<>"Serviceable",E82,INDEX(Lists!$D$6:$D$8, MATCH(T82,Lists!$C$6:$C$8,0))) -> Serviceable | V82: =INDEX(Lists!$C$12:$C$26, MATCH(H82, Lists!$B$12:$B$26,0)) -> Sub-T
B83: 99 | C83: 1982 | D83: Wood Untreated Dressed | E83: Serviceable | F83: Class 1 | G83: 0 | H83: lv/hv/sub-transmission | I83: 930 | J83: 2021 | K83: 120 | L83: No | M83: FALSE | N83: 10 | O83: =INDEX(Lists!$B$32:$B$40, MATCH(YEAR(TODAY())-C83, Lists!$C$32:$C$40,1)) -> 41-50 | P83: 296.0281942 | Q83: =INDEX(Data!$E$24:$E$47, MATCH(F83&D83, Data!$B$24:$B$47,0)) -> 0.001996456114 | R83: =SUMPRODUCT((Data!$B$58:$B$60=Model!$F83)*(Data!$C$57:$K$57=Model!$O83)*(Data!$C$58:$K$60)) -> 1.797757842 | S83: 102.0224216 | T83: 1 | U83: =IF(E83<>"Serviceable",E83,INDEX(Lists!$D$6:$D$8, MATCH(T83,Lists!$C$6:$C$8,0))) -> Serviceable | V83: =INDEX(Lists!$C$12:$C$26, MATCH(H83, Lists!$B$12:$B$26,0)) -> Sub-T
B84: 100 | C84: 1982 | D84: Wood Untreated Dressed | E84: Serviceable | F84: Class 1 | G84: 0 | H84: lv/hv/sub-transmission | I84: 942 | J84: 2021 | K84: 110 | L84: No | M84: FALSE | N84: 10 | O84: =INDEX(Lists!$B$32:$B$40, MATCH(YEAR(TODAY())-C84, Lists!$C$32:$C$40,1)) -> 41-50 | P84: 299.8479128 | Q84: =INDEX(Data!$E$24:$E$47, MATCH(F84&D84, Data!$B$24:$B$47,0)) -> 0.001996456114 | R84: =SUMPRODUCT((Data!$B$58:$B$60=Model!$F84)*(Data!$C$57:$K$57=Model!$O84)*(Data!$C$58:$K$60)) -> 1.797757842 | S84: 92.02242158 | T84: 1 | U84: =IF(E84<>"Serviceable",E84,INDEX(Lists!$D$6:$D$8, MATCH(T84,Lists!$C$6:$C$8,0))) -> Serviceable | V84: =INDEX(Lists!$C$12:$C$26, MATCH(H84, Lists!$B$12:$B$26,0)) -> Sub-T
B85: 101 | C85: 1982 | D85: Wood Untreated Dressed | E85: Serviceable | F85: Class 1 | G85: 0 | H85: lv/hv/sub-transmission | I85: 1070 | J85: 2021 | K85: 130 | L85: No | M85: FALSE | N85: 10 | O85: =INDEX(Lists!$B$32:$B$40, MATCH(YEAR(TODAY())-C85, Lists!$C$32:$C$40,1)) -> 41-50 | P85: 340.5915782 | Q85: =INDEX(Data!$E$24:$E$47, MATCH(F85&D85, Data!$B$24:$B$47,0)) -> 0.001996456114 | R85: =SUMPRODUCT((Data!$B$58:$B$60=Model!$F85)*(Data!$C$57:$K$57=Model!$O85)*(Data!$C$58:$K$60)) -> 1.797757842 | S85: 112.0224216 | T85: 1 | U85: =IF(E85<>"Serviceable",E85,INDEX(Lists!$D$6:$D$8, MATCH(T85,Lists!$C$6:$C$8,0))) -> Serviceable | V85: =INDEX(Lists!$C$12:$C$26, MATCH(H85, Lists!$B$12:$B$26,0)) -> Sub-T
B86: 102 | C86: 1983 | D86: Wood Untreated Dressed | E86: Serviceable | F86: Class 1 | G86: 0 | H86: lv/hv/sub-transmission | I86: 1120 | J86: 2021 | K86: 120 | L86: No | M86: FALSE | N86: 10 | O86: =INDEX(Lists!$B$32:$B$40, MATCH(YEAR(TODAY())-C86, Lists!$C$32:$C$40,1)) -> 41-50 | P86: 356.5070725 | Q86: =INDEX(Data!$E$24:$E$47, MATCH(F86&D86, Data!$B$24:$B$47,0)) -> 0.001996456114 | R86: =SUMPRODUCT((Data!$B$58:$B$60=Model!$F86)*(Data!$C$57:$K$57=Model!$O86)*(Data!$C$58:$K$60)) -> 1.797757842 | S86: 102.0224216 | T86: 1 | U86: =IF(E86<>"Serviceable",E86,INDEX(Lists!$D$6:$D$8, MATCH(T86,Lists!$C$6:$C$8,0))) -> Serviceable | V86: =INDEX(Lists!$C$12:$C$26, MATCH(H86, Lists!$B$12:$B$26,0)) -> Sub-T
B87: 103 | C87: 1983 | D87: Wood Untreated Dressed | E87: Serviceable | F87: Class 1 | G87: 0 | H87: lv/hv/sub-transmission | I87: 1130 | J87: 2021 | K87: 110 | L87: No | M87: FALSE | N87: 10 | O87: =INDEX(Lists!$B$32:$B$40, MATCH(YEAR(TODAY())-C87, Lists!$C$32:$C$40,1)) -> 41-50 | P87: 359.6901714 | Q87: =INDEX(Data!$E$24:$E$47, MATCH(F87&D87, Data!$B$24:$B$47,0)) -> 0.001996456114 | R87: =SUMPRODUCT((Data!$B$58:$B$60=Model!$F87)*(Data!$C$57:$K$57=Model!$O87)*(Data!$C$58:$K$60)) -> 1.797757842 | S87: 92.02242158 | T87: 1 | U87: =IF(E87<>"Serviceable",E87,INDEX(Lists!$D$6:$D$8, MATCH(T87,Lists!$C$6:$C$8,0))) -> Serviceable | V87: =INDEX(Lists!$C$12:$C$26, MATCH(H87, Lists!$B$12:$B$26,0)) -> Sub-T
B88: 104 | C88: 1983 | D88: Wood Untreated Dressed | E88: Serviceable | F88: Class 1 | G88: 0 | H88: lv/hv/sub-transmission | I88: 1160 | J88: 2021 | K88: 120 | L88: No | M88: FALSE | N88: 10 | O88: =INDEX(Lists!$B$32:$B$40, MATCH(YEAR(TODAY())-C88, Lists!$C$32:$C$40,1)) -> 41-50 | P88: 369.239468 | Q88: =INDEX(Data!$E$24:$E$47, MATCH(F88&D88, Data!$B$24:$B$47,0)) -> 0.001996456114 | R88: =SUMPRODUCT((Data!$B$58:$B$60=Model!$F88)*(Data!$C$57:$K$57=Model!$O88)*(Data!$C$58:$K$60)) -> 1.797757842 | S88: 102.0224216 | T88: 1 | U88: =IF(E88<>"Serviceable",E88,INDEX(Lists!$D$6:$D$8, MATCH(T88,Lists!$C$6:$C$8,0))) -> Serviceable | V88: =INDEX(Lists!$C$12:$C$26, MATCH(H88, Lists!$B$12:$B$26,0)) -> Sub-T
B89: 105 | C89: 1983 | D89: Wood Untreated Dressed | E89: Serviceable | F89: Class 1 | G89: 0 | H89: lv/hv/sub-transmission | I89: 920 | J89: 2021 | K89: 130 | L89: No | M89: FALSE | N89: 10 | O89: =INDEX(Lists!$B$32:$B$40, MATCH(YEAR(TODAY())-C89, Lists!$C$32:$C$40,1)) -> 41-50 | P89: 292.8450953 | Q89: =INDEX(Data!$E$24:$E$47, MATCH(F89&D89, Data!$B$24:$B$47,0)) -> 0.001996456114 | R89: =SUMPRODUCT((Data!$B$58:$B$60=Model!$F89)*(Data!$C$57:$K$57=Model!$O89)*(Data!$C$58:$K$60)) -> 1.797757842 | S89: 112.0224216 | T89: 1 | U89: =IF(E89<>"Serviceable",E89,INDEX(Lists!$D$6:$D$8, MATCH(T89,Lists!$C$6:$C$8,0))) -> Serviceable | V89: =INDEX(Lists!$C$12:$C$26, MATCH(H89, Lists!$B$12:$B$26,0)) -> Sub-T
B90: 106 | C90: 1983 | D90: Wood Untreated Dressed | E90: Serviceable | F90: Class 1 | G90: 0 | H90: lv/hv/sub-transmission | I90: 1130 | J90: 2021 | K90: 130 | L90: No | M90: FALSE | N90: 10 | O90: =INDEX(Lists!$B$32:$B$40, MATCH(YEAR(TODAY())-C90, Lists!$C$32:$C$40,1)) -> 41-50 | P90: 359.6901714 | Q90: =INDEX(Data!$E$24:$E$47, MATCH(F90&D90, Data!$B$24:$B$47,0)) -> 0.001996456114 | R90: =SUMPRODUCT((Data!$B$58:$B$60=Model!$F90)*(Data!$C$57:$K$57=Model!$O90)*(Data!$C$58:$K$60)) -> 1.797757842 | S90: 112.0224216 | T90: 1 | U90: =IF(E90<>"Serviceable",E90,INDEX(Lists!$D$6:$D$8, MATCH(T90,Lists!$C$6:$C$8,0))) -> Serviceable | V90: =INDEX(Lists!$C$12:$C$26, MATCH(H90, Lists!$B$12:$B$26,0)) -> Sub-T
B91: 107 | C91: 1983 | D91: Wood Untreated Dressed | E91: Serviceable | F91: Class 1 | G91: 0 | H91: lv/hv/sub-transmission | I91: 1100 | J91: 2021 | K91: 120 | L91: No | M91: FALSE | N91: 10 | O91: =INDEX(Lists!$B$32:$B$40, MATCH(YEAR(TODAY())-C91, Lists!$C$32:$C$40,1)) -> 41-50 | P91: 350.1408748 | Q91: =INDEX(Data!$E$24:$E$47, MATCH(F91&D91, Data!$B$24:$B$47,0)) -> 0.001996456114 | R91: =SUMPRODUCT((Data!$B$58:$B$60=Model!$F91)*(Data!$C$57:$K$57=Model!$O91)*(Data!$C$58:$K$60)) -> 1.797757842 | S91: 102.0224216 | T91: 1 | U91: =IF(E91<>"Serviceable",E91,INDEX(Lists!$D$6:$D$8, MATCH(T91,Lists!$C$6:$C$8,0))) -> Serviceable | V91: =INDEX(Lists!$C$12:$C$26, MATCH(H91, Lists!$B$12:$B$26,0)) -> Sub-T
B92: 108 | C92: 1983 | D92: Wood Untreated Dressed | E92: Serviceable | F92: Class 1 | G92: 0 | H92: lv/hv/sub-transmission | I92: 1160 | J92: 2021 | K92: 120 | L92: No | M92: FALSE | N92: 10 | O92: =INDEX(Lists!$B$32:$B$40, MATCH(YEAR(TODAY())-C92, Lists!$C$32:$C$40,1)) -> 41-50 | P92: 369.239468 | Q92: =INDEX(Data!$E$24:$E$47, MATCH(F92&D92, Data!$B$24:$B$47,0)) -> 0.001996456114 | R92: =SUMPRODUCT((Data!$B$58:$B$60=Model!$F92)*(Data!$C$57:$K$57=Model!$O92)*(Data!$C$58:$K$60)) -> 1.797757842 | S92: 102.0224216 | T92: 1 | U92: =IF(E92<>"Serviceable",E92,INDEX(Lists!$D$6:$D$8, MATCH(T92,Lists!$C$6:$C$8,0))) -> Serviceable | V92: =INDEX(Lists!$C$12:$C$26, MATCH(H92, Lists!$B$12:$B$26,0)) -> Sub-T
B93: 109 | C93: 1983 | D93: Wood Untreated Dressed | E93: Serviceable | F93: Class 1 | G93: 0 | H93: lv/hv/sub-transmission | I93: 1320 | J93: 2021 | K93: 130 | L93: No | M93: FALSE | N93: 10 | O93: =INDEX(Lists!$B$32:$B$40, MATCH(YEAR(TODAY())-C93, Lists!$C$32:$C$40,1)) -> 41-50 | P93: 420.1690498 | Q93: =INDEX(Data!$E$24:$E$47, MATCH(F93&D93, Data!$B$24:$B$47,0)) -> 0.001996456114 | R93: =SUMPRODUCT((Data!$B$58:$B$60=Model!$F93)*(Data!$C$57:$K$57=Model!$O93)*(Data!$C$58:$K$60)) -> 1.797757842 | S93: 112.0224216 | T93: 1 | U93: =IF(E93<>"Serviceable",E93,INDEX(Lists!$D$6:$D$8, MATCH(T93,Lists!$C$6:$C$8,0))) -> Serviceable | V93: =INDEX(Lists!$C$12:$C$26, MATCH(H93, Lists!$B$12:$B$26,0)) -> Sub-T
B94: 110 | C94: 1982 | D94: Wood Untreated Dressed | E94: Serviceable | F94: Class 1 | G94: 0 | H94: lv/hv/sub-transmission | I94: 1090 | J94: 2021 | K94: 150 | L94: No | M94: FALSE | N94: 10 | O94: =INDEX(Lists!$B$32:$B$40, MATCH(YEAR(TODAY())-C94, Lists!$C$32:$C$40,1)) -> 41-50 | P94: 346.9577759 | Q94: =INDEX(Data!$E$24:$E$47, MATCH(F94&D94, Data!$B$24:$B$47,0)) -> 0.001996456114 | R94: =SUMPRODUCT((Data!$B$58:$B$60=Model!$F94)*(Data!$C$57:$K$57=Model!$O94)*(Data!$C$58:$K$60)) -> 1.797757842 | S94: 132.0224216 | T94: 1 | U94: =IF(E94<>"Serviceable",E94,INDEX(Lists!$D$6:$D$8, MATCH(T94,Lists!$C$6:$C$8,0))) -> Serviceable | V94: =INDEX(Lists!$C$12:$C$26, MATCH(H94, Lists!$B$12:$B$26,0)) -> Sub-T
B95: 111 | C95: 1982 | D95: Wood Untreated Dressed | E95: Serviceable | F95: Class 1 | G95: 0 | H95: lv/hv/sub-transmission | I95: 1260 | J95: 2021 | K95: 120 | L95: No | M95: FALSE | N95: 10 | O95: =INDEX(Lists!$B$32:$B$40, MATCH(YEAR(TODAY())-C95, Lists!$C$32:$C$40,1)) -> 41-50 | P95: 401.0704566 | Q95: =INDEX(Data!$E$24:$E$47, MATCH(F95&D95, Data!$B$24:$B$47,0)) -> 0.001996456114 | R95: =SUMPRODUCT((Data!$B$58:$B$60=Model!$F95)*(Data!$C$57:$K$57=Model!$O95)*(Data!$C$58:$K$60)) -> 1.797757842 | S95: 102.0224216 | T95: 1 | U95: =IF(E95<>"Serviceable",E95,INDEX(Lists!$D$6:$D$8, MATCH(T95,Lists!$C$6:$C$8,0))) -> Serviceable | V95: =INDEX(Lists!$C$12:$C$26, MATCH(H95, Lists!$B$12:$B$26,0)) -> Sub-T
B96: 112 | C96: 1985 | D96: Wood Untreated Dressed | E96: Serviceable | F96: Class 1 | G96: 0 | H96: lv/hv/sub-transmission | I96: 990 | J96: 2021 | K96: 120 | L96: No | M96: FALSE | N96: 10 | O96: =INDEX(Lists!$B$32:$B$40, MATCH(YEAR(TODAY())-C96, Lists!$C$32:$C$40,1)) -> 31-40 | P96: 315.1267873 | Q96: =INDEX(Data!$E$24:$E$47, MATCH(F96&D96, Data!$B$24:$B$47,0)) -> 0.001996456114 | R96: =SUMPRODUCT((Data!$B$58:$B$60=Model!$F96)*(Data!$C$57:$K$57=Model!$O96)*(Data!$C$58:$K$60)) -> 3.003845297 | S96: 89.96154703 | T96: 1 | U96: =IF(E96<>"Serviceable",E96,INDEX(Lists!$D$6:$D$8, MATCH(T96,Lists!$C$6:$C$8,0))) -> Serviceable | V96: =INDEX(Lists!$C$12:$C$26, MATCH(H96, Lists!$B$12:$B$26,0)) -> Sub-T
B97: 113 | C97: 1983 | D97: Wood Untreated Dressed | E97: Serviceable | F97: Class 1 | G97: 0 | H97: lv/hv/sub-transmission | I97: 1000 | J97: 2021 | K97: 150 | L97: No | M97: FALSE | N97: 10 | O97: =INDEX(Lists!$B$32:$B$40, MATCH(YEAR(TODAY())-C97, Lists!$C$32:$C$40,1)) -> 41-50 | P97: 318.3098862 | Q97: =INDEX(Data!$E$24:$E$47, MATCH(F97&D97, Data!$B$24:$B$47,0)) -> 0.001996456114 | R97: =SUMPRODUCT((Data!$B$58:$B$60=Model!$F97)*(Data!$C$57:$K$57=Model!$O97)*(Data!$C$58:$K$60)) -> 1.797757842 | S97: 132.0224216 | T97: 1 | U97: =IF(E97<>"Serviceable",E97,INDEX(Lists!$D$6:$D$8, MATCH(T97,Lists!$C$6:$C$8,0))) -> Serviceable | V97: =INDEX(Lists!$C$12:$C$26, MATCH(H97, Lists!$B$12:$B$26,0)) -> Sub-T
B98: 114 | C98: 1983 | D98: Wood Untreated Dressed | E98: Serviceable | F98: Class 1 | G98: 0 | H98: lv/hv/sub-transmission | I98: 1020 | J98: 2021 | K98: 140 | L98: No | M98: FALSE | N98: 10 | O98: =INDEX(Lists!$B$32:$B$40, MATCH(YEAR(TODAY())-C98, Lists!$C$32:$C$40,1)) -> 41-50 | P98: 324.6760839 | Q98: =INDEX(Data!$E$24:$E$47, MATCH(F98&D98, Data!$B$24:$B$47,0)) -> 0.001996456114 | R98: =SUMPRODUCT((Data!$B$58:$B$60=Model!$F98)*(Data!$C$57:$K$57=Model!$O98)*(Data!$C$58:$K$60)) -> 1.797757842 | S98: 122.0224216 | T98: 1 | U98: =IF(E98<>"Serviceable",E98,INDEX(Lists!$D$6:$D$8, MATCH(T98,Lists!$C$6:$C$8,0))) -> Serviceable | V98: =INDEX(Lists!$C$12:$C$26, MATCH(H98, Lists!$B$12:$B$26,0)) -> Sub-T
B99: 116 | C99: 1983 | D99: Wood Untreated Dressed | E99: Serviceable | F99: Class 1 | G99: 0 | H99: lv/hv/sub-transmission | I99: 911 | J99: 2020 | K99: 100 | L99: No | M99: FALSE | N99: 10 | O99: =INDEX(Lists!$B$32:$B$40, MATCH(YEAR(TODAY())-C99, Lists!$C$32:$C$40,1)) -> 41-50 | P99: 289.9803063 | Q99: =INDEX(Data!$E$24:$E$47, MATCH(F99&D99, Data!$B$24:$B$47,0)) -> 0.001996456114 | R99: =SUMPRODUCT((Data!$B$58:$B$60=Model!$F99)*(Data!$C$57:$K$57=Model!$O99)*(Data!$C$58:$K$60)) -> 1.797757842 | S99: 82.02242158 | T99: 1 | U99: =IF(E99<>"Serviceable",E99,INDEX(Lists!$D$6:$D$8, MATCH(T99,Lists!$C$6:$C$8,0))) -> Serviceable | V99: =INDEX(Lists!$C$12:$C$26, MATCH(H99, Lists!$B$12:$B$26,0)) -> Sub-T
B100: 120 | C100: 1983 | D100: Wood Untreated Dressed | E100: Serviceable | F100: Class 1 | G100: 0 | H100: lv/hv/sub-transmission | I100: 1060 | J100: 2021 | K100: 120 | L100: No | M100: FALSE | N100: 10 | O100: =INDEX(Lists!$B$32:$B$40, MATCH(YEAR(TODAY())-C100, Lists!$C$32:$C$40,1)) -> 41-50 | P100: 337.4084794 | Q100: =INDEX(Data!$E$24:$E$47, MATCH(F100&D100, Data!$B$24:$B$47,0)) -> 0.001996456114 | R100: =SUMPRODUCT((Data!$B$58:$B$60=Model!$F100)*(Data!$C$57:$K$57=Model!$O100)*(Data!$C$58:$K$60)) -> 1.797757842 | S100: 102.0224216 | T100: 1 | U100: =IF(E100<>"Serviceable",E100,INDEX(Lists!$D$6:$D$8, MATCH(T100,Lists!$C$6:$C$8,0))) -> Serviceable | V100: =INDEX(Lists!$C$12:$C$26, MATCH(H100, Lists!$B$12:$B$26,0)) -> Sub-T
B101: 121 | C101: 1983 | D101: Wood Untreated Dressed | E101: Serviceable | F101: Class 1 | G101: 0 | H101: lv/hv/sub-transmission | I101: 1160 | J101: 2021 | K101: 120 | L101: No | M101: FALSE | N101: 10 | O101: =INDEX(Lists!$B$32:$B$40, MATCH(YEAR(TODAY())-C101, Lists!$C$32:$C$40,1)) -> 41-50 | P101: 369.239468 | Q101: =INDEX(Data!$E$24:$E$47, MATCH(F101&D101, Data!$B$24:$B$47,0)) -> 0.001996456114 | R101: =SUMPRODUCT((Data!$B$58:$B$60=Model!$F101)*(Data!$C$57:$K$57=Model!$O101)*(Data!$C$58:$K$60)) -> 1.797757842 | S101: 102.0224216 | T101: 1 | U101: =IF(E101<>"Serviceable",E101,INDEX(Lists!$D$6:$D$8, MATCH(T101,Lists!$C$6:$C$8,0))) -> Serviceable | V101: =INDEX(Lists!$C$12:$C$26, MATCH(H101, Lists!$B$12:$B$26,0)) -> Sub-T
B102: 122 | C102: 1983 | D102: Wood Untreated Dressed | E102: Serviceable | F102: Class 1 | G102: 0 | H102: lv/hv/sub-transmission | I102: 1190 | J102: 2021 | K102: 120 | L102: No | M102: FALSE | N102: 10 | O102: =INDEX(Lists!$B$32:$B$40, MATCH(YEAR(TODAY())-C102, Lists!$C$32:$C$40,1)) -> 41-50 | P102: 378.7887646 | Q102: =INDEX(Data!$E$24:$E$47, MATCH(F102&D102, Data!$B$24:$B$47,0)) -> 0.001996456114 | R102: =SUMPRODUCT((Data!$B$58:$B$60=Model!$F102)*(Data!$C$57:$K$57=Model!$O102)*(Data!$C$58:$K$60)) -> 1.797757842 | S102: 102.0224216 | T102: 1 | U102: =IF(E102<>"Serviceable",E102,INDEX(Lists!$D$6:$D$8, MATCH(T102,Lists!$C$6:$C$8,0))) -> Serviceable | V102: =INDEX(Lists!$C$12:$C$26, MATCH(H102, Lists!$B$12:$B$26,0)) -> Sub-T
B103: 123 | C103: 1983 | D103: Wood Untreated Dressed | E103: Serviceable | F103: Class 1 | G103: 0 | H103: lv/hv/sub-transmission | I103: 1450 | J103: 2021 | K103: 120 | L103: No | M103: FALSE | N103: 10 | O103: =INDEX(Lists!$B$32:$B$40, MATCH(YEAR(TODAY())-C103, Lists!$C$32:$C$40,1)) -> 41-50 | P103: 461.549335 | Q103: =INDEX(Data!$E$24:$E$47, MATCH(F103&D103, Data!$B$24:$B$47,0)) -> 0.001996456114 | R103: =SUMPRODUCT((Data!$B$58:$B$60=Model!$F103)*(Data!$C$57:$K$57=Model!$O103)*(Data!$C$58:$K$60)) -> 1.797757842 | S103: 102.0224216 | T103: 1 | U103: =IF(E103<>"Serviceable",E103,INDEX(Lists!$D$6:$D$8, MATCH(T103,Lists!$C$6:$C$8,0))) -> Serviceable | V103: =INDEX(Lists!$C$12:$C$26, MATCH(H103, Lists!$B$12:$B$26,0)) -> Sub-T
B104: 124 | C104: 1983 | D104: Wood Untreated Dressed | E104: Serviceable | F104: Class 1 | G104: 0 | H104: lv/hv/sub-transmission | I104: 1250 | J104: 2021 | K104: 120 | L104: No | M104: FALSE | N104: 10 | O104: =INDEX(Lists!$B$32:$B$40, MATCH(YEAR(TODAY())-C104, Lists!$C$32:$C$40,1)) -> 41-50 | P104: 397.8873577 | Q104: =INDEX(Data!$E$24:$E$47, MATCH(F104&D104, Data!$B$24:$B$47,0)) -> 0.001996456114 | R104: =SUMPRODUCT((Data!$B$58:$B$60=Model!$F104)*(Data!$C$57:$K$57=Model!$O104)*(Data!$C$58:$K$60)) -> 1.797757842 | S104: 102.0224216 | T104: 1 | U104: =IF(E104<>"Serviceable",E104,INDEX(Lists!$D$6:$D$8, MATCH(T104,Lists!$C$6:$C$8,0))) -> Serviceable | V104: =INDEX(Lists!$C$12:$C$26, MATCH(H104, Lists!$B$12:$B$26,0)) -> Sub-T
B105: 125 | C105: 1983 | D105: Wood Untreated Dressed | E105: Serviceable | F105: Class 1 | G105: 0 | H105: lv/hv/sub-transmission | I105: 1150 | J105: 2021 | K105: 120 | L105: No | M105: FALSE | N105: 10 | O105: =INDEX(Lists!$B$32:$B$40, MATCH(YEAR(TODAY())-C105, Lists!$C$32:$C$40,1)) -> 41-50 | P105: 366.0563691 | Q105: =INDEX(Data!$E$24:$E$47, MATCH(F105&D105, Data!$B$24:$B$47,0)) -> 0.001996456114 | R105: =SUMPRODUCT((Data!$B$58:$B$60=Model!$F105)*(Data!$C$57:$K$57=Model!$O105)*(Data!$C$58:$K$60)) -> 1.797757842 | S105: 102.0224216 | T105: 1 | U105: =IF(E105<>"Serviceable",E105,INDEX(Lists!$D$6:$D$8, MATCH(T105,Lists!$C$6:$C$8,0))) -> Serviceable | V105: =INDEX(Lists!$C$12:$C$26, MATCH(H105, Lists!$B$12:$B$26,0)) -> Sub-T
B106: 126 | C106: 1982 | D106: Wood Untreated Dressed | E106: Serviceable | F106: Class 1 | G106: 0 | H106: lv/hv/sub-transmission | I106: 1180 | J106: 2021 | K106: 110 | L106: No | M106: FALSE | N106: 10 | O106: =INDEX(Lists!$B$32:$B$40, MATCH(YEAR(TODAY())-C106, Lists!$C$32:$C$40,1)) -> 41-50 | P106: 375.6056657 | Q106: =INDEX(Data!$E$24:$E$47, MATCH(F106&D106, Data!$B$24:$B$47,0)) -> 0.001996456114 | R106: =SUMPRODUCT((Data!$B$58:$B$60=Model!$F106)*(Data!$C$57:$K$57=Model!$O106)*(Data!$C$58:$K$60)) -> 1.797757842 | S106: 92.02242158 | T106: 1 | U106: =IF(E106<>"Serviceable",E106,INDEX(Lists!$D$6:$D$8, MATCH(T106,Lists!$C$6:$C$8,0))) -> Serviceable | V106: =INDEX(Lists!$C$12:$C$26, MATCH(H106, Lists!$B$12:$B$26,0)) -> Sub-T
B107: 129 | C107: 1982 | D107: Wood Untreated Dressed | E107: Serviceable | F107: Class 1 | G107: 0 | H107: lv/hv/sub-transmission | I107: 1100 | J107: 2021 | K107: 150 | L107: No | M107: FALSE | N107: 10 | O107: =INDEX(Lists!$B$32:$B$40, MATCH(YEAR(TODAY())-C107, Lists!$C$32:$C$40,1)) -> 41-50 | P107: 350.1408748 | Q107: =INDEX(Data!$E$24:$E$47, MATCH(F107&D107, Data!$B$24:$B$47,0)) -> 0.001996456114 | R107: =SUMPRODUCT((Data!$B$58:$B$60=Model!$F107)*(Data!$C$57:$K$57=Model!$O107)*(Data!$C$58:$K$60)) -> 1.797757842 | S107: 132.0224216 | T107: 1 | U107: =IF(E107<>"Serviceable",E107,INDEX(Lists!$D$6:$D$8, MATCH(T107,Lists!$C$6:$C$8,0))) -> Serviceable | V107: =INDEX(Lists!$C$12:$C$26, MATCH(H107, Lists!$B$12:$B$26,0)) -> Sub-T
B108: 130 | C108: 1967 | D108: Wood Creos Impregnated | E108: Limited Life | F108: Class 3 | G108: 0 | H108: lv/sub-transmission | I108: 1050 | J108: 2023 | K108: 60 | L108: No | M108: FALSE | N108: 10 | O108: =INDEX(Lists!$B$32:$B$40, MATCH(YEAR(TODAY())-C108, Lists!$C$32:$C$40,1)) -> 51-60 | P108: 334.2253805 | Q108: =INDEX(Data!$E$24:$E$47, MATCH(F108&D108, Data!$B$24:$B$47,0)) -> 0.001068433916 | R108: =SUMPRODUCT((Data!$B$58:$B$60=Model!$F108)*(Data!$C$57:$K$57=Model!$O108)*(Data!$C$58:$K$60)) -> 2.656485925 | S108: 33.43514075 | T108: 2 | U108: =IF(E108<>"Serviceable",E108,INDEX(Lists!$D$6:$D$8, MATCH(T108,Lists!$C$6:$C$8,0))) -> Limited Life | V108: =INDEX(Lists!$C$12:$C$26, MATCH(H108, Lists!$B$12:$B$26,0)) -> Sub-T
B109: 131 | C109: 1967 | D109: Wood Creos Impregnated | E109: Serviceable | F109: Class 3 | G109: 0 | H109: lv/hv/sub-transmission | I109: 1257 | J109: 2023 | K109: 100 | L109: No | M109: FALSE | N109: 10 | O109: =INDEX(Lists!$B$32:$B$40, MATCH(YEAR(TODAY())-C109, Lists!$C$32:$C$40,1)) -> 51-60 | P109: 400.1155269 | Q109: =INDEX(Data!$E$24:$E$47, MATCH(F109&D109, Data!$B$24:$B$47,0)) -> 0.001068433916 | R109: =SUMPRODUCT((Data!$B$58:$B$60=Model!$F109)*(Data!$C$57:$K$57=Model!$O109)*(Data!$C$58:$K$60)) -> 2.656485925 | S109: 73.43514075 | T109: 1 | U109: =IF(E109<>"Serviceable",E109,INDEX(Lists!$D$6:$D$8, MATCH(T109,Lists!$C$6:$C$8,0))) -> Serviceable | V109: =INDEX(Lists!$C$12:$C$26, MATCH(H109, Lists!$B$12:$B$26,0)) -> Sub-T
B110: 132 | C110: 1966 | D110: Wood Creos Impregnated | E110: Serviceable | F110: Class 3 | G110: 0 | H110: lv/sub-transmission | I110: 1037 | J110: 2023 | K110: 70 | L110: No | M110: FALSE | N110: 10 | O110: =INDEX(Lists!$B$32:$B$40, MATCH(YEAR(TODAY())-C110, Lists!$C$32:$C$40,1)) -> 51-60 | P110: 330.087352 | Q110: =INDEX(Data!$E$24:$E$47, MATCH(F110&D110, Data!$B$24:$B$47,0)) -> 0.001068433916 | R110: =SUMPRODUCT((Data!$B$58:$B$60=Model!$F110)*(Data!$C$57:$K$57=Model!$O110)*(Data!$C$58:$K$60)) -> 2.656485925 | S110: 43.43514075 | T110: 2 | U110: =IF(E110<>"Serviceable",E110,INDEX(Lists!$D$6:$D$8, MATCH(T110,Lists!$C$6:$C$8,0))) -> Limited Life | V110: =INDEX(Lists!$C$12:$C$26, MATCH(H110, Lists!$B$12:$B$26,0)) -> Sub-T
B111: 133 | C111: 1966 | D111: Wood Creos Impregnated | E111: Serviceable | F111: Class 3 | G111: 0 | H111: lv/sub-transmission | I111: 1037 | J111: 2023 | K111: 80 | L111: No | M111: FALSE | N111: 10 | O111: =INDEX(Lists!$B$32:$B$40, MATCH(YEAR(TODAY())-C111, Lists!$C$32:$C$40,1)) -> 51-60 | P111: 330.087352 | Q111: =INDEX(Data!$E$24:$E$47, MATCH(F111&D111, Data!$B$24:$B$47,0)) -> 0.001068433916 | R111: =SUMPRODUCT((Data!$B$58:$B$60=Model!$F111)*(Data!$C$57:$K$57=Model!$O111)*(Data!$C$58:$K$60)) -> 2.656485925 | S111: 53.43514075 | T111: 2 | U111: =IF(E111<>"Serviceable",E111,INDEX(Lists!$D$6:$D$8, MATCH(T111,Lists!$C$6:$C$8,0))) -> Limited Life | V111: =INDEX(Lists!$C$12:$C$26, MATCH(H111, Lists!$B$12:$B$26,0)) -> Sub-T
B112: 134 | C112: 1966 | D112: Wood Creos Impregnated | E112: Serviceable | F112: Class 3 | G112: 0 | H112: lv/sub-transmission | I112: 1005 | J112: 2023 | K112: 70 | L112: No | M112: FALSE | N112: 10 | O112: =INDEX(Lists!$B$32:$B$40, MATCH(YEAR(TODAY())-C112, Lists!$C$32:$C$40,1)) -> 51-60 | P112: 319.9014356 | Q112: =INDEX(Data!$E$24:$E$47, MATCH(F112&D112, Data!$B$24:$B$47,0)) -> 0.001068433916 | R112: =SUMPRODUCT((Data!$B$58:$B$60=Model!$F112)*(Data!$C$57:$K$57=Model!$O112)*(Data!$C$58:$K$60)) -> 2.656485925 | S112: 43.43514075 | T112: 2 | U112: =IF(E112<>"Serviceable",E112,INDEX(Lists!$D$6:$D$8, MATCH(T112,Lists!$C$6:$C$8,0))) -> Limited Life | V112: =INDEX(Lists!$C$12:$C$26, MATCH(H112, Lists!$B$12:$B$26,0)) -> Sub-T
B113: 135 | C113: 1966 | D113: Wood Creos Impregnated | E113: Serviceable | F113: Class 3 | G113: 0 | H113: lv/sub-transmission | I113: 1280 | J113: 2021 | K113: 100 | L113: No | M113: FALSE | N113: 10 | O113: =INDEX(Lists!$B$32:$B$40, MATCH(YEAR(TODAY())-C113, Lists!$C$32:$C$40,1)) -> 51-60 | P113: 407.4366543 | Q113: =INDEX(Data!$E$24:$E$47, MATCH(F113&D113, Data!$B$24:$B$47,0)) -> 0.001068433916 | R113: =SUMPRODUCT((Data!$B$58:$B$60=Model!$F113)*(Data!$C$57:$K$57=Model!$O113)*(Data!$C$58:$K$60)) -> 2.656485925 | S113: 73.43514075 | T113: 1 | U113: =IF(E113<>"Serviceable",E113,INDEX(Lists!$D$6:$D$8, MATCH(T113,Lists!$C$6:$C$8,0))) -> Serviceable | V113: =INDEX(Lists!$C$12:$C$26, MATCH(H113, Lists!$B$12:$B$26,0)) -> Sub-T
B114: 137 | C114: 1985 | D114: Wood Untreated Dressed | E114: Serviceable | F114: Class 1 | G114: 0 | H114: lv | I114: 1050 | J114: 2021 | K114: 140 | L114: No | M114: FALSE | N114: 10 | O114: =INDEX(Lists!$B$32:$B$40, MATCH(YEAR(TODAY())-C114, Lists!$C$32:$C$40,1)) -> 31-40 | P114: 334.2253805 | Q114: =INDEX(Data!$E$24:$E$47, MATCH(F114&D114, Data!$B$24:$B$47,0)) -> 0.001996456114 | R114: =SUMPRODUCT((Data!$B$58:$B$60=Model!$F114)*(Data!$C$57:$K$57=Model!$O114)*(Data!$C$58:$K$60)) -> 3.003845297 | S114: 109.961547 | T114: 1 | U114: =IF(E114<>"Serviceable",E114,INDEX(Lists!$D$6:$D$8, MATCH(T114,Lists!$C$6:$C$8,0))) -> Serviceable | V114: =INDEX(Lists!$C$12:$C$26, MATCH(H114, Lists!$B$12:$B$26,0)) -> LV
B115: 138 | C115: 1962 | D115: Wood Creos Impregnated | E115: Serviceable | F115: Class 3 | G115: 0 | H115: lv | I115: 960 | J115: 2023 | K115: 70 | L115: No | M115: FALSE | N115: 10 | O115: =INDEX(Lists!$B$32:$B$40, MATCH(YEAR(TODAY())-C115, Lists!$C$32:$C$40,1)) -> 61-70 | P115: 305.5774907 | Q115: =INDEX(Data!$E$24:$E$47, MATCH(F115&D115, Data!$B$24:$B$47,0)) -> 0.001068433916 | R115: =SUMPRODUCT((Data!$B$58:$B$60=Model!$F115)*(Data!$C$57:$K$57=Model!$O115)*(Data!$C$58:$K$60)) -> 1.980203131 | S115: 50.19796869 | T115: 2 | U115: =IF(E115<>"Serviceable",E115,INDEX(Lists!$D$6:$D$8, MATCH(T115,Lists!$C$6:$C$8,0))) -> Limited Life | V115: =INDEX(Lists!$C$12:$C$26, MATCH(H115, Lists!$B$12:$B$26,0)) -> LV
B116: 139 | C116: 1966 | D116: Wood Creos Impregnated | E116: Serviceable | F116: Class 3 | G116: 0 | H116: lv/sub-transmission | I116: 1020 | J116: 2021 | K116: 90 | L116: No | M116: FALSE | N116: 10 | O116: =INDEX(Lists!$B$32:$B$40, MATCH(YEAR(TODAY())-C116, Lists!$C$32:$C$40,1)) -> 51-60 | P116: 324.6760839 | Q116: =INDEX(Data!$E$24:$E$47, MATCH(F116&D116, Data!$B$24:$B$47,0)) -> 0.001068433916 | R116: =SUMPRODUCT((Data!$B$58:$B$60=Model!$F116)*(Data!$C$57:$K$57=Model!$O116)*(Data!$C$58:$K$60)) -> 2.656485925 | S116: 63.43514075 | T116: 2 | U116: =IF(E116<>"Serviceable",E116,INDEX(Lists!$D$6:$D$8, MATCH(T116,Lists!$C$6:$C$8,0))) -> Limited Life | V116: =INDEX(Lists!$C$12:$C$26, MATCH(H116, Lists!$B$12:$B$26,0)) -> Sub-T
B117: 140 | C117: 1984 | D117: Wood Creos Impregnated | E117: Serviceable | F117: Class 2 | G117: 0 | H117: lv | I117: 1030 | J117: 2023 | K117: 110 | L117: No | M117: FALSE | N117: 10 | O117: =INDEX(Lists!$B$32:$B$40, MATCH(YEAR(TODAY())-C117, Lists!$C$32:$C$40,1)) -> 41-50 | P117: 327.8591828 | Q117: =INDEX(Data!$E$24:$E$47, MATCH(F117&D117, Data!$B$24:$B$47,0)) -> 0.001611883692 | R117: =SUMPRODUCT((Data!$B$58:$B$60=Model!$F117)*(Data!$C$57:$K$57=Model!$O117)*(Data!$C$58:$K$60)) -> 3.126815167 | S117: 78.73184833 | T117: 1 | U117: =IF(E117<>"Serviceable",E117,INDEX(Lists!$D$6:$D$8, MATCH(T117,Lists!$C$6:$C$8,0))) -> Serviceable | V117: =INDEX(Lists!$C$12:$C$26, MATCH(H117, Lists!$B$12:$B$26,0)) -> LV
B118: 141 | C118: 1972 | D118: Wood Creos Impregnated | E118: Serviceable | F118: Class 2 | G118: 0 | H118: lv | I118: 942 | J118: 2023 | K118: 120 | L118: No | M118: FALSE | N118: 10 | O118: =INDEX(Lists!$B$32:$B$40, MATCH(YEAR(TODAY())-C118, Lists!$C$32:$C$40,1)) -> 51-60 | P118: 299.8479128 | Q118: =INDEX(Data!$E$24:$E$47, MATCH(F118&D118, Data!$B$24:$B$47,0)) -> 0.001611883692 | R118: =SUMPRODUCT((Data!$B$58:$B$60=Model!$F118)*(Data!$C$57:$K$57=Model!$O118)*(Data!$C$58:$K$60)) -> 2.677354809 | S118: 93.22645191 | T118: 1 | U118: =IF(E118<>"Serviceable",E118,INDEX(Lists!$D$6:$D$8, MATCH(T118,Lists!$C$6:$C$8,0))) -> Serviceable | V118: =INDEX(Lists!$C$12:$C$26, MATCH(H118, Lists!$B$12:$B$26,0)) -> LV
B119: 142 | C119: 1970 | D119: Wood Creos Impregnated | E119: Serviceable | F119: Class 3 | G119: 0 | H119: lv/hv/sub-transmission | I119: 1130 | J119: 2021 | K119: 100 | L119: No | M119: FALSE | N119: 10 | O119: =INDEX(Lists!$B$32:$B$40, MATCH(YEAR(TODAY())-C119, Lists!$C$32:$C$40,1)) -> 51-60 | P119: 359.6901714 | Q119: =INDEX(Data!$E$24:$E$47, MATCH(F119&D119, Data!$B$24:$B$47,0)) -> 0.001068433916 | R119: =SUMPRODUCT((Data!$B$58:$B$60=Model!$F119)*(Data!$C$57:$K$57=Model!$O119)*(Data!$C$58:$K$60)) -> 2.656485925 | S119: 73.43514075 | T119: 1 | U119: =IF(E119<>"Serviceable",E119,INDEX(Lists!$D$6:$D$8, MATCH(T119,Lists!$C$6:$C$8,0))) -> Serviceable | V119: =INDEX(Lists!$C$12:$C$26, MATCH(H119, Lists!$B$12:$B$26,0)) -> Sub-T
B120: 143 | C120: 1990 | D120: Wood Untreated Dressed | E120: Serviceable | F120: Class 1 | G120: 0 | H120: lv | I120: 848 | J120: 2023 | K120: 120 | L120: No | M120: FALSE | N120: 10 | O120: =INDEX(Lists!$B$32:$B$40, MATCH(YEAR(TODAY())-C120, Lists!$C$32:$C$40,1)) -> 31-40 | P120: 269.9267835 | Q120: =INDEX(Data!$E$24:$E$47, MATCH(F120&D120, Data!$B$24:$B$47,0)) -> 0.001996456114 | R120: =SUMPRODUCT((Data!$B$58:$B$60=Model!$F120)*(Data!$C$57:$K$57=Model!$O120)*(Data!$C$58:$K$60)) -> 3.003845297 | S120: 89.96154703 | T120: 1 | U120: =IF(E120<>"Serviceable",E120,INDEX(Lists!$D$6:$D$8, MATCH(T120,Lists!$C$6:$C$8,0))) -> Serviceable | V120: =INDEX(Lists!$C$12:$C$26, MATCH(H120, Lists!$B$12:$B$26,0)) -> LV
B121: 144 | C121: 1967 | D121: Wood Creos Impregnated | E121: Serviceable | F121: Class 3 | G121: 0 | H121: lv/hv/sub-transmission | I121: 990 | J121: 2021 | K121: 100 | L121: No | M121: FALSE | N121: 10 | O121: =INDEX(Lists!$B$32:$B$40, MATCH(YEAR(TODAY())-C121, Lists!$C$32:$C$40,1)) -> 51-60 | P121: 315.1267873 | Q121: =INDEX(Data!$E$24:$E$47, MATCH(F121&D121, Data!$B$24:$B$47,0)) -> 0.001068433916 | R121: =SUMPRODUCT((Data!$B$58:$B$60=Model!$F121)*(Data!$C$57:$K$57=Model!$O121)*(Data!$C$58:$K$60)) -> 2.656485925 | S121: 73.43514075 | T121: 1 | U121: =IF(E121<>"Serviceable",E121,INDEX(Lists!$D$6:$D$8, MATCH(T121,Lists!$C$6:$C$8,0))) -> Serviceable | V121: =INDEX(Lists!$C$12:$C$26, MATCH(H121, Lists!$B$12:$B$26,0)) -> Sub-T
B122: 145 | C122: 1970 | D122: Wood Creos Impregnated | E122: Serviceable | F122: Class 3 | G122: 0 | H122: lv/hv/sub-transmission | I122: 1040 | J122: 2021 | K122: 100 | L122: No | M122: FALSE | N122: 10 | O122: =INDEX(Lists!$B$32:$B$40, MATCH(YEAR(TODAY())-C122, Lists!$C$32:$C$40,1)) -> 51-60 | P122: 331.0422816 | Q122: =INDEX(Data!$E$24:$E$47, MATCH(F122&D122, Data!$B$24:$B$47,0)) -> 0.001068433916 | R122: =SUMPRODUCT((Data!$B$58:$B$60=Model!$F122)*(Data!$C$57:$K$57=Model!$O122)*(Data!$C$58:$K$60)) -> 2.656485925 | S122: 73.43514075 | T122: 1 | U122: =IF(E122<>"Serviceable",E122,INDEX(Lists!$D$6:$D$8, MATCH(T122,Lists!$C$6:$C$8,0))) -> Serviceable | V122: =INDEX(Lists!$C$12:$C$26, MATCH(H122, Lists!$B$12:$B$26,0)) -> Sub-T
B123: 148 | C123: 1968 | D123: Wood Creos Impregnated | E123: Serviceable | F123: Class 3 | G123: 0 | H123: lv/hv | I123: 911 | J123: 2021 | K123: 70 | L123: No | M123: FALSE | N123: 10 | O123: =INDEX(Lists!$B$32:$B$40, MATCH(YEAR(TODAY())-C123, Lists!$C$32:$C$40,1)) -> 51-60 | P123: 289.9803063 | Q123: =INDEX(Data!$E$24:$E$47, MATCH(F123&D123, Data!$B$24:$B$47,0)) -> 0.001068433916 | R123: =SUMPRODUCT((Data!$B$58:$B$60=Model!$F123)*(Data!$C$57:$K$57=Model!$O123)*(Data!$C$58:$K$60)) -> 2.656485925 | S123: 43.43514075 | T123: 2 | U123: =IF(E123<>"Serviceable",E123,INDEX(Lists!$D$6:$D$8, MATCH(T123,Lists!$C$6:$C$8,0))) -> Limited Life | V123: =INDEX(Lists!$C$12:$C$26, MATCH(H123, Lists!$B$12:$B$26,0)) -> HV
B124: 149 | C124: 1988 | D124: Wood Untreated Dressed | E124: Serviceable | F124: Class 1 | G124: 0 | H124: lv/hv | I124: 940 | J124: 2021 | K124: 100 | L124: No | M124: FALSE | N124: 10 | O124: =INDEX(Lists!$B$32:$B$40, MATCH(YEAR(TODAY())-C124, Lists!$C$32:$C$40,1)) -> 31-40 | P124: 299.211293 | Q124: =INDEX(Data!$E$24:$E$47, MATCH(F124&D124, Data!$B$24:$B$47,0)) -> 0.001996456114 | R124: =SUMPRODUCT((Data!$B$58:$B$60=Model!$F124)*(Data!$C$57:$K$57=Model!$O124)*(Data!$C$58:$K$60)) -> 3.003845297 | S124: 69.96154703 | T124: 1 | U124: =IF(E124<>"Serviceable",E124,INDEX(Lists!$D$6:$D$8, MATCH(T124,Lists!$C$6:$C$8,0))) -> Serviceable | V124: =INDEX(Lists!$C$12:$C$26, MATCH(H124, Lists!$B$12:$B$26,0)) -> HV
B125: 150 | C125: 1995 | D125: Wood Untreated Dressed | E125: Serviceable | F125: Class 1 | G125: 0 | H125: lv/hv | I125: 940 | J125: 2021 | K125: 150 | L125: No | M125: FALSE | N125: 10 | O125: =INDEX(Lists!$B$32:$B$40, MATCH(YEAR(TODAY())-C125, Lists!$C$32:$C$40,1)) -> 21-30 | P125: 299.211293 | Q125: =INDEX(Data!$E$24:$E$47, MATCH(F125&D125, Data!$B$24:$B$47,0)) -> 0.001996456114 | R125: =SUMPRODUCT((Data!$B$58:$B$60=Model!$F125)*(Data!$C$57:$K$57=Model!$O125)*(Data!$C$58:$K$60)) -> 2.165165223 | S125: 128.3483478 | T125: 1 | U125: =IF(E125<>"Serviceable",E125,INDEX(Lists!$D$6:$D$8, MATCH(T125,Lists!$C$6:$C$8,0))) -> Serviceable | V125: =INDEX(Lists!$C$12:$C$26, MATCH(H125, Lists!$B$12:$B$26,0)) -> HV
B126: 151 | C126: 1955 | D126: Wood Untreated Round | E126: Serviceable | F126: Class 2 | G126: 0 | H126: lv/hv | I126: 999 | J126: 2023 | K126: 90 | L126: No | M126: FALSE | N126: 10 | O126: =INDEX(Lists!$B$32:$B$40, MATCH(YEAR(TODAY())-C126, Lists!$C$32:$C$40,1)) -> 61-70 | P126: 317.9915763 | Q126: =INDEX(Data!$E$24:$E$47, MATCH(F126&D126, Data!$B$24:$B$47,0)) -> 0.002199770002 | R126: =SUMPRODUCT((Data!$B$58:$B$60=Model!$F126)*(Data!$C$57:$K$57=Model!$O126)*(Data!$C$58:$K$60)) -> 2.227481028 | S126: 67.72518972 | T126: 2 | U126: =IF(E126<>"Serviceable",E126,INDEX(Lists!$D$6:$D$8, MATCH(T126,Lists!$C$6:$C$8,0))) -> Limited Life | V126: =INDEX(Lists!$C$12:$C$26, MATCH(H126, Lists!$B$12:$B$26,0)) -> HV
B127: 152 | C127: 1963 | D127: Wood Creos Impregnated | E127: Serviceable | F127: Class 1 | G127: 0 | H127: lv/hv/sub-transmission | I127: 1005 | J127: 2021 | K127: 100 | L127: No | M127: FALSE | N127: 10 | O127: =INDEX(Lists!$B$32:$B$40, MATCH(YEAR(TODAY())-C127, Lists!$C$32:$C$40,1)) -> 61-70 | P127: 319.9014356 | Q127: =INDEX(Data!$E$24:$E$47, MATCH(F127&D127, Data!$B$24:$B$47,0)) -> 0.0009947499309 | R127: =SUMPRODUCT((Data!$B$58:$B$60=Model!$F127)*(Data!$C$57:$K$57=Model!$O127)*(Data!$C$58:$K$60)) -> 2.379583798 | S127: 76.20416202 | T127: 1 | U127: =IF(E127<>"Serviceable",E127,INDEX(Lists!$D$6:$D$8, MATCH(T127,Lists!$C$6:$C$8,0))) -> Serviceable | V127: =INDEX(Lists!$C$12:$C$26, MATCH(H127, Lists!$B$12:$B$26,0)) -> Sub-T
B128: 153 | C128: 1964 | D128: Wood Creos Impregnated | E128: Serviceable | F128: Class 3 | G128: 0 | H128: lv | I128: 950 | J128: 2021 | K128: 90 | L128: No | M128: FALSE | N128: 10 | O128: =INDEX(Lists!$B$32:$B$40, MATCH(YEAR(TODAY())-C128, Lists!$C$32:$C$40,1)) -> 61-70 | P128: 302.3943919 | Q128: =INDEX(Data!$E$24:$E$47, MATCH(F128&D128, Data!$B$24:$B$47,0)) -> 0.001068433916 | R128: =SUMPRODUCT((Data!$B$58:$B$60=Model!$F128)*(Data!$C$57:$K$57=Model!$O128)*(Data!$C$58:$K$60)) -> 1.980203131 | S128: 70.19796869 | T128: 1 | U128: =IF(E128<>"Serviceable",E128,INDEX(Lists!$D$6:$D$8, MATCH(T128,Lists!$C$6:$C$8,0))) -> Serviceable | V128: =INDEX(Lists!$C$12:$C$26, MATCH(H128, Lists!$B$12:$B$26,0)) -> LV
B129: 155 | C129: 1967 | D129: Wood Creos Impregnated | E129: Serviceable | F129: Class 3 | G129: 0 | H129: lv/hv/sub-transmission | I129: 945 | J129: 2021 | K129: 100 | L129: No | M129: FALSE | N129: 10 | O129: =INDEX(Lists!$B$32:$B$40, MATCH(YEAR(TODAY())-C129, Lists!$C$32:$C$40,1)) -> 51-60 | P129: 300.8028424 | Q129: =INDEX(Data!$E$24:$E$47, MATCH(F129&D129, Data!$B$24:$B$47,0)) -> 0.001068433916 | R129: =SUMPRODUCT((Data!$B$58:$B$60=Model!$F129)*(Data!$C$57:$K$57=Model!$O129)*(Data!$C$58:$K$60)) -> 2.656485925 | S129: 73.43514075 | T129: 1 | U129: =IF(E129<>"Serviceable",E129,INDEX(Lists!$D$6:$D$8, MATCH(T129,Lists!$C$6:$C$8,0))) -> Serviceable | V129: =INDEX(Lists!$C$12:$C$26, MATCH(H129, Lists!$B$12:$B$26,0)) -> Sub-T
B130: 158 | C130: 1972 | D130: Wood Creos Impregnated | E130: Serviceable | F130: Class 3 | G130: 0 | H130: lv | I130: 942 | J130: 2022 | K130: 100 | L130: No | M130: FALSE | N130: 10 | O130: =INDEX(Lists!$B$32:$B$40, MATCH(YEAR(TODAY())-C130, Lists!$C$32:$C$40,1)) -> 51-60 | P130: 299.8479128 | Q130: =INDEX(Data!$E$24:$E$47, MATCH(F130&D130, Data!$B$24:$B$47,0)) -> 0.001068433916 | R130: =SUMPRODUCT((Data!$B$58:$B$60=Model!$F130)*(Data!$C$57:$K$57=Model!$O130)*(Data!$C$58:$K$60)) -> 2.656485925 | S130: 73.43514075 | T130: 1 | U130: =IF(E130<>"Serviceable",E130,INDEX(Lists!$D$6:$D$8, MATCH(T130,Lists!$C$6:$C$8,0))) -> Serviceable | V130: =INDEX(Lists!$C$12:$C$26, MATCH(H130, Lists!$B$12:$B$26,0)) -> LV
B131: 159 | C131: 1956 | D131: Wood Untreated Round | E131: Serviceable | F131: Class 1 | G131: 0 | H131: lv | I131: 723 | J131: 2022 | K131: 110 | L131: No | M131: FALSE | N131: 10 | O131: =INDEX(Lists!$B$32:$B$40, MATCH(YEAR(TODAY())-C131, Lists!$C$32:$C$40,1)) -> 61-70 | P131: 230.1380477 | Q131: =INDEX(Data!$E$24:$E$47, MATCH(F131&D131, Data!$B$24:$B$47,0)) -> 0.001996456114 | R131: =SUMPRODUCT((Data!$B$58:$B$60=Model!$F131)*(Data!$C$57:$K$57=Model!$O131)*(Data!$C$58:$K$60)) -> 2.379583798 | S131: 86.20416202 | T131: 1 | U131: =IF(E131<>"Serviceable",E131,INDEX(Lists!$D$6:$D$8, MATCH(T131,Lists!$C$6:$C$8,0))) -> Serviceable | V131: =INDEX(Lists!$C$12:$C$26, MATCH(H131, Lists!$B$12:$B$26,0)) -> LV
B132: 160 | C132: 1980 | D132: Wood Untreated Dressed | E132: Serviceable | F132: Class 1 | G132: 0 | H132: lv/hv/sub-transmission | I132: 1068 | J132: 2022 | K132: 130 | L132: No | M132: FALSE | N132: 10 | O132: =INDEX(Lists!$B$32:$B$40, MATCH(YEAR(TODAY())-C132, Lists!$C$32:$C$40,1)) -> 41-50 | P132: 339.9549584 | Q132: =INDEX(Data!$E$24:$E$47, MATCH(F132&D132, Data!$B$24:$B$47,0)) -> 0.001996456114 | R132: =SUMPRODUCT((Data!$B$58:$B$60=Model!$F132)*(Data!$C$57:$K$57=Model!$O132)*(Data!$C$58:$K$60)) -> 1.797757842 | S132: 112.0224216 | T132: 1 | U132: =IF(E132<>"Serviceable",E132,INDEX(Lists!$D$6:$D$8, MATCH(T132,Lists!$C$6:$C$8,0))) -> Serviceable | V132: =INDEX(Lists!$C$12:$C$26, MATCH(H132, Lists!$B$12:$B$26,0)) -> Sub-T
B133: 162 | C133: 1966 | D133: Wood Creos Impregnated | E133: Serviceable | F133: Class 3 | G133: 0 | H133: lv/hv/sub-transmission | I133: 980 | J133: 2022 | K133: 80 | L133: No | M133: FALSE | N133: 10 | O133: =INDEX(Lists!$B$32:$B$40, MATCH(YEAR(TODAY())-C133, Lists!$C$32:$C$40,1)) -> 51-60 | P133: 311.9436885 | Q133: =INDEX(Data!$E$24:$E$47, MATCH(F133&D133, Data!$B$24:$B$47,0)) -> 0.001068433916 | R133: =SUMPRODUCT((Data!$B$58:$B$60=Model!$F133)*(Data!$C$57:$K$57=Model!$O133)*(Data!$C$58:$K$60)) -> 2.656485925 | S133: 53.43514075 | T133: 2 | U133: =IF(E133<>"Serviceable",E133,INDEX(Lists!$D$6:$D$8, MATCH(T133,Lists!$C$6:$C$8,0))) -> Limited Life | V133: =INDEX(Lists!$C$12:$C$26, MATCH(H133, Lists!$B$12:$B$26,0)) -> Sub-T
B134: 163 | C134: 1964 | D134: Wood Creos Impregnated | E134: Serviceable | F134: Class 3 | G134: 0 | H134: lv | I134: 970 | J134: 2022 | K134: 110 | L134: No | M134: FALSE | N134: 10 | O134: =INDEX(Lists!$B$32:$B$40, MATCH(YEAR(TODAY())-C134, Lists!$C$32:$C$40,1)) -> 61-70 | P134: 308.7605896 | Q134: =INDEX(Data!$E$24:$E$47, MATCH(F134&D134, Data!$B$24:$B$47,0)) -> 0.001068433916 | R134: =SUMPRODUCT((Data!$B$58:$B$60=Model!$F134)*(Data!$C$57:$K$57=Model!$O134)*(Data!$C$58:$K$60)) -> 1.980203131 | S134: 90.19796869 | T134: 1 | U134: =IF(E134<>"Serviceable",E134,INDEX(Lists!$D$6:$D$8, MATCH(T134,Lists!$C$6:$C$8,0))) -> Serviceable | V134: =INDEX(Lists!$C$12:$C$26, MATCH(H134, Lists!$B$12:$B$26,0)) -> LV
B135: 164 | C135: 1966 | D135: Wood Creos Impregnated | E135: Serviceable | F135: Class 3 | G135: 0 | H135: lv/hv/sub-transmission | I135: 1170 | J135: 2022 | K135: 110 | L135: No | M135: FALSE | N135: 10 | O135: =INDEX(Lists!$B$32:$B$40, MATCH(YEAR(TODAY())-C135, Lists!$C$32:$C$40,1)) -> 51-60 | P135: 372.4225668 | Q135: =INDEX(Data!$E$24:$E$47, MATCH(F135&D135, Data!$B$24:$B$47,0)) -> 0.001068433916 | R135: =SUMPRODUCT((Data!$B$58:$B$60=Model!$F135)*(Data!$C$57:$K$57=Model!$O135)*(Data!$C$58:$K$60)) -> 2.656485925 | S135: 83.43514075 | T135: 1 | U135: =IF(E135<>"Serviceable",E135,INDEX(Lists!$D$6:$D$8, MATCH(T135,Lists!$C$6:$C$8,0))) -> Serviceable | V135: =INDEX(Lists!$C$12:$C$26, MATCH(H135, Lists!$B$12:$B$26,0)) -> Sub-T
B136: 165 | C136: 1967 | D136: Wood Creos Impregnated | E136: Serviceable | F136: Class 3 | G136: 0 | H136: lv/hv/sub-transmission | I136: 850 | J136: 2021 | K136: 100 | L136: No | M136: FALSE | N136: =IF(L136="No",ROUND((End_year-J136)/5,0)*5,ROUND((End_year-J136)/3,0)*3) -> 10 | O136: =INDEX(Lists!$B$32:$B$40, MATCH(YEAR(TODAY())-C136, Lists!$C$32:$C$40,1)) -> 51-60 | P136: 270.5634033 | Q136: =INDEX(Data!$E$24:$E$47, MATCH(F136&D136, Data!$B$24:$B$47,0)) -> 0.001068433916 | R136: =SUMPRODUCT((Data!$B$58:$B$60=Model!$F136)*(Data!$C$57:$K$57=Model!$O136)*(Data!$C$58:$K$60)) -> 2.656485925 | S136: =IF(IF(K136>=700,999,(K136-R136*N136))<0,0,IF(K136>=700,999,(K136-R136*N136))) -> 73.43514075 | T136: =IF(S136<30,3,IF(AND(F136="Class 1",S136<50),2,IF(AND(F136="Class 1",S136>=50),1,IF(S136<70,2,1)))) -> 1 | U136: =IF(E136<>"Serviceable",E136,INDEX(Lists!$D$6:$D$8, MATCH(T136,Lists!$C$6:$C$8,0))) -> Serviceable | V136: =INDEX(Lists!$C$12:$C$26, MATCH(H136, Lists!$B$12:$B$26,0)) -> Sub-T
B137: 166 | C137: 1980 | D137: Wood Untreated Dressed | E137: Serviceable | F137: Class 1 | G137: 0 | H137: lv/hv | I137: 1000 | J137: 2022 | K137: 130 | L137: No | M137: =IF(G137=0,FALSE,TRUE) -> FALSE | N137: 10 | O137: =INDEX(Lists!$B$32:$B$40, MATCH(YEAR(TODAY())-C137, Lists!$C$32:$C$40,1)) -> 41-50 | P137: =I137/PI() -> 318.3098862 | Q137: =INDEX(Data!$E$24:$E$47, MATCH(F137&D137, Data!$B$24:$B$47,0)) -> 0.001996456114 | R137: =SUMPRODUCT((Data!$B$58:$B$60=Model!$F137)*(Data!$C$57:$K$57=Model!$O137)*(Data!$C$58:$K$60)) -> 1.797757842 | S137: 112.0224216 | T137: 1 | U137: =IF(E137<>"Serviceable",E137,INDEX(Lists!$D$6:$D$8, MATCH(T137,Lists!$C$6:$C$8,0))) -> Serviceable | V137: =INDEX(Lists!$C$12:$C$26, MATCH(H137, Lists!$B$12:$B$26,0)) -> HV
B138: 168 | C138: 1976 | D138: Wood Creos Impregnated | E138: Unserviceable | F138: Class 3 | G138: 0 | H138: lv/hv/sub-transmission | I138: 990 | J138: 2023 | K138: 20 | L138: No | M138: FALSE | N138: 10 | O138: =INDEX(Lists!$B$32:$B$40, MATCH(YEAR(TODAY())-C138, Lists!$C$32:$C$40,1)) -> 41-50 | P138: 315.1267873 | Q138: =INDEX(Data!$E$24:$E$47, MATCH(F138&D138, Data!$B$24:$B$47,0)) -> 0.001068433916 | R138: =SUMPRODUCT((Data!$B$58:$B$60=Model!$F138)*(Data!$C$57:$K$57=Model!$O138)*(Data!$C$58:$K$60)) -> 3.259592816 | S138: 0 | T138: 3 | U138: =IF(E138<>"Serviceable",E138,INDEX(Lists!$D$6:$D$8, MATCH(T138,Lists!$C$6:$C$8,0))) -> Unserviceable | V138: =INDEX(Lists!$C$12:$C$26, MATCH(H138, Lists!$B$12:$B$26,0)) -> Sub-T
B139: 169 | C139: 1972 | D139: Wood Creos Impregnated | E139: Serviceable | F139: Class 3 | G139: 0 | H139: lv | I139: 754 | J139: 2022 | K139: 90 | L139: No | M139: FALSE | N139: 10 | O139: =INDEX(Lists!$B$32:$B$40, MATCH(YEAR(TODAY())-C139, Lists!$C$32:$C$40,1)) -> 51-60 | P139: 240.0056542 | Q139: =INDEX(Data!$E$24:$E$47, MATCH(F139&D139, Data!$B$24:$B$47,0)) -> 0.001068433916 | R139: =SUMPRODUCT((Data!$B$58:$B$60=Model!$F139)*(Data!$C$57:$K$57=Model!$O139)*(Data!$C$58:$K$60)) -> 2.656485925 | S139: 63.43514075 | T139: 2 | U139: =IF(E139<>"Serviceable",E139,INDEX(Lists!$D$6:$D$8, MATCH(T139,Lists!$C$6:$C$8,0))) -> Limited Life | V139: =INDEX(Lists!$C$12:$C$26, MATCH(H139, Lists!$B$12:$B$26,0)) -> LV
B140: 170 | C140: 1972 | D140: Wood Creos Impregnated | E140: Serviceable | F140: Class 3 | G140: 0 | H140: lv | I140: 1100 | J140: 2022 | K140: 110 | L140: No | M140: FALSE | N140: 10 | O140: =INDEX(Lists!$B$32:$B$40, MATCH(YEAR(TODAY())-C140, Lists!$C$32:$C$40,1)) -> 51-60 | P140: 350.1408748 | Q140: =INDEX(Data!$E$24:$E$47, MATCH(F140&D140, Data!$B$24:$B$47,0)) -> 0.001068433916 | R140: =SUMPRODUCT((Data!$B$58:$B$60=Model!$F140)*(Data!$C$57:$K$57=Model!$O140)*(Data!$C$58:$K$60)) -> 2.656485925 | S140: 83.43514075 | T140: 1 | U140: =IF(E140<>"Serviceable",E140,INDEX(Lists!$D$6:$D$8, MATCH(T140,Lists!$C$6:$C$8,0))) -> Serviceable | V140: =INDEX(Lists!$C$12:$C$26, MATCH(H140, Lists!$B$12:$B$26,0)) -> LV
B141: 171 | C141: 1964 | D141: Wood Creos Impregnated | E141: Serviceable | F141: Class 3 | G141: 0 | H141: lv | I141: 942 | J141: 2022 | K141: 110 | L141: No | M141: FALSE | N141: 10 | O141: =INDEX(Lists!$B$32:$B$40, MATCH(YEAR(TODAY())-C141, Lists!$C$32:$C$40,1)) -> 61-70 | P141: 299.8479128 | Q141: =INDEX(Data!$E$24:$E$47, MATCH(F141&D141, Data!$B$24:$B$47,0)) -> 0.001068433916 | R141: =SUMPRODUCT((Data!$B$58:$B$60=Model!$F141)*(Data!$C$57:$K$57=Model!$O141)*(Data!$C$58:$K$60)) -> 1.980203131 | S141: 90.19796869 | T141: 1 | U141: =IF(E141<>"Serviceable",E141,INDEX(Lists!$D$6:$D$8, MATCH(T141,Lists!$C$6:$C$8,0))) -> Serviceable | V141: =INDEX(Lists!$C$12:$C$26, MATCH(H141, Lists!$B$12:$B$26,0)) -> LV
B142: 173 | C142: 1979 | D142: Wood Untreated Dressed | E142: Serviceable | F142: Class 1 | G142: 0 | H142: lv | I142: 974 | J142: 2022 | K142: 110 | L142: No | M142: FALSE | N142: 10 | O142: =INDEX(Lists!$B$32:$B$40, MATCH(YEAR(TODAY())-C142, Lists!$C$32:$C$40,1)) -> 41-50 | P142: 310.0338291 | Q142: =INDEX(Data!$E$24:$E$47, MATCH(F142&D142, Data!$B$24:$B$47,0)) -> 0.001996456114 | R142: =SUMPRODUCT((Data!$B$58:$B$60=Model!$F142)*(Data!$C$57:$K$57=Model!$O142)*(Data!$C$58:$K$60)) -> 1.797757842 | S142: 92.02242158 | T142: 1 | U142: =IF(E142<>"Serviceable",E142,INDEX(Lists!$D$6:$D$8, MATCH(T142,Lists!$C$6:$C$8,0))) -> Serviceable | V142: =INDEX(Lists!$C$12:$C$26, MATCH(H142, Lists!$B$12:$B$26,0)) -> LV
B143: 174 | C143: 1965 | D143: Wood Creos Impregnated | E143: Serviceable | F143: Class 3 | G143: 0 | H143: lv/hv | I143: 911 | J143: 2022 | K143: 100 | L143: No | M143: FALSE | N143: 10 | O143: =INDEX(Lists!$B$32:$B$40, MATCH(YEAR(TODAY())-C143, Lists!$C$32:$C$40,1)) -> 51-60 | P143: 289.9803063 | Q143: =INDEX(Data!$E$24:$E$47, MATCH(F143&D143, Data!$B$24:$B$47,0)) -> 0.001068433916 | R143: =SUMPRODUCT((Data!$B$58:$B$60=Model!$F143)*(Data!$C$57:$K$57=Model!$O143)*(Data!$C$58:$K$60)) -> 2.656485925 | S143: 73.43514075 | T143: 1 | U143: =IF(E143<>"Serviceable",E143,INDEX(Lists!$D$6:$D$8, MATCH(T143,Lists!$C$6:$C$8,0))) -> Serviceable | V143: =INDEX(Lists!$C$12:$C$26, MATCH(H143, Lists!$B$12:$B$26,0)) -> HV
B144: 175 | C144: 1975 | D144: Wood Creos Impregnated | E144: Serviceable | F144: Class 1 | G144: 0 | H144: lv/hv | I144: 785 | J144: 2022 | K144: 110 | L144: No | M144: FALSE | N144: 10 | O144: =INDEX(Lists!$B$32:$B$40, MATCH(YEAR(TODAY())-C144, Lists!$C$32:$C$40,1)) -> 41-50 | P144: 249.8732607 | Q144: =INDEX(Data!$E$24:$E$47, MATCH(F144&D144, Data!$B$24:$B$47,0)) -> 0.0009947499309 | R144: =SUMPRODUCT((Data!$B$58:$B$60=Model!$F144)*(Data!$C$57:$K$57=Model!$O144)*(Data!$C$58:$K$60)) -> 1.797757842 | S144: 92.02242158 | T144: 1 | U144: =IF(E144<>"Serviceable",E144,INDEX(Lists!$D$6:$D$8, MATCH(T144,Lists!$C$6:$C$8,0))) -> Serviceable | V144: =INDEX(Lists!$C$12:$C$26, MATCH(H144, Lists!$B$12:$B$26,0)) -> HV
B145: 181 | C145: 1971 | D145: Wood Creos Impregnated | E145: Serviceable | F145: Class 3 | G145: 0 | H145: lv | I145: 880 | J145: 2022 | K145: 100 | L145: No | M145: FALSE | N145: 10 | O145: =INDEX(Lists!$B$32:$B$40, MATCH(YEAR(TODAY())-C145, Lists!$C$32:$C$40,1)) -> 51-60 | P145: 280.1126998 | Q145: =INDEX(Data!$E$24:$E$47, MATCH(F145&D145, Data!$B$24:$B$47,0)) -> 0.001068433916 | R145: =SUMPRODUCT((Data!$B$58:$B$60=Model!$F145)*(Data!$C$57:$K$57=Model!$O145)*(Data!$C$58:$K$60)) -> 2.656485925 | S145: 73.43514075 | T145: 1 | U145: =IF(E145<>"Serviceable",E145,INDEX(Lists!$D$6:$D$8, MATCH(T145,Lists!$C$6:$C$8,0))) -> Serviceable | V145: =INDEX(Lists!$C$12:$C$26, MATCH(H145, Lists!$B$12:$B$26,0)) -> LV
B146: 184 | C146: 1967 | D146: Wood Creos Impregnated | E146: Serviceable | F146: Class 3 | G146: 0 | H146: lv/hv/sub-transmission | I146: 970 | J146: 2022 | K146: 80 | L146: No | M146: FALSE | N146: 10 | O146: =INDEX(Lists!$B$32:$B$40, MATCH(YEAR(TODAY())-C146, Lists!$C$32:$C$40,1)) -> 51-60 | P146: 308.7605896 | Q146: =INDEX(Data!$E$24:$E$47, MATCH(F146&D146, Data!$B$24:$B$47,0)) -> 0.001068433916 | R146: =SUMPRODUCT((Data!$B$58:$B$60=Model!$F146)*(Data!$C$57:$K$57=Model!$O146)*(Data!$C$58:$K$60)) -> 2.656485925 | S146: 53.43514075 | T146: 2 | U146: =IF(E146<>"Serviceable",E146,INDEX(Lists!$D$6:$D$8, MATCH(T146,Lists!$C$6:$C$8,0))) -> Limited Life | V146: =INDEX(Lists!$C$12:$C$26, MATCH(H146, Lists!$B$12:$B$26,0)) -> Sub-T
B147: 186 | C147: 1995 | D147: Wood Untreated Dressed | E147: Serviceable | F147: Class 1 | G147: 0 | H147: lv/hv/sub-transmission | I147: 1068 | J147: 2022 | K147: 150 | L147: No | M147: FALSE | N147: 10 | O147: =INDEX(Lists!$B$32:$B$40, MATCH(YEAR(TODAY())-C147, Lists!$C$32:$C$40,1)) -> 21-30 | P147: 339.9549584 | Q147: =INDEX(Data!$E$24:$E$47, MATCH(F147&D147, Data!$B$24:$B$47,0)) -> 0.001996456114 | R147: =SUMPRODUCT((Data!$B$58:$B$60=Model!$F147)*(Data!$C$57:$K$57=Model!$O147)*(Data!$C$58:$K$60)) -> 2.165165223 | S147: 128.3483478 | T147: 1 | U147: =IF(E147<>"Serviceable",E147,INDEX(Lists!$D$6:$D$8, MATCH(T147,Lists!$C$6:$C$8,0))) -> Serviceable | V147: =INDEX(Lists!$C$12:$C$26, MATCH(H147, Lists!$B$12:$B$26,0)) -> Sub-T
B148: 187 | C148: 1967 | D148: Wood Creos Impregnated | E148: Serviceable | F148: Class 3 | G148: 0 | H148: lv/hv/sub-transmission | I148: 1005 | J148: 2022 | K148: 110 | L148: No | M148: FALSE | N148: 10 | O148: =INDEX(Lists!$B$32:$B$40, MATCH(YEAR(TODAY())-C148, Lists!$C$32:$C$40,1)) -> 51-60 | P148: 319.9014356 | Q148: =INDEX(Data!$E$24:$E$47, MATCH(F148&D148, Data!$B$24:$B$47,0)) -> 0.001068433916 | R148: =SUMPRODUCT((Data!$B$58:$B$60=Model!$F148)*(Data!$C$57:$K$57=Model!$O148)*(Data!$C$58:$K$60)) -> 2.656485925 | S148: 83.43514075 | T148: 1 | U148: =IF(E148<>"Serviceable",E148,INDEX(Lists!$D$6:$D$8, MATCH(T148,Lists!$C$6:$C$8,0))) -> Serviceable | V148: =INDEX(Lists!$C$12:$C$26, MATCH(H148, Lists!$B$12:$B$26,0)) -> Sub-T
B149: 188 | C149: 1986 | D149: Wood Untreated Dressed | E149: Serviceable | F149: Class 1 | G149: 0 | H149: lv/hv/sub-transmission | I149: 1037 | J149: 2022 | K149: 130 | L149: No | M149: FALSE | N149: 10 | O149: =INDEX(Lists!$B$32:$B$40, MATCH(YEAR(TODAY())-C149, Lists!$C$32:$C$40,1)) -> 31-40 | P149: 330.087352 | Q149: =INDEX(Data!$E$24:$E$47, MATCH(F149&D149, Data!$B$24:$B$47,0)) -> 0.001996456114 | R149: =SUMPRODUCT((Data!$B$58:$B$60=Model!$F149)*(Data!$C$57:$K$57=Model!$O149)*(Data!$C$58:$K$60)) -> 3.003845297 | S149: 99.96154703 | T149: 1 | U149: =IF(E149<>"Serviceable",E149,INDEX(Lists!$D$6:$D$8, MATCH(T149,Lists!$C$6:$C$8,0))) -> Serviceable | V149: =INDEX(Lists!$C$12:$C$26, MATCH(H149, Lists!$B$12:$B$26,0)) -> Sub-T
B150: 189 | C150: 1967 | D150: Wood Creos Impregnated | E150: Serviceable | F150: Class 3 | G150: 0 | H150: lv/hv/sub-transmission | I150: 1100 | J150: 2022 | K150: 100 | L150: No | M150: FALSE | N150: 10 | O150: =INDEX(Lists!$B$32:$B$40, MATCH(YEAR(TODAY())-C150, Lists!$C$32:$C$40,1)) -> 51-60 | P150: 350.1408748 | Q150: =INDEX(Data!$E$24:$E$47, MATCH(F150&D150, Data!$B$24:$B$47,0)) -> 0.001068433916 | R150: =SUMPRODUCT((Data!$B$58:$B$60=Model!$F150)*(Data!$C$57:$K$57=Model!$O150)*(Data!$C$58:$K$60)) -> 2.656485925 | S150: 73.43514075 | T150: 1 | U150: =IF(E150<>"Serviceable",E150,INDEX(Lists!$D$6:$D$8, MATCH(T150,Lists!$C$6:$C$8,0))) -> Serviceable | V150: =INDEX(Lists!$C$12:$C$26, MATCH(H150, Lists!$B$12:$B$26,0)) -> Sub-T
B151: 191 | C151: 1986 | D151: Wood Untreated Dressed | E151: Serviceable | F151: Class 1 | G151: 0 | H151: lv | I151: 900 | J151: 2022 | K151: 90 | L151: No | M151: FALSE | N151: 10 | O151: =INDEX(Lists!$B$32:$B$40, MATCH(YEAR(TODAY())-C151, Lists!$C$32:$C$40,1)) -> 31-40 | P151: 286.4788976 | Q151: =INDEX(Data!$E$24:$E$47, MATCH(F151&D151, Data!$B$24:$B$47,0)) -> 0.001996456114 | R151: =SUMPRODUCT((Data!$B$58:$B$60=Model!$F151)*(Data!$C$57:$K$57=Model!$O151)*(Data!$C$58:$K$60)) -> 3.003845297 | S151: 59.96154703 | T151: 1 | U151: =IF(E151<>"Serviceable",E151,INDEX(Lists!$D$6:$D$8, MATCH(T151,Lists!$C$6:$C$8,0))) -> Serviceable | V151: =INDEX(Lists!$C$12:$C$26, MATCH(H151, Lists!$B$12:$B$26,0)) -> LV
B152: 192 | C152: 1974 | D152: Wood Creos Impregnated | E152: Serviceable | F152: Class 1 | G152: 0 | H152: lv | I152: 880 | J152: 2022 | K152: 100 | L152: No | M152: FALSE | N152: 10 | O152: =INDEX(Lists!$B$32:$B$40, MATCH(YEAR(TODAY())-C152, Lists!$C$32:$C$40,1)) -> 51-60 | P152: 280.1126998 | Q152: =INDEX(Data!$E$24:$E$47, MATCH(F152&D152, Data!$B$24:$B$47,0)) -> 0.0009947499309 | R152: =SUMPRODUCT((Data!$B$58:$B$60=Model!$F152)*(Data!$C$57:$K$57=Model!$O152)*(Data!$C$58:$K$60)) -> 1.355721009 | S152: 86.44278991 | T152: 1 | U152: =IF(E152<>"Serviceable",E152,INDEX(Lists!$D$6:$D$8, MATCH(T152,Lists!$C$6:$C$8,0))) -> Serviceable | V152: =INDEX(Lists!$C$12:$C$26, MATCH(H152, Lists!$B$12:$B$26,0)) -> LV
B153: 193 | C153: 1967 | D153: Wood Creos Impregnated | E153: Serviceable | F153: Class 3 | G153: 0 | H153: lv/hv/sub-transmission | I153: 1068 | J153: 2022 | K153: 100 | L153: No | M153: FALSE | N153: 10 | O153: =INDEX(Lists!$B$32:$B$40, MATCH(YEAR(TODAY())-C153, Lists!$C$32:$C$40,1)) -> 51-60 | P153: 339.9549584 | Q153: =INDEX(Data!$E$24:$E$47, MATCH(F153&D153, Data!$B$24:$B$47,0)) -> 0.001068433916 | R153: =SUMPRODUCT((Data!$B$58:$B$60=Model!$F153)*(Data!$C$57:$K$57=Model!$O153)*(Data!$C$58:$K$60)) -> 2.656485925 | S153: 73.43514075 | T153: 1 | U153: =IF(E153<>"Serviceable",E153,INDEX(Lists!$D$6:$D$8, MATCH(T153,Lists!$C$6:$C$8,0))) -> Serviceable | V153: =INDEX(Lists!$C$12:$C$26, MATCH(H153, Lists!$B$12:$B$26,0)) -> Sub-T
B154: 195 | C154: 1971 | D154: Wood Creos Impregnated | E154: Serviceable | F154: Class 3 | G154: 0 | H154: lv | I154: 785 | J154: 2022 | K154: 80 | L154: No | M154: FALSE | N154: 10 | O154: =INDEX(Lists!$B$32:$B$40, MATCH(YEAR(TODAY())-C154, Lists!$C$32:$C$40,1)) -> 51-60 | P154: 249.8732607 | Q154: =INDEX(Data!$E$24:$E$47, MATCH(F154&D154, Data!$B$24:$B$47,0)) -> 0.001068433916 | R154: =SUMPRODUCT((Data!$B$58:$B$60=Model!$F154)*(Data!$C$57:$K$57=Model!$O154)*(Data!$C$58:$K$60)) -> 2.656485925 | S154: 53.43514075 | T154: 2 | U154: =IF(E154<>"Serviceable",E154,INDEX(Lists!$D$6:$D$8, MATCH(T154,Lists!$C$6:$C$8,0))) -> Limited Life | V154: =INDEX(Lists!$C$12:$C$26, MATCH(H154, Lists!$B$12:$B$26,0)) -> LV
B155: 197 | C155: 1971 | D155: Wood Creos Impregnated | E155: Serviceable | F155: Class 3 | G155: 0 | H155: lv | I155: 890 | J155: 2022 | K155: 90 | L155: No | M155: FALSE | N155: 10 | O155: =INDEX(Lists!$B$32:$B$40, MATCH(YEAR(TODAY())-C155, Lists!$C$32:$C$40,1)) -> 51-60 | P155: 283.2957987 | Q155: =INDEX(Data!$E$24:$E$47, MATCH(F155&D155, Data!$B$24:$B$47,0)) -> 0.001068433916 | R155: =SUMPRODUCT((Data!$B$58:$B$60=Model!$F155)*(Data!$C$57:$K$57=Model!$O155)*(Data!$C$58:$K$60)) -> 2.656485925 | S155: 63.43514075 | T155: 2 | U155: =IF(E155<>"Serviceable",E155,INDEX(Lists!$D$6:$D$8, MATCH(T155,Lists!$C$6:$C$8,0))) -> Limited Life | V155: =INDEX(Lists!$C$12:$C$26, MATCH(H155, Lists!$B$12:$B$26,0)) -> LV
B156: 198 | C156: 1980 | D156: Wood Untreated Dressed | E156: Serviceable | F156: Class 1 | G156: 0 | H156: lv | I156: 848 | J156: 2022 | K156: 110 | L156: No | M156: FALSE | N156: 10 | O156: =INDEX(Lists!$B$32:$B$40, MATCH(YEAR(TODAY())-C156, Lists!$C$32:$C$40,1)) -> 41-50 | P156: 269.9267835 | Q156: =INDEX(Data!$E$24:$E$47, MATCH(F156&D156, Data!$B$24:$B$47,0)) -> 0.001996456114 | R156: =SUMPRODUCT((Data!$B$58:$B$60=Model!$F156)*(Data!$C$57:$K$57=Model!$O156)*(Data!$C$58:$K$60)) -> 1.797757842 | S156: 92.02242158 | T156: 1 | U156: =IF(E156<>"Serviceable",E156,INDEX(Lists!$D$6:$D$8, MATCH(T156,Lists!$C$6:$C$8,0))) -> Serviceable | V156: =INDEX(Lists!$C$12:$C$26, MATCH(H156, Lists!$B$12:$B$26,0)) -> LV
B157: 199 | C157: 1966 | D157: Wood Creos Impregnated | E157: Serviceable | F157: Class 3 | G157: 0 | H157: lv | I157: 942 | J157: 2022 | K157: 100 | L157: No | M157: FALSE | N157: 10 | O157: =INDEX(Lists!$B$32:$B$40, MATCH(YEAR(TODAY())-C157, Lists!$C$32:$C$40,1)) -> 51-60 | P157: 299.8479128 | Q157: =INDEX(Data!$E$24:$E$47, MATCH(F157&D157, Data!$B$24:$B$47,0)) -> 0.001068433916 | R157: =SUMPRODUCT((Data!$B$58:$B$60=Model!$F157)*(Data!$C$57:$K$57=Model!$O157)*(Data!$C$58:$K$60)) -> 2.656485925 | S157: 73.43514075 | T157: 1 | U157: =IF(E157<>"Serviceable",E157,INDEX(Lists!$D$6:$D$8, MATCH(T157,Lists!$C$6:$C$8,0))) -> Serviceable | V157: =INDEX(Lists!$C$12:$C$26, MATCH(H157, Lists!$B$12:$B$26,0)) -> LV
B158: 200 | C158: 1981 | D158: Wood Untreated Dressed | E158: Serviceable | F158: Class 1 | G158: 0 | H158: lv | I158: 911 | J158: 2022 | K158: 110 | L158: No | M158: FALSE | N158: 10 | O158: =INDEX(Lists!$B$32:$B$40, MATCH(YEAR(TODAY())-C158, Lists!$C$32:$C$40,1)) -> 41-50 | P158: 289.9803063 | Q158: =INDEX(Data!$E$24:$E$47, MATCH(F158&D158, Data!$B$24:$B$47,0)) -> 0.001996456114 | R158: =SUMPRODUCT((Data!$B$58:$B$60=Model!$F158)*(Data!$C$57:$K$57=Model!$O158)*(Data!$C$58:$K$60)) -> 1.797757842 | S158: 92.02242158 | T158: 1 | U158: =IF(E158<>"Serviceable",E158,INDEX(Lists!$D$6:$D$8, MATCH(T158,Lists!$C$6:$C$8,0))) -> Serviceable | V158: =INDEX(Lists!$C$12:$C$26, MATCH(H158, Lists!$B$12:$B$26,0)) -> LV
B159: 202 | C159: 1971 | D159: Wood Creos Impregnated | E159: Serviceable | F159: Class 3 | G159: 0 | H159: lv | I159: 1210 | J159: 2022 | K159: 100 | L159: No | M159: FALSE | N159: 10 | O159: =INDEX(Lists!$B$32:$B$40, MATCH(YEAR(TODAY())-C159, Lists!$C$32:$C$40,1)) -> 51-60 | P159: 385.1549623 | Q159: =INDEX(Data!$E$24:$E$47, MATCH(F159&D159, Data!$B$24:$B$47,0)) -> 0.001068433916 | R159: =SUMPRODUCT((Data!$B$58:$B$60=Model!$F159)*(Data!$C$57:$K$57=Model!$O159)*(Data!$C$58:$K$60)) -> 2.656485925 | S159: 73.43514075 | T159: 1 | U159: =IF(E159<>"Serviceable",E159,INDEX(Lists!$D$6:$D$8, MATCH(T159,Lists!$C$6:$C$8,0))) -> Serviceable | V159: =INDEX(Lists!$C$12:$C$26, MATCH(H159, Lists!$B$12:$B$26,0)) -> LV
B160: 203 | C160: 1984 | D160: Wood Untreated Dressed | E160: Serviceable | F160: Class 1 | G160: 0 | H160: lv | I160: 1005 | J160: 2022 | K160: 150 | L160: No | M160: FALSE | N160: 10 | O160: =INDEX(Lists!$B$32:$B$40, MATCH(YEAR(TODAY())-C160, Lists!$C$32:$C$40,1)) -> 41-50 | P160: 319.9014356 | Q160: =INDEX(Data!$E$24:$E$47, MATCH(F160&D160, Data!$B$24:$B$47,0)) -> 0.001996456114 | R160: =SUMPRODUCT((Data!$B$58:$B$60=Model!$F160)*(Data!$C$57:$K$57=Model!$O160)*(Data!$C$58:$K$60)) -> 1.797757842 | S160: 132.0224216 | T160: 1 | U160: =IF(E160<>"Serviceable",E160,INDEX(Lists!$D$6:$D$8, MATCH(T160,Lists!$C$6:$C$8,0))) -> Serviceable | V160: =INDEX(Lists!$C$12:$C$26, MATCH(H160, Lists!$B$12:$B$26,0)) -> LV
B161: 204 | C161: 1999 | D161: Wood Untreated Round | E161: Serviceable | F161: Class 1 | G161: 0 | H161: lv | I161: 848 | J161: 2022 | K161: 120 | L161: No | M161: FALSE | N161: 10 | O161: =INDEX(Lists!$B$32:$B$40, MATCH(YEAR(TODAY())-C161, Lists!$C$32:$C$40,1)) -> 21-30 | P161: 269.9267835 | Q161: =INDEX(Data!$E$24:$E$47, MATCH(F161&D161, Data!$B$24:$B$47,0)) -> 0.001996456114 | R161: =SUMPRODUCT((Data!$B$58:$B$60=Model!$F161)*(Data!$C$57:$K$57=Model!$O161)*(Data!$C$58:$K$60)) -> 2.165165223 | S161: 98.34834777 | T161: 1 | U161: =IF(E161<>"Serviceable",E161,INDEX(Lists!$D$6:$D$8, MATCH(T161,Lists!$C$6:$C$8,0))) -> Serviceable | V161: =INDEX(Lists!$C$12:$C$26, MATCH(H161, Lists!$B$12:$B$26,0)) -> LV
B162: 208 | C162: 1962 | D162: Wood Creos Impregnated | E162: Serviceable | F162: Class 3 | G162: 0 | H162: lv/hv | I162: 1200 | J162: 2022 | K162: 110 | L162: No | M162: FALSE | N162: 10 | O162: =INDEX(Lists!$B$32:$B$40, MATCH(YEAR(TODAY())-C162, Lists!$C$32:$C$40,1)) -> 61-70 | P162: 381.9718634 | Q162: =INDEX(Data!$E$24:$E$47, MATCH(F162&D162, Data!$B$24:$B$47,0)) -> 0.001068433916 | R162: =SUMPRODUCT((Data!$B$58:$B$60=Model!$F162)*(Data!$C$57:$K$57=Model!$O162)*(Data!$C$58:$K$60)) -> 1.980203131 | S162: 90.19796869 | T162: 1 | U162: =IF(E162<>"Serviceable",E162,INDEX(Lists!$D$6:$D$8, MATCH(T162,Lists!$C$6:$C$8,0))) -> Serviceable | V162: =INDEX(Lists!$C$12:$C$26, MATCH(H162, Lists!$B$12:$B$26,0)) -> HV
B163: 210 | C163: 1967 | D163: Wood Creos Impregnated | E163: Serviceable | F163: Class 3 | G163: 0 | H163: lv/hv/sub-transmission | I163: 1150 | J163: 2022 | K163: 90 | L163: No | M163: FALSE | N163: 10 | O163: =INDEX(Lists!$B$32:$B$40, MATCH(YEAR(TODAY())-C163, Lists!$C$32:$C$40,1)) -> 51-60 | P163: 366.0563691 | Q163: =INDEX(Data!$E$24:$E$47, MATCH(F163&D163, Data!$B$24:$B$47,0)) -> 0.001068433916 | R163: =SUMPRODUCT((Data!$B$58:$B$60=Model!$F163)*(Data!$C$57:$K$57=Model!$O163)*(Data!$C$58:$K$60)) -> 2.656485925 | S163: 63.43514075 | T163: 2 | U163: =IF(E163<>"Serviceable",E163,INDEX(Lists!$D$6:$D$8, MATCH(T163,Lists!$C$6:$C$8,0))) -> Limited Life | V163: =INDEX(Lists!$C$12:$C$26, MATCH(H163, Lists!$B$12:$B$26,0)) -> Sub-T
B164: 211 | C164: 1963 | D164: Wood Creos Impregnated | E164: Serviceable | F164: Class 3 | G164: 0 | H164: lv/hv | I164: 1100 | J164: 2022 | K164: 70 | L164: No | M164: FALSE | N164: 10 | O164: =INDEX(Lists!$B$32:$B$40, MATCH(YEAR(TODAY())-C164, Lists!$C$32:$C$40,1)) -> 61-70 | P164: 350.1408748 | Q164: =INDEX(Data!$E$24:$E$47, MATCH(F164&D164, Data!$B$24:$B$47,0)) -> 0.001068433916 | R164: =SUMPRODUCT((Data!$B$58:$B$60=Model!$F164)*(Data!$C$57:$K$57=Model!$O164)*(Data!$C$58:$K$60)) -> 1.980203131 | S164: 50.19796869 | T164: 2 | U164: =IF(E164<>"Serviceable",E164,INDEX(Lists!$D$6:$D$8, MATCH(T164,Lists!$C$6:$C$8,0))) -> Limited Life | V164: =INDEX(Lists!$C$12:$C$26, MATCH(H164, Lists!$B$12:$B$26,0)) -> HV
B165: 212 | C165: 1967 | D165: Wood Creos Impregnated | E165: Serviceable | F165: Class 3 | G165: 0 | H165: lv/hv/sub-transmission | I165: 1120 | J165: 2022 | K165: 110 | L165: No | M165: FALSE | N165: 10 | O165: =INDEX(Lists!$B$32:$B$40, MATCH(YEAR(TODAY())-C165, Lists!$C$32:$C$40,1)) -> 51-60 | P165: 356.5070725 | Q165: =INDEX(Data!$E$24:$E$47, MATCH(F165&D165, Data!$B$24:$B$47,0)) -> 0.001068433916 | R165: =SUMPRODUCT((Data!$B$58:$B$60=Model!$F165)*(Data!$C$57:$K$57=Model!$O165)*(Data!$C$58:$K$60)) -> 2.656485925 | S165: 83.43514075 | T165: 1 | U165: =IF(E165<>"Serviceable",E165,INDEX(Lists!$D$6:$D$8, MATCH(T165,Lists!$C$6:$C$8,0))) -> Serviceable | V165: =INDEX(Lists!$C$12:$C$26, MATCH(H165, Lists!$B$12:$B$26,0)) -> Sub-T
B166: 213 | C166: 1963 | D166: Wood Creos Impregnated | E166: Serviceable | F166: Class 3 | G166: 0 | H166: lv/hv/sub-transmission | I166: 1000 | J166: 2022 | K166: 110 | L166: No | M166: FALSE | N166: 10 | O166: =INDEX(Lists!$B$32:$B$40, MATCH(YEAR(TODAY())-C166, Lists!$C$32:$C$40,1)) -> 61-70 | P166: 318.3098862 | Q166: =INDEX(Data!$E$24:$E$47, MATCH(F166&D166, Data!$B$24:$B$47,0)) -> 0.001068433916 | R166: =SUMPRODUCT((Data!$B$58:$B$60=Model!$F166)*(Data!$C$57:$K$57=Model!$O166)*(Data!$C$58:$K$60)) -> 1.980203131 | S166: 90.19796869 | T166: 1 | U166: =IF(E166<>"Serviceable",E166,INDEX(Lists!$D$6:$D$8, MATCH(T166,Lists!$C$6:$C$8,0))) -> Serviceable | V166: =INDEX(Lists!$C$12:$C$26, MATCH(H166, Lists!$B$12:$B$26,0)) -> Sub-T
B167: 214 | C167: 1964 | D167: Wood Creos Impregnated | E167: Serviceable | F167: Class 3 | G167: 0 | H167: lv/hv | I167: 850 | J167: 2022 | K167: 90 | L167: No | M167: FALSE | N167: 10 | O167: =INDEX(Lists!$B$32:$B$40, MATCH(YEAR(TODAY())-C167, Lists!$C$32:$C$40,1)) -> 61-70 | P167: 270.5634033 | Q167: =INDEX(Data!$E$24:$E$47, MATCH(F167&D167, Data!$B$24:$B$47,0)) -> 0.001068433916 | R167: =SUMPRODUCT((Data!$B$58:$B$60=Model!$F167)*(Data!$C$57:$K$57=Model!$O167)*(Data!$C$58:$K$60)) -> 1.980203131 | S167: 70.19796869 | T167: 1 | U167: =IF(E167<>"Serviceable",E167,INDEX(Lists!$D$6:$D$8, MATCH(T167,Lists!$C$6:$C$8,0))) -> Serviceable | V167: =INDEX(Lists!$C$12:$C$26, MATCH(H167, Lists!$B$12:$B$26,0)) -> HV
B168: 216 | C168: 1934 | D168: Wood Untreated Dressed | E168: Serviceable | F168: Class 1 | G168: 0 | H168: lv | I168: 830 | J168: 2022 | K168: 100 | L168: No | M168: FALSE | N168: 10 | O168: =INDEX(Lists!$B$32:$B$40, MATCH(YEAR(TODAY())-C168, Lists!$C$32:$C$40,1)) -> 90+ | P168: 264.1972055 | Q168: =INDEX(Data!$E$24:$E$47, MATCH(F168&D168, Data!$B$24:$B$47,0)) -> 0.001996456114 | R168: =SUMPRODUCT((Data!$B$58:$B$60=Model!$F168)*(Data!$C$57:$K$57=Model!$O168)*(Data!$C$58:$K$60)) -> 1.483534105 | S168: 85.16465895 | T168: 1 | U168: =IF(E168<>"Serviceable",E168,INDEX(Lists!$D$6:$D$8, MATCH(T168,Lists!$C$6:$C$8,0))) -> Serviceable | V168: =INDEX(Lists!$C$12:$C$26, MATCH(H168, Lists!$B$12:$B$26,0)) -> LV
B169: 217 | C169: 1987 | D169: Wood Untreated Dressed | E169: Serviceable | F169: Class 1 | G169: 0 | H169: lv | I169: 880 | J169: 2022 | K169: 100 | L169: No | M169: FALSE | N169: 10 | O169: =INDEX(Lists!$B$32:$B$40, MATCH(YEAR(TODAY())-C169, Lists!$C$32:$C$40,1)) -> 31-40 | P169: 280.1126998 | Q169: =INDEX(Data!$E$24:$E$47, MATCH(F169&D169, Data!$B$24:$B$47,0)) -> 0.001996456114 | R169: =SUMPRODUCT((Data!$B$58:$B$60=Model!$F169)*(Data!$C$57:$K$57=Model!$O169)*(Data!$C$58:$K$60)) -> 3.003845297 | S169: 69.96154703 | T169: 1 | U169: =IF(E169<>"Serviceable",E169,INDEX(Lists!$D$6:$D$8, MATCH(T169,Lists!$C$6:$C$8,0))) -> Serviceable | V169: =INDEX(Lists!$C$12:$C$26, MATCH(H169, Lists!$B$12:$B$26,0)) -> LV
B170: 218 | C170: 1967 | D170: Wood Creos Impregnated | E170: Serviceable | F170: Class 3 | G170: 0 | H170: lv/hv/sub-transmission | I170: 890 | J170: 2022 | K170: 100 | L170: No | M170: FALSE | N170: 10 | O170: =INDEX(Lists!$B$32:$B$40, MATCH(YEAR(TODAY())-C170, Lists!$C$32:$C$40,1)) -> 51-60 | P170: 283.2957987 | Q170: =INDEX(Data!$E$24:$E$47, MATCH(F170&D170, Data!$B$24:$B$47,0)) -> 0.001068433916 | R170: =SUMPRODUCT((Data!$B$58:$B$60=Model!$F170)*(Data!$C$57:$K$57=Model!$O170)*(Data!$C$58:$K$60)) -> 2.656485925 | S170: 73.43514075 | T170: 1 | U170: =IF(E170<>"Serviceable",E170,INDEX(Lists!$D$6:$D$8, MATCH(T170,Lists!$C$6:$C$8,0))) -> Serviceable | V170: =INDEX(Lists!$C$12:$C$26, MATCH(H170, Lists!$B$12:$B$26,0)) -> Sub-T
B171: 219 | C171: 1967 | D171: Wood Creos Impregnated | E171: Serviceable | F171: Class 3 | G171: 0 | H171: lv/hv/sub-transmission | I171: 1060 | J171: 2022 | K171: 90 | L171: No | M171: FALSE | N171: 10 | O171: =INDEX(Lists!$B$32:$B$40, MATCH(YEAR(TODAY())-C171, Lists!$C$32:$C$40,1)) -> 51-60 | P171: 337.4084794 | Q171: =INDEX(Data!$E$24:$E$47, MATCH(F171&D171, Data!$B$24:$B$47,0)) -> 0.001068433916 | R171: =SUMPRODUCT((Data!$B$58:$B$60=Model!$F171)*(Data!$C$57:$K$57=Model!$O171)*(Data!$C$58:$K$60)) -> 2.656485925 | S171: 63.43514075 | T171: 2 | U171: =IF(E171<>"Serviceable",E171,INDEX(Lists!$D$6:$D$8, MATCH(T171,Lists!$C$6:$C$8,0))) -> Limited Life | V171: =INDEX(Lists!$C$12:$C$26, MATCH(H171, Lists!$B$12:$B$26,0)) -> Sub-T
B172: 223 | C172: 1969 | D172: Wood Creos Impregnated | E172: Serviceable | F172: Class 3 | G172: 0 | H172: lv | I172: 880 | J172: 2022 | K172: 100 | L172: No | M172: FALSE | N172: 10 | O172: =INDEX(Lists!$B$32:$B$40, MATCH(YEAR(TODAY())-C172, Lists!$C$32:$C$40,1)) -> 51-60 | P172: 280.1126998 | Q172: =INDEX(Data!$E$24:$E$47, MATCH(F172&D172, Data!$B$24:$B$47,0)) -> 0.001068433916 | R172: =SUMPRODUCT((Data!$B$58:$B$60=Model!$F172)*(Data!$C$57:$K$57=Model!$O172)*(Data!$C$58:$K$60)) -> 2.656485925 | S172: 73.43514075 | T172: 1 | U172: =IF(E172<>"Serviceable",E172,INDEX(Lists!$D$6:$D$8, MATCH(T172,Lists!$C$6:$C$8,0))) -> Serviceable | V172: =INDEX(Lists!$C$12:$C$26, MATCH(H172, Lists!$B$12:$B$26,0)) -> LV
B173: 224 | C173: 1969 | D173: Wood Creos Impregnated | E173: Serviceable | F173: Class 3 | G173: 0 | H173: lv | I173: 810 | J173: 2022 | K173: 90 | L173: No | M173: FALSE | N173: 10 | O173: =INDEX(Lists!$B$32:$B$40, MATCH(YEAR(TODAY())-C173, Lists!$C$32:$C$40,1)) -> 51-60 | P173: 257.8310078 | Q173: =INDEX(Data!$E$24:$E$47, MATCH(F173&D173, Data!$B$24:$B$47,0)) -> 0.001068433916 | R173: =SUMPRODUCT((Data!$B$58:$B$60=Model!$F173)*(Data!$C$57:$K$57=Model!$O173)*(Data!$C$58:$K$60)) -> 2.656485925 | S173: 63.43514075 | T173: 2 | U173: =IF(E173<>"Serviceable",E173,INDEX(Lists!$D$6:$D$8, MATCH(T173,Lists!$C$6:$C$8,0))) -> Limited Life | V173: =INDEX(Lists!$C$12:$C$26, MATCH(H173, Lists!$B$12:$B$26,0)) -> LV
B174: 225 | C174: 1969 | D174: Wood Creos Impregnated | E174: Serviceable | F174: Class 3 | G174: 0 | H174: lv | I174: 1040 | J174: 2022 | K174: 100 | L174: No | M174: FALSE | N174: 10 | O174: =INDEX(Lists!$B$32:$B$40, MATCH(YEAR(TODAY())-C174, Lists!$C$32:$C$40,1)) -> 51-60 | P174: 331.0422816 | Q174: =INDEX(Data!$E$24:$E$47, MATCH(F174&D174, Data!$B$24:$B$47,0)) -> 0.001068433916 | R174: =SUMPRODUCT((Data!$B$58:$B$60=Model!$F174)*(Data!$C$57:$K$57=Model!$O174)*(Data!$C$58:$K$60)) -> 2.656485925 | S174: 73.43514075 | T174: 1 | U174: =IF(E174<>"Serviceable",E174,INDEX(Lists!$D$6:$D$8, MATCH(T174,Lists!$C$6:$C$8,0))) -> Serviceable | V174: =INDEX(Lists!$C$12:$C$26, MATCH(H174, Lists!$B$12:$B$26,0)) -> LV
B175: 228 | C175: 1979 | D175: Wood Creos Impregnated | E175: Serviceable | F175: Class 3 | G175: 0 | H175: lv | I175: 1005 | J175: 2022 | K175: 110 | L175: No | M175: FALSE | N175: 10 | O175: =INDEX(Lists!$B$32:$B$40, MATCH(YEAR(TODAY())-C175, Lists!$C$32:$C$40,1)) -> 41-50 | P175: 319.9014356 | Q175: =INDEX(Data!$E$24:$E$47, MATCH(F175&D175, Data!$B$24:$B$47,0)) -> 0.001068433916 | R175: =SUMPRODUCT((Data!$B$58:$B$60=Model!$F175)*(Data!$C$57:$K$57=Model!$O175)*(Data!$C$58:$K$60)) -> 3.259592816 | S175: 77.40407184 | T175: 1 | U175: =IF(E175<>"Serviceable",E175,INDEX(Lists!$D$6:$D$8, MATCH(T175,Lists!$C$6:$C$8,0))) -> Serviceable | V175: =INDEX(Lists!$C$12:$C$26, MATCH(H175, Lists!$B$12:$B$26,0)) -> LV
B176: 229 | C176: 1979 | D176: Wood Untreated Dressed | E176: Serviceable | F176: Class 1 | G176: 0 | H176: lv | I176: 820 | J176: 2022 | K176: 100 | L176: No | M176: FALSE | N176: 10 | O176: =INDEX(Lists!$B$32:$B$40, MATCH(YEAR(TODAY())-C176, Lists!$C$32:$C$40,1)) -> 41-50 | P176: 261.0141067 | Q176: =INDEX(Data!$E$24:$E$47, MATCH(F176&D176, Data!$B$24:$B$47,0)) -> 0.001996456114 | R176: =SUMPRODUCT((Data!$B$58:$B$60=Model!$F176)*(Data!$C$57:$K$57=Model!$O176)*(Data!$C$58:$K$60)) -> 1.797757842 | S176: 82.02242158 | T176: 1 | U176: =IF(E176<>"Serviceable",E176,INDEX(Lists!$D$6:$D$8, MATCH(T176,Lists!$C$6:$C$8,0))) -> Serviceable | V176: =INDEX(Lists!$C$12:$C$26, MATCH(H176, Lists!$B$12:$B$26,0)) -> LV
B177: 231 | C177: 1979 | D177: Wood Creos Impregnated | E177: Serviceable | F177: Class 3 | G177: 0 | H177: lv | I177: 860 | J177: 2022 | K177: 90 | L177: No | M177: FALSE | N177: 10 | O177: =INDEX(Lists!$B$32:$B$40, MATCH(YEAR(TODAY())-C177, Lists!$C$32:$C$40,1)) -> 41-50 | P177: 273.7465021 | Q177: =INDEX(Data!$E$24:$E$47, MATCH(F177&D177, Data!$B$24:$B$47,0)) -> 0.001068433916 | R177: =SUMPRODUCT((Data!$B$58:$B$60=Model!$F177)*(Data!$C$57:$K$57=Model!$O177)*(Data!$C$58:$K$60)) -> 3.259592816 | S177: 57.40407184 | T177: 2 | U177: =IF(E177<>"Serviceable",E177,INDEX(Lists!$D$6:$D$8, MATCH(T177,Lists!$C$6:$C$8,0))) -> Limited Life | V177: =INDEX(Lists!$C$12:$C$26, MATCH(H177, Lists!$B$12:$B$26,0)) -> LV
B178: 234 | C178: 1985 | D178: Wood Untreated Dressed | E178: Serviceable | F178: Class 1 | G178: 0 | H178: lv | I178: 785 | J178: 2022 | K178: 110 | L178: No | M178: FALSE | N178: 10 | O178: =INDEX(Lists!$B$32:$B$40, MATCH(YEAR(TODAY())-C178, Lists!$C$32:$C$40,1)) -> 31-40 | P178: 249.8732607 | Q178: =INDEX(Data!$E$24:$E$47, MATCH(F178&D178, Data!$B$24:$B$47,0)) -> 0.001996456114 | R178: =SUMPRODUCT((Data!$B$58:$B$60=Model!$F178)*(Data!$C$57:$K$57=Model!$O178)*(Data!$C$58:$K$60)) -> 3.003845297 | S178: 79.96154703 | T178: 1 | U178: =IF(E178<>"Serviceable",E178,INDEX(Lists!$D$6:$D$8, MATCH(T178,Lists!$C$6:$C$8,0))) -> Serviceable | V178: =INDEX(Lists!$C$12:$C$26, MATCH(H178, Lists!$B$12:$B$26,0)) -> LV
B179: 235 | C179: 1985 | D179: Wood Untreated Dressed | E179: Serviceable | F179: Class 1 | G179: 0 | H179: lv | I179: 785 | J179: 2022 | K179: 110 | L179: No | M179: FALSE | N179: 10 | O179: =INDEX(Lists!$B$32:$B$40, MATCH(YEAR(TODAY())-C179, Lists!$C$32:$C$40,1)) -> 31-40 | P179: 249.8732607 | Q179: =INDEX(Data!$E$24:$E$47, MATCH(F179&D179, Data!$B$24:$B$47,0)) -> 0.001996456114 | R179: =SUMPRODUCT((Data!$B$58:$B$60=Model!$F179)*(Data!$C$57:$K$57=Model!$O179)*(Data!$C$58:$K$60)) -> 3.003845297 | S179: 79.96154703 | T179: 1 | U179: =IF(E179<>"Serviceable",E179,INDEX(Lists!$D$6:$D$8, MATCH(T179,Lists!$C$6:$C$8,0))) -> Serviceable | V179: =INDEX(Lists!$C$12:$C$26, MATCH(H179, Lists!$B$12:$B$26,0)) -> LV
B180: 236 | C180: 1971 | D180: Wood Creos Impregnated | E180: Serviceable | F180: Class 3 | G180: 0 | H180: lv | I180: 817 | J180: 2022 | K180: 90 | L180: No | M180: FALSE | N180: 10 | O180: =INDEX(Lists!$B$32:$B$40, MATCH(YEAR(TODAY())-C180, Lists!$C$32:$C$40,1)) -> 51-60 | P180: 260.059177 | Q180: =INDEX(Data!$E$24:$E$47, MATCH(F180&D180, Data!$B$24:$B$47,0)) -> 0.001068433916 | R180: =SUMPRODUCT((Data!$B$58:$B$60=Model!$F180)*(Data!$C$57:$K$57=Model!$O180)*(Data!$C$58:$K$60)) -> 2.656485925 | S180: 63.43514075 | T180: 2 | U180: =IF(E180<>"Serviceable",E180,INDEX(Lists!$D$6:$D$8, MATCH(T180,Lists!$C$6:$C$8,0))) -> Limited Life | V180: =INDEX(Lists!$C$12:$C$26, MATCH(H180, Lists!$B$12:$B$26,0)) -> LV
B181: 237 | C181: 1979 | D181: Wood Creos Impregnated | E181: Serviceable | F181: Class 3 | G181: 0 | H181: lv | I181: 830 | J181: 2022 | K181: 80 | L181: No | M181: FALSE | N181: 10 | O181: =INDEX(Lists!$B$32:$B$40, MATCH(YEAR(TODAY())-C181, Lists!$C$32:$C$40,1)) -> 41-50 | P181: 264.1972055 | Q181: =INDEX(Data!$E$24:$E$47, MATCH(F181&D181, Data!$B$24:$B$47,0)) -> 0.001068433916 | R181: =SUMPRODUCT((Data!$B$58:$B$60=Model!$F181)*(Data!$C$57:$K$57=Model!$O181)*(Data!$C$58:$K$60)) -> 3.259592816 | S181: 47.40407184 | T181: 2 | U181: =IF(E181<>"Serviceable",E181,INDEX(Lists!$D$6:$D$8, MATCH(T181,Lists!$C$6:$C$8,0))) -> Limited Life | V181: =INDEX(Lists!$C$12:$C$26, MATCH(H181, Lists!$B$12:$B$26,0)) -> LV
B182: 238 | C182: 1962 | D182: Wood Creos Impregnated | E182: Serviceable | F182: Class 3 | G182: 0 | H182: lv | I182: 1030 | J182: 2022 | K182: 90 | L182: No | M182: FALSE | N182: 10 | O182: =INDEX(Lists!$B$32:$B$40, MATCH(YEAR(TODAY())-C182, Lists!$C$32:$C$40,1)) -> 61-70 | P182: 327.8591828 | Q182: =INDEX(Data!$E$24:$E$47, MATCH(F182&D182, Data!$B$24:$B$47,0)) -> 0.001068433916 | R182: =SUMPRODUCT((Data!$B$58:$B$60=Model!$F182)*(Data!$C$57:$K$57=Model!$O182)*(Data!$C$58:$K$60)) -> 1.980203131 | S182: 70.19796869 | T182: 1 | U182: =IF(E182<>"Serviceable",E182,INDEX(Lists!$D$6:$D$8, MATCH(T182,Lists!$C$6:$C$8,0))) -> Serviceable | V182: =INDEX(Lists!$C$12:$C$26, MATCH(H182, Lists!$B$12:$B$26,0)) -> LV
B183: 239 | C183: 1971 | D183: Wood Creos Impregnated | E183: Serviceable | F183: Class 3 | G183: 0 | H183: lv | I183: 780 | J183: 2022 | K183: 100 | L183: No | M183: FALSE | N183: 10 | O183: =INDEX(Lists!$B$32:$B$40, MATCH(YEAR(TODAY())-C183, Lists!$C$32:$C$40,1)) -> 51-60 | P183: 248.2817112 | Q183: =INDEX(Data!$E$24:$E$47, MATCH(F183&D183, Data!$B$24:$B$47,0)) -> 0.001068433916 | R183: =SUMPRODUCT((Data!$B$58:$B$60=Model!$F183)*(Data!$C$57:$K$57=Model!$O183)*(Data!$C$58:$K$60)) -> 2.656485925 | S183: 73.43514075 | T183: 1 | U183: =IF(E183<>"Serviceable",E183,INDEX(Lists!$D$6:$D$8, MATCH(T183,Lists!$C$6:$C$8,0))) -> Serviceable | V183: =INDEX(Lists!$C$12:$C$26, MATCH(H183, Lists!$B$12:$B$26,0)) -> LV
B184: 240 | C184: 1959 | D184: Wood Creos Impregnated | E184: Serviceable | F184: Class 3 | G184: 0 | H184: lv/hv | I184: 1250 | J184: 2023 | K184: 110 | L184: No | M184: FALSE | N184: 10 | O184: =INDEX(Lists!$B$32:$B$40, MATCH(YEAR(TODAY())-C184, Lists!$C$32:$C$40,1)) -> 61-70 | P184: 397.8873577 | Q184: =INDEX(Data!$E$24:$E$47, MATCH(F184&D184, Data!$B$24:$B$47,0)) -> 0.001068433916 | R184: =SUMPRODUCT((Data!$B$58:$B$60=Model!$F184)*(Data!$C$57:$K$57=Model!$O184)*(Data!$C$58:$K$60)) -> 1.980203131 | S184: 90.19796869 | T184: 1 | U184: =IF(E184<>"Serviceable",E184,INDEX(Lists!$D$6:$D$8, MATCH(T184,Lists!$C$6:$C$8,0))) -> Serviceable | V184: =INDEX(Lists!$C$12:$C$26, MATCH(H184, Lists!$B$12:$B$26,0)) -> HV
B185: 241 | C185: 1989 | D185: Wood Untreated Dressed | E185: Serviceable | F185: Class 1 | G185: 0 | H185: lv/hv | I185: 1200 | J185: 2023 | K185: 140 | L185: No | M185: FALSE | N185: 10 | O185: =INDEX(Lists!$B$32:$B$40, MATCH(YEAR(TODAY())-C185, Lists!$C$32:$C$40,1)) -> 31-40 | P185: 381.9718634 | Q185: =INDEX(Data!$E$24:$E$47, MATCH(F185&D185, Data!$B$24:$B$47,0)) -> 0.001996456114 | R185: =SUMPRODUCT((Data!$B$58:$B$60=Model!$F185)*(Data!$C$57:$K$57=Model!$O185)*(Data!$C$58:$K$60)) -> 3.003845297 | S185: 109.961547 | T185: 1 | U185: =IF(E185<>"Serviceable",E185,INDEX(Lists!$D$6:$D$8, MATCH(T185,Lists!$C$6:$C$8,0))) -> Serviceable | V185: =INDEX(Lists!$C$12:$C$26, MATCH(H185, Lists!$B$12:$B$26,0)) -> HV
B186: 244 | C186: 1973 | D186: Wood Untreated Dressed | E186: Serviceable | F186: Class 1 | G186: 0 | H186: lv/hv | I186: 880 | J186: 2023 | K186: 110 | L186: No | M186: FALSE | N186: 10 | O186: =INDEX(Lists!$B$32:$B$40, MATCH(YEAR(TODAY())-C186, Lists!$C$32:$C$40,1)) -> 51-60 | P186: 280.1126998 | Q186: =INDEX(Data!$E$24:$E$47, MATCH(F186&D186, Data!$B$24:$B$47,0)) -> 0.001996456114 | R186: =SUMPRODUCT((Data!$B$58:$B$60=Model!$F186)*(Data!$C$57:$K$57=Model!$O186)*(Data!$C$58:$K$60)) -> 1.355721009 | S186: 96.44278991 | T186: 1 | U186: =IF(E186<>"Serviceable",E186,INDEX(Lists!$D$6:$D$8, MATCH(T186,Lists!$C$6:$C$8,0))) -> Serviceable | V186: =INDEX(Lists!$C$12:$C$26, MATCH(H186, Lists!$B$12:$B$26,0)) -> HV
B187: 247 | C187: 1970 | D187: Wood Creos Impregnated | E187: Serviceable | F187: Class 3 | G187: 0 | H187: lv | I187: 900 | J187: 2023 | K187: 90 | L187: No | M187: FALSE | N187: 10 | O187: =INDEX(Lists!$B$32:$B$40, MATCH(YEAR(TODAY())-C187, Lists!$C$32:$C$40,1)) -> 51-60 | P187: 286.4788976 | Q187: =INDEX(Data!$E$24:$E$47, MATCH(F187&D187, Data!$B$24:$B$47,0)) -> 0.001068433916 | R187: =SUMPRODUCT((Data!$B$58:$B$60=Model!$F187)*(Data!$C$57:$K$57=Model!$O187)*(Data!$C$58:$K$60)) -> 2.656485925 | S187: 63.43514075 | T187: 2 | U187: =IF(E187<>"Serviceable",E187,INDEX(Lists!$D$6:$D$8, MATCH(T187,Lists!$C$6:$C$8,0))) -> Limited Life | V187: =INDEX(Lists!$C$12:$C$26, MATCH(H187, Lists!$B$12:$B$26,0)) -> LV
B188: 250 | C188: 1984 | D188: Wood Untreated Dressed | E188: Serviceable | F188: Class 1 | G188: 0 | H188: lv/hv | I188: 1100 | J188: 2023 | K188: 110 | L188: No | M188: FALSE | N188: 10 | O188: =INDEX(Lists!$B$32:$B$40, MATCH(YEAR(TODAY())-C188, Lists!$C$32:$C$40,1)) -> 41-50 | P188: 350.1408748 | Q188: =INDEX(Data!$E$24:$E$47, MATCH(F188&D188, Data!$B$24:$B$47,0)) -> 0.001996456114 | R188: =SUMPRODUCT((Data!$B$58:$B$60=Model!$F188)*(Data!$C$57:$K$57=Model!$O188)*(Data!$C$58:$K$60)) -> 1.797757842 | S188: 92.02242158 | T188: 1 | U188: =IF(E188<>"Serviceable",E188,INDEX(Lists!$D$6:$D$8, MATCH(T188,Lists!$C$6:$C$8,0))) -> Serviceable | V188: =INDEX(Lists!$C$12:$C$26, MATCH(H188, Lists!$B$12:$B$26,0)) -> HV
B189: 252 | C189: 1988 | D189: Wood Creos Impregnated | E189: Serviceable | F189: Class 3 | G189: 0 | H189: lv/hv | I189: 1200 | J189: 2023 | K189: 90 | L189: No | M189: FALSE | N189: 10 | O189: =INDEX(Lists!$B$32:$B$40, MATCH(YEAR(TODAY())-C189, Lists!$C$32:$C$40,1)) -> 31-40 | P189: 381.9718634 | Q189: =INDEX(Data!$E$24:$E$47, MATCH(F189&D189, Data!$B$24:$B$47,0)) -> 0.001068433916 | R189: =SUMPRODUCT((Data!$B$58:$B$60=Model!$F189)*(Data!$C$57:$K$57=Model!$O189)*(Data!$C$58:$K$60)) -> 3.630786025 | S189: 53.69213975 | T189: 2 | U189: =IF(E189<>"Serviceable",E189,INDEX(Lists!$D$6:$D$8, MATCH(T189,Lists!$C$6:$C$8,0))) -> Limited Life | V189: =INDEX(Lists!$C$12:$C$26, MATCH(H189, Lists!$B$12:$B$26,0)) -> HV
B190: 254 | C190: 1982 | D190: Wood Untreated Dressed | E190: Serviceable | F190: Class 1 | G190: 0 | H190: lv | I190: 920 | J190: 2023 | K190: 110 | L190: No | M190: FALSE | N190: 10 | O190: =INDEX(Lists!$B$32:$B$40, MATCH(YEAR(TODAY())-C190, Lists!$C$32:$C$40,1)) -> 41-50 | P190: 292.8450953 | Q190: =INDEX(Data!$E$24:$E$47, MATCH(F190&D190, Data!$B$24:$B$47,0)) -> 0.001996456114 | R190: =SUMPRODUCT((Data!$B$58:$B$60=Model!$F190)*(Data!$C$57:$K$57=Model!$O190)*(Data!$C$58:$K$60)) -> 1.797757842 | S190: 92.02242158 | T190: 1 | U190: =IF(E190<>"Serviceable",E190,INDEX(Lists!$D$6:$D$8, MATCH(T190,Lists!$C$6:$C$8,0))) -> Serviceable | V190: =INDEX(Lists!$C$12:$C$26, MATCH(H190, Lists!$B$12:$B$26,0)) -> LV
B191: 255 | C191: 1990 | D191: Wood Creos Impregnated | E191: Serviceable | F191: Class 1 | G191: 0 | H191: lv/hv | I191: 950 | J191: 2023 | K191: 100 | L191: No | M191: FALSE | N191: 10 | O191: =INDEX(Lists!$B$32:$B$40, MATCH(YEAR(TODAY())-C191, Lists!$C$32:$C$40,1)) -> 31-40 | P191: 302.3943919 | Q191: =INDEX(Data!$E$24:$E$47, MATCH(F191&D191, Data!$B$24:$B$47,0)) -> 0.0009947499309 | R191: =SUMPRODUCT((Data!$B$58:$B$60=Model!$F191)*(Data!$C$57:$K$57=Model!$O191)*(Data!$C$58:$K$60)) -> 3.003845297 | S191: 69.96154703 | T191: 1 | U191: =IF(E191<>"Serviceable",E191,INDEX(Lists!$D$6:$D$8, MATCH(T191,Lists!$C$6:$C$8,0))) -> Serviceable | V191: =INDEX(Lists!$C$12:$C$26, MATCH(H191, Lists!$B$12:$B$26,0)) -> HV
B192: 256 | C192: 1969 | D192: Wood Creos Impregnated | E192: Serviceable | F192: Class 3 | G192: 0 | H192: lv | I192: 740 | J192: 2023 | K192: 90 | L192: No | M192: FALSE | N192: 10 | O192: =INDEX(Lists!$B$32:$B$40, MATCH(YEAR(TODAY())-C192, Lists!$C$32:$C$40,1)) -> 51-60 | P192: 235.5493158 | Q192: =INDEX(Data!$E$24:$E$47, MATCH(F192&D192, Data!$B$24:$B$47,0)) -> 0.001068433916 | R192: =SUMPRODUCT((Data!$B$58:$B$60=Model!$F192)*(Data!$C$57:$K$57=Model!$O192)*(Data!$C$58:$K$60)) -> 2.656485925 | S192: 63.43514075 | T192: 2 | U192: =IF(E192<>"Serviceable",E192,INDEX(Lists!$D$6:$D$8, MATCH(T192,Lists!$C$6:$C$8,0))) -> Limited Life | V192: =INDEX(Lists!$C$12:$C$26, MATCH(H192, Lists!$B$12:$B$26,0)) -> LV
B193: 257 | C193: 1990 | D193: Wood Untreated Dressed | E193: Serviceable | F193: Class 1 | G193: 0 | H193: lv/hv | I193: 1120 | J193: 2023 | K193: 140 | L193: No | M193: FALSE | N193: 10 | O193: =INDEX(Lists!$B$32:$B$40, MATCH(YEAR(TODAY())-C193, Lists!$C$32:$C$40,1)) -> 31-40 | P193: 356.5070725 | Q193: =INDEX(Data!$E$24:$E$47, MATCH(F193&D193, Data!$B$24:$B$47,0)) -> 0.001996456114 | R193: =SUMPRODUCT((Data!$B$58:$B$60=Model!$F193)*(Data!$C$57:$K$57=Model!$O193)*(Data!$C$58:$K$60)) -> 3.003845297 | S193: 109.961547 | T193: 1 | U193: =IF(E193<>"Serviceable",E193,INDEX(Lists!$D$6:$D$8, MATCH(T193,Lists!$C$6:$C$8,0))) -> Serviceable | V193: =INDEX(Lists!$C$12:$C$26, MATCH(H193, Lists!$B$12:$B$26,0)) -> HV
B194: 258 | C194: 1982 | D194: Wood Untreated Dressed | E194: Serviceable | F194: Class 1 | G194: 0 | H194: lv | I194: 760 | J194: 2023 | K194: 120 | L194: No | M194: FALSE | N194: 10 | O194: =INDEX(Lists!$B$32:$B$40, MATCH(YEAR(TODAY())-C194, Lists!$C$32:$C$40,1)) -> 41-50 | P194: 241.9155135 | Q194: =INDEX(Data!$E$24:$E$47, MATCH(F194&D194, Data!$B$24:$B$47,0)) -> 0.001996456114 | R194: =SUMPRODUCT((Data!$B$58:$B$60=Model!$F194)*(Data!$C$57:$K$57=Model!$O194)*(Data!$C$58:$K$60)) -> 1.797757842 | S194: 102.0224216 | T194: 1 | U194: =IF(E194<>"Serviceable",E194,INDEX(Lists!$D$6:$D$8, MATCH(T194,Lists!$C$6:$C$8,0))) -> Serviceable | V194: =INDEX(Lists!$C$12:$C$26, MATCH(H194, Lists!$B$12:$B$26,0)) -> LV
B195: 259 | C195: 1983 | D195: Wood Creos Impregnated | E195: Serviceable | F195: Class 3 | G195: 0 | H195: lv | I195: 754 | J195: 2023 | K195: 90 | L195: No | M195: FALSE | N195: 10 | O195: =INDEX(Lists!$B$32:$B$40, MATCH(YEAR(TODAY())-C195, Lists!$C$32:$C$40,1)) -> 41-50 | P195: 240.0056542 | Q195: =INDEX(Data!$E$24:$E$47, MATCH(F195&D195, Data!$B$24:$B$47,0)) -> 0.001068433916 | R195: =SUMPRODUCT((Data!$B$58:$B$60=Model!$F195)*(Data!$C$57:$K$57=Model!$O195)*(Data!$C$58:$K$60)) -> 3.259592816 | S195: 57.40407184 | T195: 2 | U195: =IF(E195<>"Serviceable",E195,INDEX(Lists!$D$6:$D$8, MATCH(T195,Lists!$C$6:$C$8,0))) -> Limited Life | V195: =INDEX(Lists!$C$12:$C$26, MATCH(H195, Lists!$B$12:$B$26,0)) -> LV
B196: 262 | C196: 1985 | D196: Wood Untreated Dressed | E196: Serviceable | F196: Class 1 | G196: 0 | H196: lv | I196: 1037 | J196: 2023 | K196: 110 | L196: No | M196: FALSE | N196: 10 | O196: =INDEX(Lists!$B$32:$B$40, MATCH(YEAR(TODAY())-C196, Lists!$C$32:$C$40,1)) -> 31-40 | P196: 330.087352 | Q196: =INDEX(Data!$E$24:$E$47, MATCH(F196&D196, Data!$B$24:$B$47,0)) -> 0.001996456114 | R196: =SUMPRODUCT((Data!$B$58:$B$60=Model!$F196)*(Data!$C$57:$K$57=Model!$O196)*(Data!$C$58:$K$60)) -> 3.003845297 | S196: 79.96154703 | T196: 1 | U196: =IF(E196<>"Serviceable",E196,INDEX(Lists!$D$6:$D$8, MATCH(T196,Lists!$C$6:$C$8,0))) -> Serviceable | V196: =INDEX(Lists!$C$12:$C$26, MATCH(H196, Lists!$B$12:$B$26,0)) -> LV
B197: 264 | C197: 1968 | D197: Wood Creos Impregnated | E197: Serviceable | F197: Class 3 | G197: 0 | H197: lv | I197: 850 | J197: 2023 | K197: 70 | L197: No | M197: FALSE | N197: 10 | O197: =INDEX(Lists!$B$32:$B$40, MATCH(YEAR(TODAY())-C197, Lists!$C$32:$C$40,1)) -> 51-60 | P197: 270.5634033 | Q197: =INDEX(Data!$E$24:$E$47, MATCH(F197&D197, Data!$B$24:$B$47,0)) -> 0.001068433916 | R197: =SUMPRODUCT((Data!$B$58:$B$60=Model!$F197)*(Data!$C$57:$K$57=Model!$O197)*(Data!$C$58:$K$60)) -> 2.656485925 | S197: 43.43514075 | T197: 2 | U197: =IF(E197<>"Serviceable",E197,INDEX(Lists!$D$6:$D$8, MATCH(T197,Lists!$C$6:$C$8,0))) -> Limited Life | V197: =INDEX(Lists!$C$12:$C$26, MATCH(H197, Lists!$B$12:$B$26,0)) -> LV
B198: 265 | C198: 1987 | D198: Wood Untreated Dressed | E198: Serviceable | F198: Class 1 | G198: 0 | H198: lv | I198: 1050 | J198: 2023 | K198: 140 | L198: No | M198: FALSE | N198: 10 | O198: =INDEX(Lists!$B$32:$B$40, MATCH(YEAR(TODAY())-C198, Lists!$C$32:$C$40,1)) -> 31-40 | P198: 334.2253805 | Q198: =INDEX(Data!$E$24:$E$47, MATCH(F198&D198, Data!$B$24:$B$47,0)) -> 0.001996456114 | R198: =SUMPRODUCT((Data!$B$58:$B$60=Model!$F198)*(Data!$C$57:$K$57=Model!$O198)*(Data!$C$58:$K$60)) -> 3.003845297 | S198: 109.961547 | T198: 1 | U198: =IF(E198<>"Serviceable",E198,INDEX(Lists!$D$6:$D$8, MATCH(T198,Lists!$C$6:$C$8,0))) -> Serviceable | V198: =INDEX(Lists!$C$12:$C$26, MATCH(H198, Lists!$B$12:$B$26,0)) -> LV
B199: 266 | C199: 1965 | D199: Wood Creos Impregnated | E199: Serviceable | F199: Class 3 | G199: 0 | H199: lv/hv | I199: 1090 | J199: 2023 | K199: 100 | L199: No | M199: FALSE | N199: 10 | O199: =INDEX(Lists!$B$32:$B$40, MATCH(YEAR(TODAY())-C199, Lists!$C$32:$C$40,1)) -> 51-60 | P199: 346.9577759 | Q199: =INDEX(Data!$E$24:$E$47, MATCH(F199&D199, Data!$B$24:$B$47,0)) -> 0.001068433916 | R199: =SUMPRODUCT((Data!$B$58:$B$60=Model!$F199)*(Data!$C$57:$K$57=Model!$O199)*(Data!$C$58:$K$60)) -> 2.656485925 | S199: 73.43514075 | T199: 1 | U199: =IF(E199<>"Serviceable",E199,INDEX(Lists!$D$6:$D$8, MATCH(T199,Lists!$C$6:$C$8,0))) -> Serviceable | V199: =INDEX(Lists!$C$12:$C$26, MATCH(H199, Lists!$B$12:$B$26,0)) -> HV
B200: 267 | C200: 1965 | D200: Wood Creos Impregnated | E200: Serviceable | F200: Class 3 | G200: 0 | H200: lv/hv | I200: 1005 | J200: 2023 | K200: 100 | L200: No | M200: FALSE | N200: =IF(L200="No",ROUND((End_year-J200)/5,0)*5,ROUND((End_year-J200)/3,0)*3) -> 10 | O200: =INDEX(Lists!$B$32:$B$40, MATCH(YEAR(TODAY())-C200, Lists!$C$32:$C$40,1)) -> 51-60 | P200: 319.9014356 | Q200: =INDEX(Data!$E$24:$E$47, MATCH(F200&D200, Data!$B$24:$B$47,0)) -> 0.001068433916 | R200: =SUMPRODUCT((Data!$B$58:$B$60=Model!$F200)*(Data!$C$57:$K$57=Model!$O200)*(Data!$C$58:$K$60)) -> 2.656485925 | S200: =IF(IF(K200>=700,999,(K200-R200*N200))<0,0,IF(K200>=700,999,(K200-R200*N200))) -> 73.43514075 | T200: =IF(S200<30,3,IF(AND(F200="Class 1",S200<50),2,IF(AND(F200="Class 1",S200>=50),1,IF(S200<70,2,1)))) -> 1 | U200: =IF(E200<>"Serviceable",E200,INDEX(Lists!$D$6:$D$8, MATCH(T200,Lists!$C$6:$C$8,0))) -> Serviceable | V200: =INDEX(Lists!$C$12:$C$26, MATCH(H200, Lists!$B$12:$B$26,0)) -> HV
B201: 269 | C201: 1970 | D201: Wood Creos Impregnated | E201: Serviceable | F201: Class 3 | G201: 0 | H201: lv | I201: 930 | J201: 2023 | K201: 90 | L201: No | M201: =IF(G201=0,FALSE,TRUE) -> FALSE | N201: 10 | O201: =INDEX(Lists!$B$32:$B$40, MATCH(YEAR(TODAY())-C201, Lists!$C$32:$C$40,1)) -> 51-60 | P201: =I201/PI() -> 296.0281942 | Q201: =INDEX(Data!$E$24:$E$47, MATCH(F201&D201, Data!$B$24:$B$47,0)) -> 0.001068433916 | R201: =SUMPRODUCT((Data!$B$58:$B$60=Model!$F201)*(Data!$C$57:$K$57=Model!$O201)*(Data!$C$58:$K$60)) -> 2.656485925 | S201: 63.43514075 | T201: 2 | U201: =IF(E201<>"Serviceable",E201,INDEX(Lists!$D$6:$D$8, MATCH(T201,Lists!$C$6:$C$8,0))) -> Limited Life | V201: =INDEX(Lists!$C$12:$C$26, MATCH(H201, Lists!$B$12:$B$26,0)) -> LV
B202: 273 | C202: 1985 | D202: Wood Untreated Dressed | E202: Serviceable | F202: Class 1 | G202: 0 | H202: lv/future hv | I202: 1068 | J202: 2023 | K202: 110 | L202: No | M202: FALSE | N202: 10 | O202: =INDEX(Lists!$B$32:$B$40, MATCH(YEAR(TODAY())-C202, Lists!$C$32:$C$40,1)) -> 31-40 | P202: 339.9549584 | Q202: =INDEX(Data!$E$24:$E$47, MATCH(F202&D202, Data!$B$24:$B$47,0)) -> 0.001996456114 | R202: =SUMPRODUCT((Data!$B$58:$B$60=Model!$F202)*(Data!$C$57:$K$57=Model!$O202)*(Data!$C$58:$K$60)) -> 3.003845297 | S202: 79.96154703 | T202: 1 | U202: =IF(E202<>"Serviceable",E202,INDEX(Lists!$D$6:$D$8, MATCH(T202,Lists!$C$6:$C$8,0))) -> Serviceable | V202: =INDEX(Lists!$C$12:$C$26, MATCH(H202, Lists!$B$12:$B$26,0)) -> LV
... 4298 more rows

Sheet Data
A1: United Energy
A2: Data
B5: Forecast end year | C5: 2031
B6: Current year | C6: 2023
B10: Intervention ratio
B11: Serviceable | C11: 0
B12: Limited Life | C12: 0.8
B13: Unserviceable | C13: 1
B16: Staking ratio
B17: Staking ratio LV | C17: 0.4891831559
B18: Staking ratio HV | C18: 0.4891831559
B19: Staking ratio SubT | C19: 0.4891831559
B23: Aggregated | C23: Class | D23: Treatment | E23: Reduction (%/yr)
B24: =_xlfn.CONCAT(C24,D24) -> Class 1Wood Untreated Dressed | C24: Class 1 | D24: Wood Untreated Dressed | E24: 0.001996456114
B25: Class 1Wood Creos Impregnated | C25: Class 1 | D25: Wood Creos Impregnated | E25: 0.0009947499309
B26: Class 1Wood Other | C26: Class 1 | D26: Wood Other | E26: 0.001996456114
B27: Class 1Wood Untreated Round | C27: Class 1 | D27: Wood Untreated Round | E27: 0.001996456114
B28: Class 1Wood Salt Impregnated (Green) | C28: Class 1 | D28: Wood Salt Impregnated (Green) | E28: 0.0009947499309
B29: Class 1Wood Penta Impregnated | C29: Class 1 | D29: Wood Penta Impregnated | E29: 0.0009947499309
B30: Class 2Wood Untreated Dressed | C30: Class 2 | D30: Wood Untreated Dressed | E30: 0.002199770002
B31: Class 2Wood Creos Impregnated | C31: Class 2 | D31: Wood Creos Impregnated | E31: 0.001611883692
B32: Class 2Wood Other | C32: Class 2 | D32: Wood Other | E32: 0.002199770002
B33: Class 2Wood Untreated Round | C33: Class 2 | D33: Wood Untreated Round | E33: 0.002199770002
B34: Class 2Wood Salt Impregnated (Green) | C34: Class 2 | D34: Wood Salt Impregnated (Green) | E34: 0.001611883692
B35: Class 2Wood Penta Impregnated | C35: Class 2 | D35: Wood Penta Impregnated | E35: 0.001611883692
B36: Class 3Wood Untreated Dressed | C36: Class 3 | D36: Wood Untreated Dressed | E36: 0.001830143541
B37: Class 3Wood Creos Impregnated | C37: Class 3 | D37: Wood Creos Impregnated | E37: 0.001068433916
B38: Class 3Wood Other | C38: Class 3 | D38: Wood Other | E38: 0.001830143541
B39: Class 3Wood Untreated Round | C39: Class 3 | D39: Wood Untreated Round | E39: 0.001830143541
B40: Class 3Wood Salt Impregnated (Green) | C40: Class 3 | D40: Wood Salt Impregnated (Green) | E40: 0.001068433916
B41: Class 3Wood Penta Impregnated | C41: Class 3 | D41: Wood Penta Impregnated | E41: 0.001068433916
B42: UnknownWood Untreated Dressed | C42: Unknown | D42: Wood Untreated Dressed | E42: 0.001830143541
B43: UnknownWood Creos Impregnated | C43: Unknown | D43: Wood Creos Impregnated | E43: 0.001068433916
B44: UnknownWood Other | C44: Unknown | D44: Wood Other | E44: 0.001830143541
B45: UnknownWood Untreated Round | C45: Unknown | D45: Wood Untreated Round | E45: 0.001830143541
B46: UnknownWood Salt Impregnated (Green) | C46: Unknown | D46: Wood Salt Impregnated (Green) | E46: 0.001068433916
B47: UnknownWood Penta Impregnated | C47: Unknown | D47: Wood Penta Impregnated | E47: 0.001068433916
C56: =C62 -> 0 | D56: 0 | E56: 0 | F56: 0 | G56: 0 | H56: 0 | I56: 0 | J56: 0 | K56: 0 | L56: Ave
B57: SWT annual reduction in mm | C57: 0-20 | D57: 21-30 | E57: 31-40 | F57: 41-50 | G57: 51-60 | H57: 61-70 | I57: 71-80 | J57: 81-90 | K57: 90+ | L57: Ave
B58: =C24 -> Class 1 | C58: 1.347715165 | D58: 2.165165223 | E58: 3.003845297 | F58: 1.797757842 | G58: 1.355721009 | H58: 2.379583798 | I58: 2.070775124 | J58: 2.839273582 | K58: 1.483534105 | L58: 1.752585312
B59: =C30 -> Class 2 | C59: 1.430341067 | D59: 1.900329956 | E59: 2.620446252 | F59: 3.126815167 | G59: 2.677354809 | H59: 2.227481028 | I59: 3.860340696 | J59: 3.737351863 | K59: 1.944260716 | L59: 2.555046838
B60: =C36 -> Class 3 | C60: 1.783349667 | D60: 1.964589315 | E60: 3.630786025 | F60: 3.259592816 | G60: 2.656485925 | H60: 1.980203131 | I60: 1.826204397 | J60: 2.469668166 | K60: 1.83754122 | L60: 2.265828826

Sheet Lists
A1: United Energy
A2: Lists
B5: Pole condition
B6: Serviceable | C6: 1 | D6: =B6 -> Serviceable
B7: Limited Life | C7: 2 | D7: =B7 -> Limited Life
B8: Unserviceable | C8: 3 | D8: =B8 -> Unserviceable
B11: GIS Classification | C11: Voltage
B12: lv/hv/sub-transmission | C12: Sub-T
B13: lv/hv | C13: HV
B14: lv/sub-transmission | C14: Sub-T
B15: sub-transmission | C15: Sub-T
B16: lv/future hv/sub-transmission | C16: Sub-T
B17: hv/sub-transmission | C17: Sub-T
B18: lv | C18: LV
B19: lv/future hv | C19: LV
B20: lv/hv/future sub-transmission | C20: HV
B21: hv | C21: HV
B22: stay | C22: LV
B23: pl | C23: LV
B24: hv/future sub-transmission | C24: HV
B25: future hv/sub-transmission | C25: Sub-T
B26: lv/pl | C26: LV
B31: Age group | C31: Min age
B32: 0-20 | C32: 0
B33: 21-30 | C33: 21
B34: 31-40 | C34: =C33+10 -> 31
B35: 41-50 | C35: 41
B36: 51-60 | C36: 51
B37: 61-70 | C37: 61
B38: 71-80 | C38: 71
B39: 81-90 | C39: 81
B40: 90+ | C40: 91
